Workbook

Sheet Main
B10: 2020-01-08
B12: Sheet No. | C12: Template Name | D12: Summary
B13: 1 | C13: Future Intra | D13: For Intraday trading in F&O segment
B14: 2 | C14: Cash Intra | D14: For Intraday trading in cash market segment
B15: 3 | C15: Mid-cap Intra | D15: For Intraday trading in Mid-cap stocks
B16: 4 | C16: Bulk Deals | D16: Reveals Bulk Deals carried on NSE & BSE
B17: 5 | C17: Call Tracker
K27: `

Sheet Future Intra
M5: Back to Main Page
A6: FOR INTRA DAY TRADING | L6: =Main!B10 -> 2020-01-08
A9: Sr.no | B9: Sector | C9: Scrip | D9: CLOSE RATE | E9: Pivot Point | F9: Supports | I9: Resistances
B10: Sector | D10: Point | E10: Point | F10: S1 | G10: S2 | H10: S3 | I10: R1 | J10: R2 | K10: R3 | L10: HIGH | M10: LOW | N10: OI | O10: % Change in OI
A11: 1 | B11: Index | C11: BANKNIFTY | D11: 31492.80 | E11: 31536.20 | F11: 31156.60 | G11: 30820.40 | H11: 30440.80 | I11: 31872.40 | J11: 32252.00 | K11: 32588.20 | L11: 31915.8 | M11: 31200 | N11: 1489820 | O11: 4.71%
A12: 2 | B12: Index | C12: NIFTY | D12: 12106.70 | E12: 12112.55 | F12: 12043.25 | G12: 11979.80 | H12: 11910.50 | I12: 12176.00 | J12: 12245.30 | K12: 12308.75 | L12: 12181.85 | M12: 12049.1 | N12: 13183650 | O12: 0.06%
A13: 3 | B13: Index | C13: NIFTYIT | D13: 15902.00 | E13: 15894.33 | F13: 15808.67 | G13: 15715.33 | H13: 15629.67 | I13: 15987.67 | J13: 16073.33 | K13: 16166.67 | L13: 15980 | M13: 15801 | N13: 6200 | O13: -3.13%
A14: 4 | B14: Cement | C14: ACC | D14: 1463.85 | E14: 1458.52 | F14: 1444.43 | G14: 1425.02 | H14: 1410.93 | I14: 1477.93 | J14: 1492.02 | K14: 1511.43 | L14: 1472.6 | M14: 1439.1 | N14: 3473600 | O14: 1.96%
A15: 5 | B15: Others | C15: ADANIENT | D15: 204.65 | E15: 203.95 | F15: 202.10 | G15: 199.55 | H15: 197.70 | I15: 206.50 | J15: 208.35 | K15: 210.90 | L15: 205.8 | M15: 201.4 | N15: 28396000 | O15: -1.11%
A16: 6 | B16: Others | C16: ADANIPORTS | D16: 386.25 | E16: 386.83 | F16: 382.92 | G16: 379.58 | H16: 375.67 | I16: 390.17 | J16: 394.08 | K16: 397.42 | L16: 390.75 | M16: 383.5 | N16: 32985000 | O16: -4.34%
A17: 7 | B17: Power | C17: ADANIPOWER | D17: 60.95 | E17: 60.78 | F17: 59.82 | G17: 58.68 | H17: 57.72 | I17: 61.92 | J17: 62.88 | K17: 64.02 | L17: 61.75 | M17: 59.65 | N17: 72730000 | O17: 0.28%
A18: 8 | B18: Automobile | C18: AMARAJABAT | D18: 729.35 | E18: 730.53 | F18: 720.37 | G18: 711.38 | H18: 701.22 | I18: 739.52 | J18: 749.68 | K18: 758.67 | L18: 740.7 | M18: 721.55 | N18: 1373600 | O18: -5.03%
A19: 9 | B19: Cement | C19: AMBUJACEM | D19: 200.15 | E19: 200.43 | F19: 197.27 | G19: 194.38 | H19: 191.22 | I19: 203.32 | J19: 206.48 | K19: 209.37 | L19: 203.6 | M19: 197.55 | N19: 18565000 | O19: 4.30%
A20: 10 | B20: Others | C20: APOLLOHOSP | D20: 1484.10 | E20: 1487.78 | F20: 1473.57 | G20: 1463.03 | H20: 1448.82 | I20: 1498.32 | J20: 1512.53 | K20: 1523.07 | L20: 1502 | M20: 1477.25 | N20: 1484000 | O20: -1.56%
A21: 11 | B21: Automobile | C21: APOLLOTYRE | D21: 161.40 | E21: 161.62 | F21: 158.08 | G21: 154.77 | H21: 151.23 | I21: 164.93 | J21: 168.47 | K21: 171.78 | L21: 165.15 | M21: 158.3 | N21: 9912000 | O21: 3.15%
A22: 12 | B22: Automobile | C22: ASHOKLEY | D22: 82.25 | E22: 81.98 | F22: 81.12 | G22: 79.98 | H22: 79.12 | I22: 83.12 | J22: 83.98 | K22: 85.12 | L22: 82.85 | M22: 80.85 | N22: 54240000 | O22: -5.08%
A23: 13 | B23: FMCG | C23: ASIANPAINT | D23: 1733.40 | E23: 1736.08 | F23: 1722.32 | G23: 1711.23 | H23: 1697.47 | I23: 1747.17 | J23: 1760.93 | K23: 1772.02 | L23: 1749.85 | M23: 1725 | N23: 8332800 | O23: 0.46%
A24: 14 | B24: Pharma | C24: AUROPHARMA | D24: 453.65 | E24: 452.92 | F24: 448.73 | G24: 443.82 | H24: 439.63 | I24: 457.83 | J24: 462.02 | K24: 466.93 | L24: 457.1 | M24: 448 | N24: 15914000 | O24: -1.03%
A25: 15 | B25: Banking | C25: AXISBANK | D25: 728.80 | E25: 730.80 | F25: 721.30 | G25: 713.80 | H25: 704.30 | I25: 738.30 | J25: 747.80 | K25: 755.30 | L25: 740.3 | M25: 723.3 | N25: 56577600 | O25: 0.45%
A26: 16 | B26: Automobile | C26: BAJAJ-AUTO | D26: 3055.75 | E26: 3066.50 | F26: 3030.25 | G26: 3004.75 | H26: 2968.50 | I26: 3092.00 | J26: 3128.25 | K26: 3153.75 | L26: 3102.75 | M26: 3041 | N26: 2557750 | O26: -0.60%
A27: 17 | B27: Finance | C27: BAJAJFINSV | D27: 9134.15 | E27: 9186.48 | F27: 9058.67 | G27: 8983.18 | H27: 8855.37 | I27: 9261.97 | J27: 9389.78 | K27: 9465.27 | L27: 9314.3 | M27: 9111 | N27: 1373125 | O27: 1.32%
A28: 18 | B28: Finance | C28: BAJFINANCE | D28: 4029.40 | E28: 4048.20 | F28: 3992.40 | G28: 3955.40 | H28: 3899.60 | I28: 4085.20 | J28: 4141.00 | K28: 4178.00 | L28: 4104 | M28: 4011.2 | N28: 7499000 | O28: 1.27%
A29: 19 | B29: Automobile | C29: BALKRISIND | D29: 971.70 | E29: 977.28 | F29: 962.57 | G29: 953.43 | H29: 938.72 | I29: 986.42 | J29: 1001.13 | K29: 1010.27 | L29: 992 | M29: 968.15 | N29: 1767200 | O29: -3.66%
A30: 20 | B30: Banking | C30: BANKBARODA | D30: 96.35 | E30: 96.52 | F30: 94.73 | G30: 93.12 | H30: 91.33 | I30: 98.13 | J30: 99.92 | K30: 101.53 | L30: 98.3 | M30: 94.9 | N30: 81388800 | O30: 1.95%
A31: 21 | B31: FMCG | C31: BATAINDIA | D31: 1725.80 | E31: 1728.45 | F31: 1712.90 | G31: 1700.00 | H31: 1684.45 | I31: 1741.35 | J31: 1756.90 | K31: 1769.80 | L31: 1744 | M31: 1715.55 | N31: 2109800 | O31: -1.13%
A32: 22 | B32: Capital_Goods | C32: BEL | D32: 96.70 | E32: 97.33 | F32: 95.17 | G32: 93.63 | H32: 91.47 | I32: 98.87 | J32: 101.03 | K32: 102.57 | L32: 99.5 | M32: 95.8 | N32: 33402000 | O32: 0.71%
A33: 23 | B33: FMCG | C33: BERGEPAINT | D33: 493.30 | E33: 495.22 | F33: 488.18 | G33: 483.07 | H33: 476.03 | I33: 500.33 | J33: 507.37 | K33: 512.48 | L33: 502.25 | M33: 490.1 | N33: 9429200 | O33: -0.44%
A34: 24 | B34: Automobile | C34: BHARATFORG | D34: 484.10 | E34: 484.88 | F34: 479.22 | G34: 474.33 | H34: 468.67 | I34: 489.77 | J34: 495.43 | K34: 500.32 | L34: 490.55 | M34: 480 | N34: 8273200 | O34: -2.99%
A35: 25 | B35: Telecom | C35: BHARTIARTL | D35: 446.45 | E35: 449.58 | F35: 442.37 | G35: 438.28 | H35: 431.07 | I35: 453.67 | J35: 460.88 | K35: 464.97 | L35: 456.8 | M35: 445.5 | N35: 40588728 | O35: 1.71%
A36: 26 | B36: Capital_Goods | C36: BHEL | D36: 43.45 | E36: 43.45 | F36: 42.80 | G36: 42.15 | H36: 41.50 | I36: 44.10 | J36: 44.75 | K36: 45.40 | L36: 44.1 | M36: 42.8 | N36: 75462400 | O36: -3.03%
A37: 27 | B37: Pharma | C37: BIOCON | D37: 283.60 | E37: 283.08 | F37: 274.17 | G37: 264.73 | H37: 255.82 | I37: 292.52 | J37: 301.43 | K37: 310.87 | L37: 292 | M37: 273.65 | N37: 12645400 | O37: 12.48%
A38: 28 | B38: Automobile | C38: BOSCHLTD | D38: 14915.40 | E38: 14897.23 | F38: 14749.47 | G38: 14583.53 | H38: 14435.77 | I38: 15063.17 | J38: 15210.93 | K38: 15376.87 | L38: 15045 | M38: 14731.3 | N38: 134120 | O38: 2.85%
A39: 29 | B39: Oil_Gas | C39: BPCL | D39: 463.50 | E39: 467.33 | F39: 457.87 | G39: 452.23 | H39: 442.77 | I39: 472.97 | J39: 482.43 | K39: 488.07 | L39: 476.8 | M39: 461.7 | N39: 30121200 | O39: 2.08%
A40: 30 | B40: FMCG | C40: BRITANNIA | D40: 3051.75 | E40: 3044.73 | F40: 3027.27 | G40: 3002.78 | H40: 2985.32 | I40: 3069.22 | J40: 3086.68 | K40: 3111.17 | L40: 3062.2 | M40: 3020.25 | N40: 2050400 | O40: 0.20%
A41: 31 | B41: Pharma | C41: CADILAHC | D41: 258.45 | E41: 257.95 | F41: 254.60 | G41: 250.75 | H41: 247.40 | I41: 261.80 | J41: 265.15 | K41: 269.00 | L41: 261.3 | M41: 254.1 | N41: 6681400 | O41: -5.51%
A42: 32 | B42: Banking | C42: CANBK | D42: 208.80 | E42: 209.35 | F42: 204.40 | G42: 200.00 | H42: 195.05 | I42: 213.75 | J42: 218.70 | K42: 223.10 | L42: 214.3 | M42: 204.95 | N42: 14378000 | O42: -5.53%
A43: 33 | B43: Oil_Gas | C43: CASTROLIND | D43: 127.30 | E43: 127.20 | F43: 126.20 | G43: 125.10 | H43: 124.10 | I43: 128.30 | J43: 129.30 | K43: 130.40 | L43: 128.2 | M43: 126.1 | N43: 6219700 | O43: -2.13%
A44: 34 | B44: Textile | C44: CENTURYTEX | D44: 478.20 | E44: 476.08 | F44: 472.17 | G44: 466.13 | H44: 462.22 | I44: 482.12 | J44: 486.03 | K44: 492.07 | L44: 480 | M44: 470.05 | N44: 3574800 | O44: 1.52%
A45: 35 | B45: Power | C45: CESC | D45: 730.80 | E45: 731.93 | F45: 722.87 | G45: 714.93 | H45: 705.87 | I45: 739.87 | J45: 748.93 | K45: 756.87 | L45: 741 | M45: 724 | N45: 1407200 | O45: 4.39%
A46: 36 | B46: Finance | C46: CHOLAFIN | D46: 295.55 | E46: 295.45 | F46: 292.20 | G46: 288.85 | H46: 285.60 | I46: 298.80 | J46: 302.05 | K46: 305.40 | L46: 298.7 | M46: 292.1 | N46: 4020000 | O46: -2.55%
A47: 37 | B47: Pharma | C47: CIPLA | D47: 469.70 | E47: 468.48 | F47: 466.02 | G47: 462.33 | H47: 459.87 | I47: 472.17 | J47: 474.63 | K47: 478.32 | L47: 470.95 | M47: 464.8 | N47: 14223200 | O47: -1.14%
A48: 38 | B48: Others | C48: COALINDIA | D48: 204.00 | E48: 203.65 | F48: 202.35 | G48: 200.70 | H48: 199.40 | I48: 205.30 | J48: 206.60 | K48: 208.25 | L48: 204.95 | M48: 202 | N48: 16502400 | O48: -3.31%
A49: 39 | B49: FMCG | C49: COLPAL | D49: 1455.85 | E49: 1453.80 | F49: 1447.10 | G49: 1438.35 | H49: 1431.65 | I49: 1462.55 | J49: 1469.25 | K49: 1478.00 | L49: 1460.5 | M49: 1445.05 | N49: 2685900 | O49: -0.26%
A50: 40 | B50: Others | C50: CONCOR | D50: 559.05 | E50: 561.83 | F50: 554.17 | G50: 549.28 | H50: 541.62 | I50: 566.72 | J50: 574.38 | K50: 579.27 | L50: 569.5 | M50: 556.95 | N50: 5533020 | O50: 1.37%
A51: 41 | B51: Capital_Goods | C51: CUMMINSIND | D51: 575.60 | E51: 577.80 | F51: 570.80 | G51: 566.00 | H51: 559.00 | I51: 582.60 | J51: 589.60 | K51: 594.40 | L51: 584.8 | M51: 573 | N51: 1842300 | O51: -1.40%
A52: 42 | B52: FMCG | C52: DABUR | D52: 454.45 | E52: 453.95 | F52: 450.50 | G52: 446.55 | H52: 443.10 | I52: 457.90 | J52: 461.35 | K52: 465.30 | L52: 457.4 | M52: 450 | N52: 12922500 | O52: -1.39%
A53: 43 | B53: Media | C53: DISHTV | D53: 12.35 | E53: 12.12 | F53: 11.73 | G53: 11.12 | H53: 10.73 | I53: 12.73 | J53: 13.12 | K53: 13.73 | L53: 12.5 | M53: 11.5 | N53: 89351100 | O53: -1.34%
A54: 44 | B54: Pharma | C54: DIVISLAB | D54: 1848.75 | E54: 1848.73 | F54: 1840.47 | G54: 1832.18 | H54: 1823.92 | I54: 1857.02 | J54: 1865.28 | K54: 1873.57 | L54: 1857 | M54: 1840.45 | N54: 2341200 | O54: 0.41%
A55: 45 | B55: Realty | C55: DLF | D55: 226.05 | E55: 225.75 | F55: 223.35 | G55: 220.65 | H55: 218.25 | I55: 228.45 | J55: 230.85 | K55: 233.55 | L55: 228.15 | M55: 223.05 | N55: 33963600 | O55: -1.98%
A56: 46 | B56: Pharma | C56: DRREDDY | D56: 2899.95 | E56: 2900.53 | F56: 2883.17 | G56: 2866.38 | H56: 2849.02 | I56: 2917.32 | J56: 2934.68 | K56: 2951.47 | L56: 2917.9 | M56: 2883.75 | N56: 3006750 | O56: -1.09%
A57: 47 | B57: Automobile | C57: EICHERMOT | D57: 20922.85 | E57: 21058.77 | F57: 20684.18 | G57: 20445.52 | H57: 20070.93 | I57: 21297.43 | J57: 21672.02 | K57: 21910.68 | L57: 21433.35 | M57: 20820.1 | N57: 311730 | O57: 3.61%
A58: 48 | B58: Finance | C58: EQUITAS | D58: 101.70 | E58: 102.50 | F58: 100.30 | G58: 98.90 | H58: 96.70 | I58: 103.90 | J58: 106.10 | K58: 107.50 | L58: 104.7 | M58: 101.1 | N58: 16067100 | O58: 0.24%
A59: 49 | B59: Automobile | C59: ESCORTS | D59: 613.75 | E59: 616.58 | F59: 608.92 | G59: 604.08 | H59: 596.42 | I59: 621.42 | J59: 629.08 | K59: 633.92 | L59: 624.25 | M59: 611.75 | N59: 4716800 | O59: -1.18%
A60: 50 | B60: Automobile | C60: EXIDEIND | D60: 183.45 | E60: 183.98 | F60: 181.47 | G60: 179.48 | H60: 176.97 | I60: 185.97 | J60: 188.48 | K60: 190.47 | L60: 186.5 | M60: 182 | N60: 11849400 | O60: -0.61%
A61: 51 | B61: Banking | C61: FEDERALBNK | D61: 87.55 | E61: 87.87 | F61: 86.43 | G61: 85.32 | H61: 83.88 | I61: 88.98 | J61: 90.42 | K61: 91.53 | L61: 89.3 | M61: 86.75 | N61: 58149000 | O61: 1.18%
A62: 52 | B62: Oil_Gas | C62: GAIL | D62: 124.80 | E62: 124.75 | F62: 123.70 | G62: 122.60 | H62: 121.55 | I62: 125.85 | J62: 126.90 | K62: 128.00 | L62: 125.8 | M62: 123.65 | N62: 49686210 | O62: -0.67%
A63: 53 | B63: Pharma | C63: GLENMARK | D63: 344.70 | E63: 344.98 | F63: 339.52 | G63: 334.33 | H63: 328.87 | I63: 350.17 | J63: 355.63 | K63: 360.82 | L63: 350.45 | M63: 339.8 | N63: 6731200 | O63: 7.11%
A64: 54 | B64: Infrastructure | C64: GMRINFRA | D64: 23.40 | E64: 23.40 | F64: 23.00 | G64: 22.60 | H64: 22.20 | I64: 23.80 | J64: 24.20 | K64: 24.60 | L64: 23.8 | M64: 23 | N64: 172170000 | O64: 4.39%
A65: 55 | B65: FMCG | C65: GODREJCP | D65: 711.70 | E65: 710.67 | F65: 703.13 | G65: 694.57 | H65: 687.03 | I65: 719.23 | J65: 726.77 | K65: 735.33 | L65: 718.2 | M65: 702.1 | N65: 4392000 | O65: -1.91%
A66: 56 | B66: Cement | C66: GRASIM | D66: 746.40 | E66: 746.67 | F66: 738.83 | G66: 731.27 | H66: 723.43 | I66: 754.23 | J66: 762.07 | K66: 769.63 | L66: 754.5 | M66: 739.1 | N66: 23089500 | O66: 0.52%
A67: 57 | B67: Others | C67: HAVELLS | D67: 643.85 | E67: 648.23 | F67: 637.67 | G67: 631.48 | H67: 620.92 | I67: 654.42 | J67: 664.98 | K67: 671.17 | L67: 658.8 | M67: 642.05 | N67: 5551000 | O67: 3.45%
A68: 58 | B68: Technology | C68: HCLTECH | D68: 586.25 | E68: 585.38 | F68: 581.02 | G68: 575.78 | H68: 571.42 | I68: 590.62 | J68: 594.98 | K68: 600.22 | L68: 589.75 | M68: 580.15 | N68: 23011800 | O68: 0.27%
A69: 59 | B69: Finance | C69: HDFC | D69: 2423.65 | E69: 2417.87 | F69: 2397.23 | G69: 2370.82 | H69: 2350.18 | I69: 2444.28 | J69: 2464.92 | K69: 2491.33 | L69: 2438.5 | M69: 2391.45 | N69: 31104250 | O69: -0.40%
A70: 60 | B70: Banking | C70: HDFCBANK | D70: 1264.50 | E70: 1265.05 | F70: 1255.45 | G70: 1246.40 | H70: 1236.80 | I70: 1274.10 | J70: 1283.70 | K70: 1292.75 | L70: 1274.65 | M70: 1256 | N70: 32681500 | O70: 3.52%
A71: 61 | B71: Automobile | C71: HEROMOTOCO | D71: 2361.65 | E71: 2372.70 | F71: 2339.40 | G71: 2317.15 | H71: 2283.85 | I71: 2394.95 | J71: 2428.25 | K71: 2450.50 | L71: 2406 | M71: 2350.45 | N71: 4115200 | O71: 3.14%
A72: 62 | B72: Metals | C72: HINDALCO | D72: 210.05 | E72: 211.03 | F72: 207.72 | G72: 205.38 | H72: 202.07 | I72: 213.37 | J72: 216.68 | K72: 219.02 | L72: 214.35 | M72: 208.7 | N72: 41513500 | O72: 6.34%
A73: 63 | B73: Oil_Gas | C73: HINDPETRO | D73: 242.95 | E73: 245.88 | F73: 237.27 | G73: 231.58 | H73: 222.97 | I73: 251.57 | J73: 260.18 | K73: 265.87 | L73: 254.5 | M73: 240.2 | N73: 18988200 | O73: 4.70%
A74: 64 | B74: FMCG | C74: HINDUNILVR | D74: 1931.75 | E74: 1932.98 | F74: 1926.17 | G74: 1920.58 | H74: 1913.77 | I74: 1938.57 | J74: 1945.38 | K74: 1950.97 | L74: 1939.8 | M74: 1927.4 | N74: 10350000 | O74: 0.30%
A75: 65 | B75: Finance | C75: IBULHSGFIN | D75: 306.90 | E75: 307.92 | F75: 300.28 | G75: 293.67 | H75: 286.03 | I75: 314.53 | J75: 322.17 | K75: 328.78 | L75: 315.55 | M75: 301.3 | N75: 21378000 | O75: 0.72%
A76: 66 | B76: Banking | C76: ICICIBANK | D76: 526.05 | E76: 529.35 | F76: 521.00 | G76: 515.95 | H76: 507.60 | I76: 534.40 | J76: 542.75 | K76: 547.80 | L76: 537.7 | M76: 524.3 | N76: 105924500 | O76: 3.28%
A77: 67 | B77: Finance | C77: ICICIPRULI | D77: 478.35 | E77: 480.50 | F77: 474.80 | G77: 471.25 | H77: 465.55 | I77: 484.05 | J77: 489.75 | K77: 493.30 | L77: 486.2 | M77: 476.95 | N77: 10831500 | O77: 0.04%
A78: 68 | B78: Telecom | C78: IDEA | D78: 6.00 | E78: 6.05 | F78: 5.90 | G78: 5.80 | H78: 5.65 | I78: 6.15 | J78: 6.30 | K78: 6.40 | L78: 6.2 | M78: 5.95 | N78: 385238000 | O78: -0.38%
A79: 69 | B79: Banking | C79: IDFCFIRSTB | D79: 43.70 | E79: 43.92 | F79: 42.98 | G79: 42.27 | H79: 41.33 | I79: 44.63 | J79: 45.57 | K79: 46.28 | L79: 44.85 | M79: 43.2 | N79: 206016000 | O79: 1.93%
A80: 70 | B80: Oil_Gas | C80: IGL | D80: 414.80 | E80: 415.68 | F80: 412.37 | G80: 409.93 | H80: 406.62 | I80: 418.12 | J80: 421.43 | K80: 423.87 | L80: 419 | M80: 413.25 | N80: 8610250 | O80: 0.48%
A81: 71 | B81: Others | C81: INDIGO | D81: 1366.60 | E81: 1359.68 | F81: 1343.67 | G81: 1320.73 | H81: 1304.72 | I81: 1382.62 | J81: 1398.63 | K81: 1421.57 | L81: 1375.7 | M81: 1336.75 | N81: 3308700 | O81: -3.41%
A82: 72 | B82: Banking | C82: INDUSINDBK | D82: 1468.35 | E82: 1476.28 | F82: 1439.62 | G82: 1410.88 | H82: 1374.22 | I82: 1505.02 | J82: 1541.68 | K82: 1570.42 | L82: 1512.95 | M82: 1447.55 | N82: 11036800 | O82: 5.33%
A83: 73 | B83: Telecom | C83: INFRATEL | D83: 237.50 | E83: 239.77 | F83: 234.28 | G83: 231.07 | H83: 225.58 | I83: 242.98 | J83: 248.47 | K83: 251.68 | L83: 245.25 | M83: 236.55 | N83: 13186000 | O83: 2.14%
A84: 74 | B84: Technology | C84: INFY | D84: 729.35 | E84: 733.93 | F84: 721.92 | G84: 714.48 | H84: 702.47 | I84: 741.37 | J84: 753.38 | K84: 760.82 | L84: 745.95 | M84: 726.5 | N84: 29644800 | O84: 1.76%
A85: 75 | B85: Oil_Gas | C85: IOC | D85: 123.80 | E85: 124.13 | F85: 122.27 | G85: 120.73 | H85: 118.87 | I85: 125.67 | J85: 127.53 | K85: 129.07 | L85: 126 | M85: 122.6 | N85: 35172000 | O85: 1.28%
A86: 76 | B86: FMCG | C86: ITC | D86: 236.70 | E86: 237.10 | F86: 235.50 | G86: 234.30 | H86: 232.70 | I86: 238.30 | J86: 239.90 | K86: 241.10 | L86: 238.7 | M86: 235.9 | N86: 127214400 | O86: 0.55%
A87: 77 | B87: Metals | C87: JINDALSTEL | D87: 168.25 | E87: 169.20 | F87: 165.70 | G87: 163.15 | H87: 159.65 | I87: 171.75 | J87: 175.25 | K87: 177.80 | L87: 172.7 | M87: 166.65 | N87: 25090000 | O87: 0.70%
A88: 78 | B88: Metals | C88: JSWSTEEL | D88: 265.75 | E88: 266.78 | F88: 262.82 | G88: 259.88 | H88: 255.92 | I88: 269.72 | J88: 273.68 | K88: 276.62 | L88: 270.75 | M88: 263.85 | N88: 51952400 | O88: -0.29%
A89: 79 | B89: Others | C89: JUBLFOOD | D89: 1692.15 | E89: 1693.27 | F89: 1683.88 | G89: 1675.62 | H89: 1666.23 | I89: 1701.53 | J89: 1710.92 | K89: 1719.18 | L89: 1702.65 | M89: 1685 | N89: 2711000 | O89: 4.47%
A90: 80 | B90: Others | C90: JUSTDIAL | D90: 552.70 | E90: 554.53 | F90: 546.57 | G90: 540.43 | H90: 532.47 | I90: 560.67 | J90: 568.63 | K90: 574.77 | L90: 562.5 | M90: 548.4 | N90: 2296000 | O90: -0.49%
A91: 81 | B91: Banking | C91: KOTAKBANK | D91: 1674.55 | E91: 1669.25 | F91: 1660.40 | G91: 1646.25 | H91: 1637.40 | I91: 1683.40 | J91: 1692.25 | K91: 1706.40 | L91: 1678.1 | M91: 1655.1 | N91: 8575200 | O91: 0.91%
A92: 82 | B92: Finance | C92: L&TFH | D92: 115.10 | E92: 114.98 | F92: 113.07 | G92: 111.03 | H92: 109.12 | I92: 117.02 | J92: 118.93 | K92: 120.97 | L92: 116.9 | M92: 112.95 | N92: 34081600 | O92: 3.54%
A93: 83 | B93: Finance | C93: LICHSGFIN | D93: 421.25 | E93: 422.50 | F93: 417.10 | G93: 412.95 | H93: 407.55 | I93: 426.65 | J93: 432.05 | K93: 436.20 | L93: 427.9 | M93: 418.35 | N93: 10572900 | O93: 2.17%
A94: 84 | B94: Capital_Goods | C94: LT | D94: 1328.10 | E94: 1330.62 | F94: 1316.58 | G94: 1305.07 | H94: 1291.03 | I94: 1342.13 | J94: 1356.17 | K94: 1367.68 | L94: 1344.65 | M94: 1319.1 | N94: 20486250 | O94: 0.05%
A95: 85 | B95: Pharma | C95: LUPIN | D95: 762.15 | E95: 764.65 | F95: 754.35 | G95: 746.55 | H95: 736.25 | I95: 772.45 | J95: 782.75 | K95: 790.55 | L95: 774.95 | M95: 756.85 | N95: 7598500 | O95: 1.85%
A96: 86 | B96: Automobile | C96: M&M | D96: 528.40 | E96: 528.73 | F96: 524.17 | G96: 519.93 | H96: 515.37 | I96: 532.97 | J96: 537.53 | K96: 541.77 | L96: 533.3 | M96: 524.5 | N96: 23623000 | O96: 0.00%
A97: 87 | B97: Finance | C97: M&MFIN | D97: 324.30 | E97: 325.10 | F97: 320.50 | G97: 316.70 | H97: 312.10 | I97: 328.90 | J97: 333.50 | K97: 337.30 | L97: 329.7 | M97: 321.3 | N97: 16161600 | O97: 0.80%
A98: 88 | B98: Finance | C98: MANAPPURAM | D98: 175.35 | E98: 174.88 | F98: 173.02 | G98: 170.68 | H98: 168.82 | I98: 177.22 | J98: 179.08 | K98: 181.42 | L98: 176.75 | M98: 172.55 | N98: 18936000 | O98: -0.32%
A99: 89 | B99: FMCG | C99: MARICO | D99: 333.90 | E99: 334.27 | F99: 331.18 | G99: 328.47 | H99: 325.38 | I99: 336.98 | J99: 340.07 | K99: 342.78 | L99: 337.35 | M99: 331.55 | N99: 13100100 | O99: -0.44%
A100: 90 | B100: Automobile | C100: MARUTI | D100: 7113.85 | E100: 7122.77 | F100: 7046.08 | G100: 6978.32 | H100: 6901.63 | I100: 7190.53 | J100: 7267.22 | K100: 7334.98 | L100: 7199.45 | M100: 7055 | N100: 3166700 | O100: 0.07%
A101: 91 | B101: FMCG | C101: MCDOWELL-N | D101: 567.00 | E101: 569.43 | F101: 562.97 | G101: 558.93 | H101: 552.47 | I101: 573.47 | J101: 579.93 | K101: 583.97 | L101: 575.9 | M101: 565.4 | N101: 13380000 | O101: 2.15%
A102: 92 | B102: Finance | C102: MFSL | D102: 560.65 | E102: 560.88 | F102: 555.77 | G102: 550.88 | H102: 545.77 | I102: 565.77 | J102: 570.88 | K102: 575.77 | L102: 566 | M102: 556 | N102: 10648300 | O102: -2.09%
A103: 93 | B103: Oil_Gas | C103: MGL | D103: 1046.95 | E103: 1051.85 | F103: 1035.70 | G103: 1024.45 | H103: 1008.30 | I103: 1063.10 | J103: 1079.25 | K103: 1090.50 | L103: 1068 | M103: 1040.6 | N103: 1981200 | O103: 6.62%
A104: 94 | B104: Technology | C104: MINDTREE | D104: 839.40 | E104: 833.75 | F104: 825.85 | G104: 812.30 | H104: 804.40 | I104: 847.30 | J104: 855.20 | K104: 868.75 | L104: 841.65 | M104: 820.2 | N104: 1455200 | O104: 6.94%
A105: 95 | B105: Automobile | C105: MOTHERSUMI | D105: 145.20 | E105: 145.30 | F105: 143.35 | G105: 141.50 | H105: 139.55 | I105: 147.15 | J105: 149.10 | K105: 150.95 | L105: 147.25 | M105: 143.45 | N105: 31515000 | O105: 0.38%
A106: 96 | B106: Automobile | C106: MRF | D106: 65678.85 | E106: 65956.27 | F106: 65162.58 | G106: 64646.32 | H106: 63852.63 | I106: 66472.53 | J106: 67266.22 | K106: 67782.48 | L106: 66749.95 | M106: 65440 | N106: 18240 | O106: -1.51%
A107: 97 | B107: Finance | C107: MUTHOOTFIN | D107: 754.35 | E107: 757.38 | F107: 745.97 | G107: 737.58 | H107: 726.17 | I107: 765.77 | J107: 777.18 | K107: 785.57 | L107: 768.8 | M107: 749 | N107: 3831000 | O107: 2.49%
A108: 98 | B108: Metals | C108: NATIONALUM | D108: 44.10 | E108: 44.17 | F108: 43.33 | G108: 42.57 | H108: 41.73 | I108: 44.93 | J108: 45.77 | K108: 46.53 | L108: 45 | M108: 43.4 | N108: 47268000 | O108: -2.27%
A109: 99 | B109: Infrastructure | C109: NBCC | D109: 34.75 | E109: 34.85 | F109: 33.90 | G109: 33.05 | H109: 32.10 | I109: 35.70 | J109: 36.65 | K109: 37.50 | L109: 35.8 | M109: 34 | N109: 35664200 | O109: -1.11%
A110: 100 | B110: Infrastructure | C110: NCC | D110: 55.60 | E110: 55.73 | F110: 54.27 | G110: 52.93 | H110: 51.47 | I110: 57.07 | J110: 58.53 | K110: 59.87 | L110: 57.2 | M110: 54.4 | N110: 43272000 | O110: -0.46%
A111: 101 | B111: FMCG | C111: NESTLEIND | D111: 14371.25 | E111: 14423.13 | F111: 14249.57 | G111: 14127.88 | H111: 13954.32 | I111: 14544.82 | J111: 14718.38 | K111: 14840.07 | L111: 14596.7 | M111: 14301.45 | N111: 456700 | O111: 4.22%
A112: 102 | B112: Technology | C112: NIITTECH | D112: 1652.80 | E112: 1652.37 | F112: 1640.93 | G112: 1629.07 | H112: 1617.63 | I112: 1664.23 | J112: 1675.67 | K112: 1687.53 | L112: 1663.8 | M112: 1640.5 | N112: 648375 | O112: 3.59%
A113: 103 | B113: Metals | C113: NMDC | D113: 128.55 | E113: 128.22 | F113: 125.18 | G113: 121.82 | H113: 118.78 | I113: 131.58 | J113: 134.62 | K113: 137.98 | L113: 131.25 | M113: 124.85 | N113: 25944000 | O113: 5.46%
A114: 104 | B114: Power | C114: NTPC | D114: 120.30 | E114: 119.95 | F114: 118.90 | G114: 117.50 | H114: 116.45 | I114: 121.35 | J114: 122.40 | K114: 123.80 | L114: 121 | M114: 118.55 | N114: 30340800 | O114: -1.70%
A115: 105 | B115: Oil_Gas | C115: OIL | D115: 154.65 | E115: 154.23 | F115: 153.52 | G115: 152.38 | H115: 151.67 | I115: 155.37 | J115: 156.08 | K115: 157.22 | L115: 154.95 | M115: 153.1 | N115: 5095101 | O115: -1.38%
A116: 106 | B116: Oil_Gas | C116: ONGC | D116: 125.85 | E116: 126.13 | F116: 125.07 | G116: 124.28 | H116: 123.22 | I116: 126.92 | J116: 127.98 | K116: 128.77 | L116: 127.2 | M116: 125.35 | N116: 39585500 | O116: -0.79%
A117: 107 | B117: Textile | C117: PAGEIND | D117: 22844.80 | E117: 22874.75 | F117: 22549.50 | G117: 22254.20 | H117: 21928.95 | I117: 23170.05 | J117: 23495.30 | K117: 23790.60 | L117: 23200 | M117: 22579.45 | N117: 129700 | O117: 0.84%
A118: 108 | B118: Pharma | C118: PEL | D118: 1477.05 | E118: 1478.70 | F118: 1452.95 | G118: 1428.85 | H118: 1403.10 | I118: 1502.80 | J118: 1528.55 | K118: 1552.65 | L118: 1504.45 | M118: 1454.6 | N118: 4457634 | O118: 0.78%
A119: 109 | B119: Oil_Gas | C119: PETRONET | D119: 271.55 | E119: 270.43 | F119: 268.27 | G119: 264.98 | H119: 262.82 | I119: 273.72 | J119: 275.88 | K119: 279.17 | L119: 272.6 | M119: 267.15 | N119: 18849000 | O119: -1.49%
A120: 110 | B120: Finance | C120: PFC | D120: 117.05 | E120: 116.67 | F120: 114.38 | G120: 111.72 | H120: 109.43 | I120: 119.33 | J120: 121.62 | K120: 124.28 | L120: 118.95 | M120: 114 | N120: 23473200 | O120: -3.02%
A121: 111 | B121: FMCG | C121: PIDILITIND | D121: 1407.60 | E121: 1410.47 | F121: 1386.23 | G121: 1364.87 | H121: 1340.63 | I121: 1431.83 | J121: 1456.07 | K121: 1477.43 | L121: 1434.7 | M121: 1389.1 | N121: 3061500 | O121: 0.62%
A122: 112 | B122: Banking | C122: PNB | D122: 62.05 | E122: 62.17 | F122: 60.93 | G122: 59.82 | H122: 58.58 | I122: 63.28 | J122: 64.52 | K122: 65.63 | L122: 63.4 | M122: 61.05 | N122: 117710600 | O122: 1.49%
A123: 113 | B123: Power | C123: POWERGRID | D123: 192.10 | E123: 192.67 | F123: 190.93 | G123: 189.77 | H123: 188.03 | I123: 193.83 | J123: 195.57 | K123: 196.73 | L123: 194.4 | M123: 191.5 | N123: 15992000 | O123: 3.84%
A124: 114 | B124: Media | C124: PVR | D124: 1872.80 | E124: 1875.52 | F124: 1857.63 | G124: 1842.47 | H124: 1824.58 | I124: 1890.68 | J124: 1908.57 | K124: 1923.73 | L124: 1893.4 | M124: 1860.35 | N124: 1389600 | O124: 2.57%
A125: 115 | B125: Cement | C125: RAMCOCEM | D125: 790.90 | E125: 781.60 | F125: 768.90 | G125: 746.90 | H125: 734.20 | I125: 803.60 | J125: 816.30 | K125: 838.30 | L125: 794.3 | M125: 759.6 | N125: 1012800 | O125: -6.64%
A126: 116 | B126: Banking | C126: RBLBANK | D126: 343.15 | E126: 344.32 | F126: 337.58 | G126: 332.02 | H126: 325.28 | I126: 349.88 | J126: 356.62 | K126: 362.18 | L126: 351.05 | M126: 338.75 | N126: 15730500 | O126: 8.07%
A127: 117 | B127: Power | C127: RECLTD | D127: 141.55 | E127: 141.78 | F127: 139.07 | G127: 136.58 | H127: 133.87 | I127: 144.27 | J127: 146.98 | K127: 149.47 | L127: 144.5 | M127: 139.3 | N127: 18504000 | O127: 0.95%
A128: 118 | B128: Oil_Gas | C128: RELIANCE | D128: 1533.15 | E128: 1531.48 | F128: 1522.17 | G128: 1511.18 | H128: 1501.87 | I128: 1542.47 | J128: 1551.78 | K128: 1562.77 | L128: 1540.8 | M128: 1520.5 | N128: 54688000 | O128: 0.15%
A129: 119 | B129: Metals | C129: SAIL | D129: 45.80 | E129: 45.78 | F129: 45.07 | G129: 44.33 | H129: 43.62 | I129: 46.52 | J129: 47.23 | K129: 47.97 | L129: 46.5 | M129: 45.05 | N129: 81373100 | O129: 1.59%
A130: 120 | B130: Banking | C130: SBIN | D130: 320.15 | E130: 321.72 | F130: 315.53 | G130: 310.92 | H130: 304.73 | I130: 326.33 | J130: 332.52 | K130: 337.13 | L130: 327.9 | M130: 317.1 | N130: 113295000 | O130: 5.11%
A131: 121 | B131: Cement | C131: SHREECEM | D131: 21987.00 | E131: 21744.90 | F131: 21420.80 | G131: 20854.60 | H131: 20530.50 | I131: 22311.10 | J131: 22635.20 | K131: 23201.40 | L131: 22069 | M131: 21178.7 | N131: 138200 | O131: 2.33%
A132: 122 | B132: Capital_Goods | C132: SIEMENS | D132: 1486.35 | E132: 1486.37 | F132: 1475.18 | G132: 1464.02 | H132: 1452.83 | I132: 1497.53 | J132: 1508.72 | K132: 1519.88 | L132: 1497.55 | M132: 1475.2 | N132: 2267100 | O132: -2.18%
A133: 123 | B133: Textile | C133: SRF | D133: 3436.20 | E133: 3434.70 | F133: 3404.45 | G133: 3372.70 | H133: 3342.45 | I133: 3466.45 | J133: 3496.70 | K133: 3528.45 | L133: 3464.95 | M133: 3402.95 | N133: 730250 | O133: 0.52%
A134: 124 | B134: Finance | C134: SRTRANSFIN | D134: 1130.40 | E134: 1134.48 | F134: 1112.77 | G134: 1095.13 | H134: 1073.42 | I134: 1152.12 | J134: 1173.83 | K134: 1191.47 | L134: 1156.2 | M134: 1116.85 | N134: 3976200 | O134: -0.63%
A135: 125 | B135: Pharma | C135: SUNPHARMA | D135: 447.60 | E135: 445.28 | F135: 441.77 | G135: 435.93 | H135: 432.42 | I135: 451.12 | J135: 454.63 | K135: 460.47 | L135: 448.8 | M135: 439.45 | N135: 62552500 | O135: -0.12%
A136: 126 | B136: Media | C136: SUNTV | D136: 425.40 | E136: 428.32 | F136: 420.68 | G136: 415.97 | H136: 408.33 | I136: 433.03 | J136: 440.67 | K136: 445.38 | L136: 435.95 | M136: 423.6 | N136: 4664400 | O136: 0.05%
A137: 127 | B137: Fertilisers | C137: TATACHEM | D137: 668.65 | E137: 669.83 | F137: 663.52 | G137: 658.38 | H137: 652.07 | I137: 674.97 | J137: 681.28 | K137: 686.42 | L137: 676.15 | M137: 664.7 | N137: 2792700 | O137: 1.11%
A138: 128 | B138: FMCG | C138: TATAGLOBAL | D138: 316.35 | E138: 316.68 | F138: 312.77 | G138: 309.18 | H138: 305.27 | I138: 320.27 | J138: 324.18 | K138: 327.77 | L138: 320.6 | M138: 313.1 | N138: 10041300 | O138: -2.03%
A139: 129 | B139: Automobile | C139: TATAMOTORS | D139: 185.65 | E139: 186.08 | F139: 182.27 | G139: 178.88 | H139: 175.07 | I139: 189.47 | J139: 193.28 | K139: 196.67 | L139: 189.9 | M139: 182.7 | N139: 64336600 | O139: -1.04%
A140: 130 | B140: Automobile | C140: TATAMTRDVR | D140: 76.30 | E140: 76.22 | F140: 74.38 | G140: 72.47 | H140: 70.63 | I140: 78.13 | J140: 79.97 | K140: 81.88 | L140: 78.05 | M140: 74.3 | N140: 31942400 | O140: -1.14%
A141: 131 | B141: Power | C141: TATAPOWER | D141: 56.85 | E141: 56.93 | F141: 56.12 | G141: 55.38 | H141: 54.57 | I141: 57.67 | J141: 58.48 | K141: 59.22 | L141: 57.75 | M141: 56.2 | N141: 74187000 | O141: -0.11%
A142: 132 | B142: Metals | C142: TATASTEEL | D142: 478.20 | E142: 479.98 | F142: 473.32 | G142: 468.43 | H142: 461.77 | I142: 484.87 | J142: 491.53 | K142: 496.42 | L142: 486.65 | M142: 475.1 | N142: 22336500 | O142: 0.66%
A143: 133 | B143: Technology | C143: TCS | D143: 2212.50 | E143: 2206.45 | F143: 2193.10 | G143: 2173.70 | H143: 2160.35 | I143: 2225.85 | J143: 2239.20 | K143: 2258.60 | L143: 2219.8 | M143: 2187.05 | N143: 16712000 | O143: 0.30%
A144: 134 | B144: Technology | C144: TECHM | D144: 780.75 | E144: 775.67 | F144: 769.33 | G144: 757.92 | H144: 751.58 | I144: 787.08 | J144: 793.42 | K144: 804.83 | L144: 782 | M144: 764.25 | N144: 16304400 | O144: 1.87%
A145: 135 | B145: FMCG | C145: TITAN | D145: 1166.45 | E145: 1166.62 | F145: 1157.93 | G145: 1149.42 | H145: 1140.73 | I145: 1175.13 | J145: 1183.82 | K145: 1192.33 | L145: 1175.3 | M145: 1158.1 | N145: 11046000 | O145: -1.54%
A146: 136 | B146: Pharma | C146: TORNTPHARM | D146: 1882.75 | E146: 1891.10 | F146: 1867.20 | G146: 1851.65 | H146: 1827.75 | I146: 1906.65 | J146: 1930.55 | K146: 1946.10 | L146: 1915 | M146: 1875.55 | N146: 243500 | O146: 0.62%
A147: 137 | B147: Power | C147: TORNTPOWER | D147: 288.55 | E147: 287.55 | F147: 285.50 | G147: 282.45 | H147: 280.40 | I147: 290.60 | J147: 292.65 | K147: 295.70 | L147: 289.6 | M147: 284.5 | N147: 3627000 | O147: 0.75%
A148: 138 | B148: Automobile | C148: TVSMOTOR | D148: 440.40 | E148: 440.48 | F148: 434.62 | G148: 428.83 | H148: 422.97 | I148: 446.27 | J148: 452.13 | K148: 457.92 | L148: 446.35 | M148: 434.7 | N148: 6349050 | O148: 4.51%
A149: 139 | B149: FMCG | C149: UBL | D149: 1273.80 | E149: 1278.78 | F149: 1265.62 | G149: 1257.43 | H149: 1244.27 | I149: 1286.97 | J149: 1300.13 | K149: 1308.32 | L149: 1291.95 | M149: 1270.6 | N149: 1434300 | O149: 3.28%
A150: 140 | B150: Finance | C150: UJJIVAN | D150: 334.65 | E150: 335.23 | F150: 328.47 | G150: 322.28 | H150: 315.52 | I150: 341.42 | J150: 348.18 | K150: 354.37 | L150: 342 | M150: 329.05 | N150: 7250500 | O150: -3.16%
A151: 141 | B151: Cement | C151: ULTRACEMCO | D151: 4265.45 | E151: 4239.15 | F151: 4201.30 | G151: 4137.15 | H151: 4099.30 | I151: 4303.30 | J151: 4341.15 | K151: 4405.30 | L151: 4277 | M151: 4175 | N151: 2537800 | O151: 1.02%
A152: 142 | B152: Fertilisers | C152: UPL | D152: 597.40 | E152: 596.12 | F152: 586.28 | G152: 575.17 | H152: 565.33 | I152: 607.23 | J152: 617.07 | K152: 628.18 | L152: 605.95 | M152: 585 | N152: 13240800 | O152: 2.12%
A153: 143 | B153: Metals | C153: VEDL | D153: 156.45 | E153: 155.43 | F153: 153.57 | G153: 150.68 | H153: 148.82 | I153: 158.32 | J153: 160.18 | K153: 163.07 | L153: 157.3 | M153: 152.55 | N153: 75617500 | O153: -1.99%
A154: 144 | B154: Capital_Goods | C154: VOLTAS | D154: 658.20 | E154: 658.10 | F154: 652.80 | G154: 647.40 | H154: 642.10 | I154: 663.50 | J154: 668.80 | K154: 674.20 | L154: 663.4 | M154: 652.7 | N154: 3392000 | O154: -0.35%
A155: 145 | B155: Technology | C155: WIPRO | D155: 255.50 | E155: 254.25 | F155: 251.85 | G155: 248.20 | H155: 245.80 | I155: 257.90 | J155: 260.30 | K155: 263.95 | L155: 256.65 | M155: 250.6 | N155: 19984000 | O155: 1.45%
A156: 146 | B156: Banking | C156: YESBANK | D156: 43.05 | E156: 43.08 | F156: 41.57 | G156: 40.08 | H156: 38.57 | I156: 44.57 | J156: 46.08 | K156: 47.57 | L156: 44.6 | M156: 41.6 | N156: 262292800 | O156: -0.28%
A157: 147 | B157: Media | C157: ZEEL | D157: 269.10 | E157: 268.68 | F157: 265.07 | G157: 261.03 | H157: 257.42 | I157: 272.72 | J157: 276.33 | K157: 280.37 | L157: 272.3 | M157: 264.65 | N157: 31484000 | O157: 2.46%
A175: Pivot Point: This is trigger point for intra day buy/sell based on the price range of the previous day
A176: As per the tool,the trader should take BUY position just above Pivot and keep the stop loss of pivot point and the first target would be Resistance 1(R1)
A177: If R1 is crossed then R2 becomes the next target with stop loss of at R1
A178: Similarly if price goes below pivot point then the trader should sell and keep a stop loss of pivot point and the first target would be S1
A179: If S1 is crossed then S2 becomes the next target with stop loss of at S1
A181: Disclaimer:
A182: This document has been prepared by the Retail Research Desk of Asit C Mehta
A183: Investment Intermediates Ltd. and is meant for use of the recipient only
A184: and is not for circulation. This document is not to be reported or
A185: copied or made available to others. It should not be considered to be
A186: taken as an offer to sell or a solicitation to buy any security. The
A187: information contained herein is from sources believed reliable. We do
A188: not represent that it is accurate or complete and it should not be
A189: relied upon as such. We may from time to time have positions in and buy
A190: and sell securities referred to herein

Sheet Cash Intra
M5: Back to Main Page
A6: FOR INTRA DAY TRADING | K6: =Main!B10 -> 2020-01-08
A8: Sr.no | B8: Scrip | C8: CLOSE RATE | D8: Pivot Point | E8: Supports | H8: Resistances
C9: Point | E9: S1 | F9: S2 | G9: S3 | H9: R1 | I9: R2 | J9: R3 | K9: HIGH | L9: LOW | M9: Total Trade Quanity in Lakhs
A10: 1 | B10: Nifty 50 | C10: 12052.95 | D10: 12070.15 | E10: 11988.15 | F10: 11923.35 | G10: 11841.35 | H10: 12134.95 | I10: 12216.95 | J10: 12281.75 | K10: 12152.15 | L10: 12005.35
A11: 2 | B11: Nifty Bank | C11: 31399.4 | D11: 31483.92 | E11: 31116.38 | F11: 30833.37 | G11: 30465.83 | H11: 31766.93 | I11: 32134.47 | J11: 32417.48 | K11: 31851.45 | L11: 31200.9
A12: 3 | B12: Nifty CPSE | C12: 1912.75 | D12: 1916.27 | E12: 1902.78 | F12: 1892.82 | G12: 1879.33 | H12: 1926.23 | I12: 1939.72 | J12: 1949.68 | K12: 1929.75 | L12: 1906.3
A13: 4 | B13: Nifty Infra | C13: 3256.7 | D13: 3260.63 | E13: 3236.72 | F13: 3216.73 | G13: 3192.82 | H13: 3280.62 | I13: 3304.53 | J13: 3324.52 | K13: 3284.55 | L13: 3240.65
A14: 5 | B14: Nifty IT | C14: 15895.2 | D14: 15894.57 | E14: 15800.43 | F14: 15705.67 | G14: 15611.53 | H14: 15989.33 | I14: 16083.47 | J14: 16178.23 | K14: 15988.7 | L14: 15799.8
A15: 6 | B15: Nifty PSE | C15: 3185.3 | D15: 3193.23 | E15: 3167.17 | F15: 3149.03 | G15: 3122.97 | H15: 3211.37 | I15: 3237.43 | J15: 3255.57 | K15: 3219.3 | L15: 3175.1
A16: 7 | B16: Nifty Midcap 50 | C16: 4674.65 | D16: 4681.58 | E16: 4640.62 | F16: 4606.58 | G16: 4565.62 | H16: 4715.62 | I16: 4756.58 | J16: 4790.62 | K16: 4722.55 | L16: 4647.55
A17: 8 | B17: ACC | C17: 1456 | D17: 1452.35 | E17: 1439.65 | F17: 1423.30 | G17: 1410.60 | H17: 1468.70 | I17: 1481.40 | J17: 1497.75 | K17: 1465.05 | L17: 1436 | M17: 8.63805
A18: 9 | B18: AUBANK | C18: 800.7 | D18: 798.92 | E18: 789.78 | F18: 778.87 | G18: 769.73 | H18: 809.83 | I18: 818.97 | J18: 829.88 | K18: 808.05 | L18: 788 | M18: 28.46702
A19: 10 | B19: ADANIPORTS | C19: 384.8 | D19: 385.65 | E19: 381.55 | F19: 378.30 | G19: 374.20 | H19: 388.90 | I19: 393.00 | J19: 396.25 | K19: 389.75 | L19: 382.4 | M19: 80.91465
A20: 11 | B20: ADANIPOWER | C20: 61 | D20: 60.80 | E20: 59.85 | F20: 58.70 | G20: 57.75 | H20: 61.95 | I20: 62.90 | J20: 64.05 | K20: 61.75 | L20: 59.65 | M20: 87.0402
A21: 12 | B21: ABCAPITAL | C21: 102.35 | D21: 102.78 | E21: 101.07 | F21: 99.78 | G21: 98.07 | H21: 104.07 | I21: 105.78 | J21: 107.07 | K21: 104.5 | L21: 101.5 | M21: 19.32133
A22: 13 | B22: ABFRL | C22: 232.35 | D22: 234.18 | E22: 228.42 | F22: 224.48 | G22: 218.72 | H22: 238.12 | I22: 243.88 | J22: 247.82 | K22: 239.95 | L22: 230.25 | M22: 3.03954
A23: 14 | B23: AJANTPHARM | C23: 1006.5 | D23: 994.23 | E23: 978.47 | F23: 950.43 | G23: 934.67 | H23: 1022.27 | I23: 1038.03 | J23: 1066.07 | K23: 1010 | L23: 966.2 | M23: 1.13527
A24: 15 | B24: ALKEM | C24: 2117.15 | D24: 2111.43 | E24: 2097.87 | F24: 2078.58 | G24: 2065.02 | H24: 2130.72 | I24: 2144.28 | J24: 2163.57 | K24: 2125 | L24: 2092.15 | M24: 3.60489
A25: 16 | B25: AMARAJABAT | C25: 726.25 | D25: 726.78 | E25: 716.57 | F25: 706.88 | G25: 696.67 | H25: 736.47 | I25: 746.68 | J25: 756.37 | K25: 737 | L25: 717.1 | M25: 8.13022
A26: 17 | B26: AMBUJACEM | C26: 199 | D26: 199.42 | E26: 196.28 | F26: 193.57 | G26: 190.43 | H26: 202.13 | I26: 205.27 | J26: 207.98 | K26: 202.55 | L26: 196.7 | M26: 35.57312
A27: 18 | B27: APOLLOHOSP | C27: 1478.7 | D27: 1483.40 | E27: 1467.85 | F27: 1457.00 | G27: 1441.45 | H27: 1494.25 | I27: 1509.80 | J27: 1520.65 | K27: 1498.95 | L27: 1472.55 | M27: 3.65266
A28: 19 | B28: APOLLOTYRE | C28: 161.25 | D28: 161.70 | E28: 158.00 | F28: 154.75 | G28: 151.05 | H28: 164.95 | I28: 168.65 | J28: 171.90 | K28: 165.4 | L28: 158.45 | M28: 26.54726
A29: 20 | B29: ASHOKLEY | C29: 82.1 | D29: 81.72 | E29: 80.98 | F29: 79.87 | G29: 79.13 | H29: 82.83 | I29: 83.57 | J29: 84.68 | K29: 82.45 | L29: 80.6 | M29: 161.34697
A30: 21 | B30: ASIANPAINT | C30: 1724.4 | D30: 1725.30 | E30: 1710.10 | F30: 1695.80 | G30: 1680.60 | H30: 1739.60 | I30: 1754.80 | J30: 1769.10 | K30: 1740.5 | L30: 1711 | M30: 10.3365
A31: 22 | B31: AUROPHARMA | C31: 452.4 | D31: 451.28 | E31: 447.62 | F31: 442.83 | G31: 439.17 | H31: 456.07 | I31: 459.73 | J31: 464.52 | K31: 454.95 | L31: 446.5 | M31: 17.31056
A32: 23 | B32: DMART | C32: 1815.75 | D32: 1819.42 | E32: 1801.33 | F32: 1786.92 | G32: 1768.83 | H32: 1833.83 | I32: 1851.92 | J32: 1866.33 | K32: 1837.5 | L32: 1805 | M32: 4.59172
A33: 24 | B33: AXISBANK | C33: 725.75 | D33: 728.27 | E33: 718.53 | F33: 711.32 | G33: 701.58 | H33: 735.48 | I33: 745.22 | J33: 752.43 | K33: 738 | L33: 721.05 | M33: 91.0336
A34: 25 | B34: BAJAJ-AUTO | C34: 3037.95 | D34: 3046.68 | E34: 3021.37 | F34: 3004.78 | G34: 2979.47 | H34: 3063.27 | I34: 3088.58 | J34: 3105.17 | K34: 3072 | L34: 3030.1 | M34: 2.25535
A35: 26 | B35: BAJFINANCE | C35: 4007.65 | D35: 4031.95 | E35: 3971.90 | F35: 3936.15 | G35: 3876.10 | H35: 4067.70 | I35: 4127.75 | J35: 4163.50 | K35: 4092 | L35: 3996.2 | M35: 21.49042
A36: 27 | B36: BAJAJFINSV | C36: 9095.65 | D36: 9141.90 | E36: 9018.80 | F36: 8941.95 | G36: 8818.85 | H36: 9218.75 | I36: 9341.85 | J36: 9418.70 | K36: 9265 | L36: 9065.05 | M36: 2.42676
A37: 28 | B37: BAJAJHLDNG | C37: 3396.65 | D37: 3419.18 | E37: 3357.52 | F37: 3318.38 | G37: 3256.72 | H37: 3458.32 | I37: 3519.98 | J37: 3559.12 | K37: 3480.85 | L37: 3380.05 | M37: 0.31735
A38: 29 | B38: BALKRISIND | C38: 967.5 | D38: 973.65 | E38: 958.30 | F38: 949.10 | G38: 933.75 | H38: 982.85 | I38: 998.20 | J38: 1007.40 | K38: 989 | L38: 964.45 | M38: 6.14315
A39: 30 | B39: BANDHANBNK | C39: 493.35 | D39: 495.88 | E39: 487.77 | F39: 482.18 | G39: 474.07 | H39: 501.47 | I39: 509.58 | J39: 515.17 | K39: 504 | L39: 490.3 | M39: 11.87941
A40: 31 | B40: BANKBARODA | C40: 96.15 | D40: 96.35 | E40: 94.55 | F40: 92.95 | G40: 91.15 | H40: 97.95 | I40: 99.75 | J40: 101.35 | K40: 98.15 | L40: 94.75 | M40: 311.24816
A41: 32 | B41: BANKINDIA | C41: 68.55 | D41: 68.77 | E41: 67.63 | F41: 66.72 | G41: 65.58 | H41: 69.68 | I41: 70.82 | J41: 71.73 | K41: 69.9 | L41: 67.85 | M41: 18.41065
A42: 33 | B42: BATAINDIA | C42: 1716.3 | D42: 1719.95 | E42: 1701.75 | F42: 1687.20 | G42: 1669.00 | H42: 1734.50 | I42: 1752.70 | J42: 1767.25 | K42: 1738.15 | L42: 1705.4 | M42: 4.46263
A43: 34 | B43: BERGEPAINT | C43: 494.4 | D43: 495.85 | E43: 489.20 | F43: 484.00 | G43: 477.35 | H43: 501.05 | I43: 507.70 | J43: 512.90 | K43: 502.5 | L43: 490.65 | M43: 9.2569
A44: 35 | B44: BEL | C44: 96.35 | D44: 96.88 | E44: 94.77 | F44: 93.18 | G44: 91.07 | H44: 98.47 | I44: 100.58 | J44: 102.17 | K44: 99 | L44: 95.3 | M44: 110.9942
A45: 36 | B45: BHARATFORG | C45: 483.7 | D45: 485.07 | E45: 478.63 | F45: 473.57 | G45: 467.13 | H45: 490.13 | I45: 496.57 | J45: 501.63 | K45: 491.5 | L45: 480 | M45: 18.62852
A46: 37 | B46: BHEL | C46: 43.4 | D46: 43.37 | E46: 42.73 | F46: 42.07 | G46: 41.43 | H46: 44.03 | I46: 44.67 | J46: 45.33 | K46: 44 | L46: 42.7 | M46: 133.21218
A47: 38 | B47: BPCL | C47: 461 | D47: 465.20 | E47: 455.65 | F47: 450.30 | G47: 440.75 | H47: 470.55 | I47: 480.10 | J47: 485.45 | K47: 474.75 | L47: 459.85 | M47: 117.27294
A48: 39 | B48: BHARTIARTL | C48: 445.1 | D48: 447.83 | E48: 440.37 | F48: 435.63 | G48: 428.17 | H48: 452.57 | I48: 460.03 | J48: 464.77 | K48: 455.3 | L48: 443.1 | M48: 42.73646
A49: 40 | B49: INFRATEL | C49: 238.25 | D49: 240.77 | E49: 234.63 | F49: 231.02 | G49: 224.88 | H49: 244.38 | I49: 250.52 | J49: 254.13 | K49: 246.9 | L49: 237.15 | M49: 48.18126
A50: 41 | B50: BIOCON | C50: 284.15 | D50: 284.68 | E50: 274.67 | F50: 265.18 | G50: 255.17 | H50: 294.17 | I50: 304.18 | J50: 313.67 | K50: 294.7 | L50: 275.2 | M50: 147.75959
A51: 42 | B51: BBTC | C51: 1114.75 | D51: 1103.60 | E51: 1075.20 | F51: 1035.65 | G51: 1007.25 | H51: 1143.15 | I51: 1171.55 | J51: 1211.10 | K51: 1132 | L51: 1064.05 | M51: 2.80475
A52: 43 | B52: BOSCHLTD | C52: 14828 | D52: 14841.92 | E52: 14683.88 | F52: 14539.77 | G52: 14381.73 | H52: 14986.03 | I52: 15144.07 | J52: 15288.18 | K52: 14999.95 | L52: 14697.8 | M52: 0.12015
A53: 44 | B53: BRITANNIA | C53: 3036.6 | D53: 3039.53 | E53: 3025.07 | F53: 3013.53 | G53: 2999.07 | H53: 3051.07 | I53: 3065.53 | J53: 3077.07 | K53: 3054 | L53: 3028 | M53: 1.59307
A54: 45 | B54: CESC | C54: 726.5 | D54: 729.35 | E54: 719.25 | F54: 712.00 | G54: 701.90 | H54: 736.60 | I54: 746.70 | J54: 753.95 | K54: 739.45 | L54: 722.1 | M54: 2.9852
A55: 46 | B55: CADILAHC | C55: 257.05 | D55: 256.70 | E55: 253.40 | F55: 249.75 | G55: 246.45 | H55: 260.35 | I55: 263.65 | J55: 267.30 | K55: 260 | L55: 253.05 | M55: 6.06481
A56: 47 | B56: CANBK | C56: 208.05 | D56: 209.02 | E56: 203.73 | F56: 199.42 | G56: 194.13 | H56: 213.33 | I56: 218.62 | J56: 222.93 | K56: 214.3 | L56: 204.7 | M56: 142.22549
A57: 48 | B57: CASTROLIND | C57: 126.95 | D57: 126.82 | E57: 125.68 | F57: 124.42 | G57: 123.28 | H57: 128.08 | I57: 129.22 | J57: 130.48 | K57: 127.95 | L57: 125.55 | M57: 6.62653
A58: 49 | B58: CHOLAFIN | C58: 294.75 | D58: 294.52 | E58: 291.48 | F58: 288.22 | G58: 285.18 | H58: 297.78 | I58: 300.82 | J58: 304.08 | K58: 297.55 | L58: 291.25 | M58: 10.64029
A59: 50 | B59: CIPLA | C59: 468.6 | D59: 467.42 | E59: 464.83 | F59: 461.07 | G59: 458.48 | H59: 471.18 | I59: 473.77 | J59: 477.53 | K59: 470 | L59: 463.65 | M59: 23.65554
A60: 51 | B60: CUB | C60: 227.9 | D60: 228.50 | E60: 226.30 | F60: 224.70 | G60: 222.50 | H60: 230.10 | I60: 232.30 | J60: 233.90 | K60: 230.7 | L60: 226.9 | M60: 3.9416
A61: 52 | B61: COALINDIA | C61: 205.7 | D61: 206.08 | E61: 203.97 | F61: 202.23 | G61: 200.12 | H61: 207.82 | I61: 209.93 | J61: 211.67 | K61: 208.2 | L61: 204.35 | M61: 52.43225
A62: 53 | B62: COLPAL | C62: 1450.35 | D62: 1446.93 | E62: 1440.77 | F62: 1431.18 | G62: 1425.02 | H62: 1456.52 | I62: 1462.68 | J62: 1472.27 | K62: 1453.1 | L62: 1437.35 | M62: 2.26452
A63: 54 | B63: CONCOR | C63: 556.35 | D63: 559.60 | E63: 551.50 | F63: 546.65 | G63: 538.55 | H63: 564.45 | I63: 572.55 | J63: 577.40 | K63: 567.7 | L63: 554.75 | M63: 5.32397
A64: 55 | B64: COROMANDEL | C64: 533.65 | D64: 533.78 | E64: 530.02 | F64: 526.38 | G64: 522.62 | H64: 537.42 | I64: 541.18 | J64: 544.82 | K64: 537.55 | L64: 530.15 | M64: 0.61744
A65: 56 | B65: CROMPTON | C65: 239.5 | D65: 238.58 | E65: 236.82 | F65: 234.13 | G65: 232.37 | H65: 241.27 | I65: 243.03 | J65: 245.72 | K65: 240.35 | L65: 235.9 | M65: 12.02103
A66: 57 | B66: CUMMINSIND | C66: 573.55 | D66: 575.63 | E66: 568.42 | F66: 563.28 | G66: 556.07 | H66: 580.77 | I66: 587.98 | J66: 593.12 | K66: 582.85 | L66: 570.5 | M66: 6.20142
A67: 58 | B67: DLF | C67: 225.5 | D67: 225.15 | E67: 222.85 | F67: 220.20 | G67: 217.90 | H67: 227.80 | I67: 230.10 | J67: 232.75 | K67: 227.45 | L67: 222.5 | M67: 46.46862
A68: 59 | B68: DABUR | C68: 453.5 | D68: 452.88 | E68: 449.77 | F68: 446.03 | G68: 442.92 | H68: 456.62 | I68: 459.73 | J68: 463.47 | K68: 456 | L68: 449.15 | M68: 9.66767
A69: 60 | B69: DALBHARAT | C69: 794.75 | D69: 792.90 | E69: 781.85 | F69: 768.95 | G69: 757.90 | H69: 805.80 | I69: 816.85 | J69: 829.75 | K69: 803.95 | L69: 780 | M69: 1.18028
A70: 61 | B70: DIVISLAB | C70: 1843.9 | D70: 1842.75 | E70: 1833.75 | F70: 1823.60 | G70: 1814.60 | H70: 1852.90 | I70: 1861.90 | J70: 1872.05 | K70: 1851.75 | L70: 1832.6 | M70: 3.02472
A71: 62 | B71: DRREDDY | C71: 2884.2 | D71: 2888.42 | E71: 2866.83 | F71: 2849.47 | G71: 2827.88 | H71: 2905.78 | I71: 2927.37 | J71: 2944.73 | K71: 2910 | L71: 2871.05 | M71: 3.57635
A72: 63 | B72: EDELWEISS | C72: 115.1 | D72: 115.28 | E72: 113.82 | F72: 112.53 | G72: 111.07 | H72: 116.57 | I72: 118.03 | J72: 119.32 | K72: 116.75 | L72: 114 | M72: 7.80174
A73: 64 | B73: EICHERMOT | C73: 20803.8 | D73: 20955.80 | E73: 20561.80 | F73: 20319.80 | G73: 19925.80 | H73: 21197.80 | I73: 21591.80 | J73: 21833.80 | K73: 21349.8 | L73: 20713.8 | M73: 1.37152
A74: 65 | B74: EMAMILTD | C74: 302 | D74: 304.00 | E74: 297.00 | F74: 292.00 | G74: 285.00 | H74: 309.00 | I74: 316.00 | J74: 321.00 | K74: 311 | L74: 299 | M74: 4.16453
A75: 66 | B75: ENDURANCE | C75: 1037.75 | D75: 1038.57 | E75: 1025.18 | F75: 1012.62 | G75: 999.23 | H75: 1051.13 | I75: 1064.52 | J75: 1077.08 | K75: 1051.95 | L75: 1026 | M75: 0.06687
A76: 67 | B76: ENGINERSIN | C76: 98.85 | D76: 99.00 | E76: 98.35 | F76: 97.85 | G76: 97.20 | H76: 99.50 | I76: 100.15 | J76: 100.65 | K76: 99.65 | L76: 98.5 | M76: 3.53276
A77: 68 | B77: ESCORTS | C77: 612.1 | D77: 614.98 | E77: 607.27 | F77: 602.43 | G77: 594.72 | H77: 619.82 | I77: 627.53 | J77: 632.37 | K77: 622.7 | L77: 610.15 | M77: 14.77019
A78: 69 | B78: EXIDEIND | C78: 182.65 | D78: 183.27 | E78: 180.53 | F78: 178.42 | G78: 175.68 | H78: 185.38 | I78: 188.12 | J78: 190.23 | K78: 186 | L78: 181.15 | M78: 18.15286
A79: 70 | B79: FEDERALBNK | C79: 87.35 | D79: 87.60 | E79: 86.30 | F79: 85.25 | G79: 83.95 | H79: 88.65 | I79: 89.95 | J79: 91.00 | K79: 88.9 | L79: 86.55 | M79: 92.85639
A80: 71 | B80: FORTIS | C80: 133.05 | D80: 133.15 | E80: 131.25 | F80: 129.45 | G80: 127.55 | H80: 134.95 | I80: 136.85 | J80: 138.65 | K80: 135.05 | L80: 131.35 | M80: 5
A81: 72 | B81: FCONSUMER | C81: 25.2 | D81: 24.80 | E81: 23.60 | F81: 22.00 | G81: 20.80 | H81: 26.40 | I81: 27.60 | J81: 29.20 | K81: 26 | L81: 23.2 | M81: 20.08363
A82: 73 | B82: FRETAIL | C82: 344.85 | D82: 343.45 | E82: 339.90 | F82: 334.95 | G82: 331.40 | H82: 348.40 | I82: 351.95 | J82: 356.90 | K82: 347 | L82: 338.5 | M82: 11.78406
A83: 74 | B83: GAIL | C83: 124.45 | D83: 124.78 | E83: 123.52 | F83: 122.58 | G83: 121.32 | H83: 125.72 | I83: 126.98 | J83: 127.92 | K83: 126.05 | L83: 123.85 | M83: 92.98669
A84: 75 | B84: GMRINFRA | C84: 23.3 | D84: 23.28 | E84: 22.82 | F84: 22.33 | G84: 21.87 | H84: 23.77 | I84: 24.23 | J84: 24.72 | K84: 23.75 | L84: 22.8 | M84: 459.501
A85: 76 | B85: GICRE | C85: 242.05 | D85: 242.38 | E85: 240.62 | F85: 239.18 | G85: 237.42 | H85: 243.82 | I85: 245.58 | J85: 247.02 | K85: 244.15 | L85: 240.95 | M85: 1.33763
A86: 77 | B86: GLENMARK | C86: 343.2 | D86: 343.77 | E86: 337.93 | F86: 332.67 | G86: 326.83 | H86: 349.03 | I86: 354.87 | J86: 360.13 | K86: 349.6 | L86: 338.5 | M86: 12.70046
A87: 78 | B87: GODREJAGRO | C87: 535.05 | D87: 536.18 | E87: 526.37 | F87: 517.68 | G87: 507.87 | H87: 544.87 | I87: 554.68 | J87: 563.37 | K87: 546 | L87: 527.5 | M87: 1.69454
A88: 79 | B88: GODREJCP | C88: 708.6 | D88: 708.50 | E88: 701.00 | F88: 693.40 | G88: 685.90 | H88: 716.10 | I88: 723.60 | J88: 731.20 | K88: 716 | L88: 700.9 | M88: 15.78096
A89: 80 | B89: GODREJIND | C89: 438.8 | D89: 437.55 | E89: 432.25 | F89: 425.70 | G89: 420.40 | H89: 444.10 | I89: 449.40 | J89: 455.95 | K89: 442.85 | L89: 431 | M89: 1.38634
A90: 81 | B90: GODREJPROP | C90: 970.7 | D90: 959.30 | E90: 941.30 | F90: 911.90 | G90: 893.90 | H90: 988.70 | I90: 1006.70 | J90: 1036.10 | K90: 977.3 | L90: 929.9 | M90: 2.10833
A91: 82 | B91: GRAPHITE | C91: 296.75 | D91: 297.58 | E91: 293.17 | F91: 289.58 | G91: 285.17 | H91: 301.17 | I91: 305.58 | J91: 309.17 | K91: 302 | L91: 294 | M91: 8.01106
A92: 83 | B92: GRASIM | C92: 742.3 | D92: 744.60 | E92: 733.20 | F92: 724.10 | G92: 712.70 | H92: 753.70 | I92: 765.10 | J92: 774.20 | K92: 756 | L92: 735.5 | M92: 11.04012
A93: 84 | B93: GSPL | C93: 236.6 | D93: 236.48 | E93: 233.67 | F93: 230.73 | G93: 227.92 | H93: 239.42 | I93: 242.23 | J93: 245.17 | K93: 239.3 | L93: 233.55 | M93: 2.55244
A94: 85 | B94: HEG | C94: 1040.85 | D94: 1046.98 | E94: 1029.12 | F94: 1017.38 | G94: 999.52 | H94: 1058.72 | I94: 1076.58 | J94: 1088.32 | K94: 1064.85 | L94: 1035.25 | M94: 1.9
A95: 86 | B95: HCLTECH | C95: 584.25 | D95: 583.68 | E95: 579.62 | F95: 574.98 | G95: 570.92 | H95: 588.32 | I95: 592.38 | J95: 597.02 | K95: 587.75 | L95: 579.05 | M95: 31.79728
A96: 87 | B96: HDFCAMC | C96: 3094.95 | D96: 3106.98 | E96: 3063.97 | F96: 3032.98 | G96: 2989.97 | H96: 3137.97 | I96: 3180.98 | J96: 3211.97 | K96: 3150 | L96: 3076 | M96: 3.82317
A97: 88 | B97: HDFCBANK | C97: 1260.6 | D97: 1261.43 | E97: 1251.42 | F97: 1242.23 | G97: 1232.22 | H97: 1270.62 | I97: 1280.63 | J97: 1289.82 | K97: 1271.45 | L97: 1252.25 | M97: 73.62247
A98: 89 | B98: HDFCLIFE | C98: 629.95 | D98: 632.42 | E98: 621.13 | F98: 612.32 | G98: 601.03 | H98: 641.23 | I98: 652.52 | J98: 661.33 | K98: 643.7 | L98: 623.6 | M98: 28.27658
A99: 90 | B99: HAVELLS | C99: 640.4 | D99: 645.43 | E99: 633.97 | F99: 627.53 | G99: 616.07 | H99: 651.87 | I99: 663.33 | J99: 669.77 | K99: 656.9 | L99: 639 | M99: 8.7701
A100: 91 | B100: HEROMOTOCO | C100: 2348.05 | D100: 2361.65 | E100: 2323.40 | F100: 2298.75 | G100: 2260.50 | H100: 2386.30 | I100: 2424.55 | J100: 2449.20 | K100: 2399.9 | L100: 2337 | M100: 6.20687
A101: 92 | B101: HEXAWARE | C101: 334.75 | D101: 335.32 | E101: 332.43 | F101: 330.12 | G101: 327.23 | H101: 337.63 | I101: 340.52 | J101: 342.83 | K101: 338.2 | L101: 333 | M101: 1.40765
A102: 93 | B102: HINDALCO | C102: 208.85 | D102: 209.92 | E102: 206.63 | F102: 204.42 | G102: 201.13 | H102: 212.13 | I102: 215.42 | J102: 217.63 | K102: 213.2 | L102: 207.7 | M102: 127.67569
A103: 94 | B103: HINDPETRO | C103: 242.15 | D103: 245.05 | E103: 236.40 | F103: 230.65 | G103: 222.00 | H103: 250.80 | I103: 259.45 | J103: 265.20 | K103: 253.7 | L103: 239.3 | M103: 120.74187
A104: 95 | B104: HINDUNILVR | C104: 1920.7 | D104: 1923.23 | E104: 1915.47 | F104: 1910.23 | G104: 1902.47 | H104: 1928.47 | I104: 1936.23 | J104: 1941.47 | K104: 1931 | L104: 1918 | M104: 8.08935
A105: 96 | B105: HINDZINC | C105: 213.05 | D105: 212.95 | E105: 210.30 | F105: 207.55 | G105: 204.90 | H105: 215.70 | I105: 218.35 | J105: 221.10 | K105: 215.6 | L105: 210.2 | M105: 2.59266
A106: 97 | B106: HUDCO | C106: 37.8 | D106: 37.88 | E106: 37.07 | F106: 36.33 | G106: 35.52 | H106: 38.62 | I106: 39.43 | J106: 40.17 | K106: 38.7 | L106: 37.15 | M106: 13.16479
A107: 98 | B107: HDFC | C107: 2415.05 | D107: 2408.02 | E107: 2387.23 | F107: 2359.42 | G107: 2338.63 | H107: 2435.83 | I107: 2456.62 | J107: 2484.43 | K107: 2428.8 | L107: 2380.2 | M107: 37.71992
A108: 99 | B108: ICICIBANK | C108: 522.9 | D108: 526.72 | E108: 517.83 | F108: 512.77 | G108: 503.88 | H108: 531.78 | I108: 540.67 | J108: 545.73 | K108: 535.6 | L108: 521.65 | M108: 161.01835
A109: 100 | B109: ICICIGI | C109: 1389.8 | D109: 1390.08 | E109: 1379.72 | F109: 1369.63 | G109: 1359.27 | H109: 1400.17 | I109: 1410.53 | J109: 1420.62 | K109: 1400.45 | L109: 1380 | M109: 2.82751
A110: 101 | B110: ICICIPRULI | C110: 476.7 | D110: 478.83 | E110: 472.87 | F110: 469.03 | G110: 463.07 | H110: 482.67 | I110: 488.63 | J110: 492.47 | K110: 484.8 | L110: 475 | M110: 10.00612
A111: 102 | B111: IDBI | C111: 35.75 | D111: 35.87 | E111: 35.38 | F111: 35.02 | G111: 34.53 | H111: 36.23 | I111: 36.72 | J111: 37.08 | K111: 36.35 | L111: 35.5 | M111: 21.61027
A112: 103 | B112: IDFCFIRSTB | C112: 43.5 | D112: 43.72 | E112: 42.78 | F112: 42.07 | G112: 41.13 | H112: 44.43 | I112: 45.37 | J112: 46.08 | K112: 44.65 | L112: 43 | M112: 173.36782
A113: 104 | B113: ITC | C113: 235.35 | D113: 235.95 | E113: 234.00 | F113: 232.65 | G113: 230.70 | H113: 237.30 | I113: 239.25 | J113: 240.60 | K113: 237.9 | L113: 234.6 | M113: 84.16741
A114: 105 | B114: IBULHSGFIN | C114: 308.2 | D114: 309.72 | E114: 302.03 | F114: 295.87 | G114: 288.18 | H114: 315.88 | I114: 323.57 | J114: 329.73 | K114: 317.4 | L114: 303.55 | M114: 323.05742
A115: 106 | B115: IBVENTURES | C115: 194.2 | D115: 194.48 | E115: 187.22 | F115: 180.23 | G115: 172.97 | H115: 201.47 | I115: 208.73 | J115: 215.72 | K115: 201.75 | L115: 187.5 | M115: 7.87098
A116: 107 | B116: INDIANB | C116: 99.6 | D116: 99.97 | E116: 97.73 | F116: 95.87 | G116: 93.63 | H116: 101.83 | I116: 104.07 | J116: 105.93 | K116: 102.2 | L116: 98.1 | M116: 11.93942
A117: 108 | B117: INDHOTEL | C117: 140.9 | D117: 141.77 | E117: 139.68 | F117: 138.47 | G117: 136.38 | H117: 142.98 | I117: 145.07 | J117: 146.28 | K117: 143.85 | L117: 140.55 | M117: 12.02154
A118: 109 | B118: IOC | C118: 124.55 | D118: 125.37 | E118: 123.28 | F118: 122.02 | G118: 119.93 | H118: 126.63 | I118: 128.72 | J118: 129.98 | K118: 127.45 | L118: 124.1 | M118: 84.51693
A119: 110 | B119: IGL | C119: 413.25 | D119: 414.52 | E119: 410.78 | F119: 408.32 | G119: 404.58 | H119: 416.98 | I119: 420.72 | J119: 423.18 | K119: 418.25 | L119: 412.05 | M119: 11.44295
A120: 111 | B120: INDUSINDBK | C120: 1461.65 | D120: 1470.62 | E120: 1433.23 | F120: 1404.82 | G120: 1367.43 | H120: 1499.03 | I120: 1536.42 | J120: 1564.83 | K120: 1508 | L120: 1442.2 | M120: 35.72603
A121: 112 | B121: NAUKRI | C121: 2539.6 | D121: 2546.53 | E121: 2515.07 | F121: 2490.53 | G121: 2459.07 | H121: 2571.07 | I121: 2602.53 | J121: 2627.07 | K121: 2578 | L121: 2522 | M121: 1.15734
A122: 113 | B122: INFY | C122: 727.9 | D122: 731.87 | E122: 721.13 | F122: 714.37 | G122: 703.63 | H122: 738.63 | I122: 749.37 | J122: 756.13 | K122: 742.6 | L122: 725.1 | M122: 78.99363
A123: 114 | B123: INDIGO | C123: 1364.05 | D123: 1358.40 | E123: 1332.80 | F123: 1301.55 | G123: 1275.95 | H123: 1389.65 | I123: 1415.25 | J123: 1446.50 | K123: 1384 | L123: 1327.15 | M123: 14.30196
A124: 115 | B124: IPCALAB | C124: 1139.65 | D124: 1144.70 | E124: 1127.00 | F124: 1114.35 | G124: 1096.65 | H124: 1157.35 | I124: 1175.05 | J124: 1187.70 | K124: 1162.4 | L124: 1132.05 | M124: 0.47982
A125: 116 | B125: JSWENERGY | C125: 70.1 | D125: 69.30 | E125: 68.10 | F125: 66.10 | G125: 64.90 | H125: 71.30 | I125: 72.50 | J125: 74.50 | K125: 70.5 | L125: 67.3 | M125: 8.19939
A126: 117 | B126: JSWSTEEL | C126: 265.25 | D126: 266.17 | E126: 262.18 | F126: 259.12 | G126: 255.13 | H126: 269.23 | I126: 273.22 | J126: 276.28 | K126: 270.15 | L126: 263.1 | M126: 44.65297
A127: 118 | B127: JINDALSTEL | C127: 167.35 | D127: 168.33 | E127: 164.77 | F127: 162.18 | G127: 158.62 | H127: 170.92 | I127: 174.48 | J127: 177.07 | K127: 171.9 | L127: 165.75 | M127: 196.05976
A128: 119 | B128: JUBLFOOD | C128: 1693.65 | D128: 1693.40 | E128: 1684.30 | F128: 1674.95 | G128: 1665.85 | H128: 1702.75 | I128: 1711.85 | J128: 1721.20 | K128: 1702.5 | L128: 1684.05 | M128: 8.45385
A129: 120 | B129: JUBILANT | C129: 532.05 | D129: 531.52 | E129: 527.53 | F129: 523.02 | G129: 519.03 | H129: 536.03 | I129: 540.02 | J129: 544.53 | K129: 535.5 | L129: 527 | M129: 1.05448
A130: 121 | B130: KOTAKBANK | C130: 1670.85 | D130: 1665.33 | E130: 1655.92 | F130: 1640.98 | G130: 1631.57 | H130: 1680.27 | I130: 1689.68 | J130: 1704.62 | K130: 1674.75 | L130: 1650.4 | M130: 24.97931
A131: 122 | B131: L&TFH | C131: 116.25 | D131: 115.58 | E131: 114.17 | F131: 112.08 | G131: 110.67 | H131: 117.67 | I131: 119.08 | J131: 121.17 | K131: 117 | L131: 113.5 | M131: 97.40531
A132: 123 | B132: LTTS | C132: 1516.35 | D132: 1511.37 | E132: 1498.73 | F132: 1481.12 | G132: 1468.48 | H132: 1528.98 | I132: 1541.62 | J132: 1559.23 | K132: 1524 | L132: 1493.75 | M132: 0.57942
A133: 124 | B133: LICHSGFIN | C133: 419.45 | D133: 421.30 | E133: 415.60 | F133: 411.75 | G133: 406.05 | H133: 425.15 | I133: 430.85 | J133: 434.70 | K133: 427 | L133: 417.45 | M133: 35.36373
A134: 125 | B134: LTI | C134: 1833.1 | D134: 1826.27 | E134: 1812.63 | F134: 1792.17 | G134: 1778.53 | H134: 1846.73 | I134: 1860.37 | J134: 1880.83 | K134: 1839.9 | L134: 1805.8 | M134: 3.20013
A135: 126 | B135: LT | C135: 1320.5 | D135: 1324.58 | E135: 1309.67 | F135: 1298.83 | G135: 1283.92 | H135: 1335.42 | I135: 1350.33 | J135: 1361.17 | K135: 1339.5 | L135: 1313.75 | M135: 20.77893
A136: 127 | B136: LUPIN | C136: 757.55 | D136: 760.90 | E136: 749.20 | F136: 740.85 | G136: 729.15 | H136: 769.25 | I136: 780.95 | J136: 789.30 | K136: 772.6 | L136: 752.55 | M136: 8.24059
A137: 128 | B137: MRF | C137: 65334.1 | D137: 65649.72 | E137: 64784.38 | F137: 64234.67 | G137: 63369.33 | H137: 66199.43 | I137: 67064.77 | J137: 67614.48 | K137: 66515.05 | L137: 65100 | M137: 0.10835
A138: 129 | B138: MGL | C138: 1040.75 | D138: 1046.90 | E138: 1030.00 | F138: 1019.25 | G138: 1002.35 | H138: 1057.65 | I138: 1074.55 | J138: 1085.30 | K138: 1063.8 | L138: 1036.15 | M138: 4.16576
A139: 130 | B139: M&MFIN | C139: 323.15 | D139: 323.98 | E139: 320.02 | F139: 316.88 | G139: 312.92 | H139: 327.12 | I139: 331.08 | J139: 334.22 | K139: 327.95 | L139: 320.85 | M139: 18.45641
A140: 131 | B140: M&M | C140: 526.65 | D140: 527.23 | E140: 522.47 | F140: 518.28 | G140: 513.52 | H140: 531.42 | I140: 536.18 | J140: 540.37 | K140: 532 | L140: 523.05 | M140: 21.11349
A141: 132 | B141: MANAPPURAM | C141: 174.55 | D141: 174.10 | E141: 172.20 | F141: 169.85 | G141: 167.95 | H141: 176.45 | I141: 178.35 | J141: 180.70 | K141: 176 | L141: 171.75 | M141: 24.95969
A142: 133 | B142: MRPL | C142: 43.1 | D142: 43.20 | E142: 42.75 | F142: 42.40 | G142: 41.95 | H142: 43.55 | I142: 44.00 | J142: 44.35 | K142: 43.65 | L142: 42.85 | M142: 1.68475
A143: 134 | B143: MARICO | C143: 332.65 | D143: 333.28 | E143: 330.47 | F143: 328.28 | G143: 325.47 | H143: 335.47 | I143: 338.28 | J143: 340.47 | K143: 336.1 | L143: 331.1 | M143: 14.34983
A144: 135 | B144: MARUTI | C144: 7073.6 | D144: 7088.53 | E144: 7011.47 | F144: 6949.33 | G144: 6872.27 | H144: 7150.67 | I144: 7227.73 | J144: 7289.87 | K144: 7165.6 | L144: 7026.4 | M144: 5.905
A145: 136 | B145: MFSL | C145: 559.4 | D145: 558.82 | E145: 554.58 | F145: 549.77 | G145: 545.53 | H145: 563.63 | I145: 567.87 | J145: 572.68 | K145: 563.05 | L145: 554 | M145: 11.03885
A146: 137 | B146: MINDTREE | C146: 846.25 | D146: 840.75 | E146: 827.50 | F146: 808.75 | G146: 795.50 | H146: 859.50 | I146: 872.75 | J146: 891.50 | K146: 854 | L146: 822 | M146: 12.20658
A147: 138 | B147: MOTHERSUMI | C147: 144.75 | D147: 144.65 | E147: 142.60 | F147: 140.45 | G147: 138.40 | H147: 146.80 | I147: 148.85 | J147: 151.00 | K147: 146.7 | L147: 142.5 | M147: 58.43998
A148: 139 | B148: MPHASIS | C148: 885.8 | D148: 887.15 | E148: 875.70 | F148: 865.60 | G148: 854.15 | H148: 897.25 | I148: 908.70 | J148: 918.80 | K148: 898.6 | L148: 877.05 | M148: 7.8152
A149: 140 | B149: MUTHOOTFIN | C149: 750 | D149: 753.67 | E149: 741.33 | F149: 732.67 | G149: 720.33 | H149: 762.33 | I149: 774.67 | J149: 783.33 | K149: 766 | L149: 745 | M149: 10.05706
A150: 141 | B150: NATCOPHARM | C150: 600.8 | D150: 603.95 | E150: 593.90 | F150: 587.00 | G150: 576.95 | H150: 610.85 | I150: 620.90 | J150: 627.80 | K150: 614 | L150: 597.05 | M150: 1.23471
A151: 142 | B151: NBCC | C151: 34.65 | D151: 34.72 | E151: 33.83 | F151: 33.02 | G151: 32.13 | H151: 35.53 | I151: 36.42 | J151: 37.23 | K151: 35.6 | L151: 33.9 | M151: 192.09237
A152: 143 | B152: NHPC | C152: 23.95 | D152: 24.00 | E152: 23.90 | F152: 23.85 | G152: 23.75 | H152: 24.05 | I152: 24.15 | J152: 24.20 | K152: 24.1 | L152: 23.95 | M152: 7.19846
A153: 144 | B153: NMDC | C153: 128.05 | D153: 127.73 | E153: 124.57 | F153: 121.08 | G153: 117.92 | H153: 131.22 | I153: 134.38 | J153: 137.87 | K153: 130.9 | L153: 124.25 | M153: 142.19999
A154: 145 | B154: NTPC | C154: 120.55 | D154: 120.45 | E154: 119.35 | F154: 118.15 | G154: 117.05 | H154: 121.65 | I154: 122.75 | J154: 123.95 | K154: 121.55 | L154: 119.25 | M154: 89.59942
A155: 146 | B155: NATIONALUM | C155: 44.05 | D155: 44.18 | E155: 43.32 | F155: 42.58 | G155: 41.72 | H155: 44.92 | I155: 45.78 | J155: 46.52 | K155: 45.05 | L155: 43.45 | M155: 89.24256
A156: 147 | B156: NESTLEIND | C156: 14290.75 | D156: 14366.12 | E156: 14185.48 | F156: 14080.22 | G156: 13899.58 | H156: 14471.38 | I156: 14652.02 | J156: 14757.28 | K156: 14546.75 | L156: 14260.85 | M156: 0.72237
A157: 148 | B157: OBEROIRLTY | C157: 517.85 | D157: 518.37 | E157: 513.98 | F157: 510.12 | G157: 505.73 | H157: 522.23 | I157: 526.62 | J157: 530.48 | K157: 522.75 | L157: 514.5 | M157: 0.91187
A158: 149 | B158: ONGC | C158: 125.75 | D158: 126.28 | E158: 124.87 | F158: 123.98 | G158: 122.57 | H158: 127.17 | I158: 128.58 | J158: 129.47 | K158: 127.7 | L158: 125.4 | M158: 71.93304
A159: 150 | B159: OIL | C159: 154.45 | D159: 154.52 | E159: 153.53 | F159: 152.62 | G159: 151.63 | H159: 155.43 | I159: 156.42 | J159: 157.33 | K159: 155.5 | L159: 153.6 | M159: 4.36119
A160: 151 | B160: OFSS | C160: 2669.4 | D160: 2689.03 | E160: 2641.87 | F160: 2614.33 | G160: 2567.17 | H160: 2716.57 | I160: 2763.73 | J160: 2791.27 | K160: 2736.2 | L160: 2661.5 | M160: 0.08925
A161: 152 | B161: PIIND | C161: 1410.25 | D161: 1401.28 | E161: 1382.97 | F161: 1355.68 | G161: 1337.37 | H161: 1428.57 | I161: 1446.88 | J161: 1474.17 | K161: 1419.6 | L161: 1374 | M161: 3.24873
A162: 153 | B162: PNBHOUSING | C162: 469.65 | D162: 472.32 | E162: 460.33 | F162: 451.02 | G162: 439.03 | H162: 481.63 | I162: 493.62 | J162: 502.93 | K162: 484.3 | L162: 463 | M162: 11.66842
A163: 154 | B163: PAGEIND | C163: 22830.85 | D163: 22875.12 | E163: 22575.23 | F163: 22319.62 | G163: 22019.73 | H163: 23130.73 | I163: 23430.62 | J163: 23686.23 | K163: 23175 | L163: 22619.5 | M163: 0.25378
A164: 155 | B164: PETRONET | C164: 270.95 | D164: 269.85 | E164: 267.55 | F164: 264.15 | G164: 261.85 | H164: 273.25 | I164: 275.55 | J164: 278.95 | K164: 272.15 | L164: 266.45 | M164: 19.45358
A165: 156 | B165: PFIZER | C165: 4063.75 | D165: 4077.35 | E165: 4018.55 | F165: 3973.35 | G165: 3914.55 | H165: 4122.55 | I165: 4181.35 | J165: 4226.55 | K165: 4136.15 | L165: 4032.15 | M165: 0.12644
A166: 157 | B166: PIDILITIND | C166: 1399.7 | D166: 1407.18 | E166: 1382.52 | F166: 1365.33 | G166: 1340.67 | H166: 1424.37 | I166: 1449.03 | J166: 1466.22 | K166: 1431.85 | L166: 1390 | M166: 8.63685
A167: 158 | B167: PEL | C167: 1480.95 | D167: 1482.98 | E167: 1457.97 | F167: 1434.98 | G167: 1409.97 | H167: 1505.97 | I167: 1530.98 | J167: 1553.97 | K167: 1508 | L167: 1460 | M167: 12.02568
A168: 159 | B168: PFC | C168: 116.95 | D168: 116.58 | E168: 114.37 | F168: 111.78 | G168: 109.57 | H168: 119.17 | I168: 121.38 | J168: 123.97 | K168: 118.8 | L168: 114 | M168: 54.95135
A169: 160 | B169: POWERGRID | C169: 191.7 | D169: 192.45 | E169: 190.40 | F169: 189.10 | G169: 187.05 | H169: 193.75 | I169: 195.80 | J169: 197.10 | K169: 194.5 | L169: 191.15 | M169: 78.8834
A170: 161 | B170: PRESTIGE | C170: 322.1 | D170: 323.12 | E170: 317.38 | F170: 312.67 | G170: 306.93 | H170: 327.83 | I170: 333.57 | J170: 338.28 | K170: 328.85 | L170: 318.4 | M170: 3.29525
A171: 162 | B171: PGHH | C171: 11099.3 | D171: 11159.28 | E171: 10958.57 | F171: 10817.83 | G171: 10617.12 | H171: 11300.02 | I171: 11500.73 | J171: 11641.47 | K171: 11360 | L171: 11018.55 | M171: 0.12747
A172: 163 | B172: PNB | C172: 61.85 | D172: 61.98 | E172: 60.87 | F172: 59.88 | G172: 58.77 | H172: 62.97 | I172: 64.08 | J172: 65.07 | K172: 63.1 | L172: 61 | M172: 204.36567
A173: 164 | B173: QUESS | C173: 511.65 | D173: 514.68 | E173: 502.97 | F173: 494.28 | G173: 482.57 | H173: 523.37 | I173: 535.08 | J173: 543.77 | K173: 526.4 | L173: 506 | M173: 1.61004
A174: 165 | B174: RBLBANK | C174: 344 | D174: 345.33 | E174: 338.87 | F174: 333.73 | G174: 327.27 | H174: 350.47 | I174: 356.93 | J174: 362.07 | K174: 351.8 | L174: 340.2 | M174: 154.84836
A175: 166 | B175: RECLTD | C175: 140.75 | D175: 141.12 | E175: 138.33 | F175: 135.92 | G175: 133.13 | H175: 143.53 | I175: 146.32 | J175: 148.73 | K175: 143.9 | L175: 138.7 | M175: 40.0183
A176: 167 | B176: RAJESHEXPO | C176: 677.95 | D176: 682.37 | E176: 671.58 | F176: 665.22 | G176: 654.43 | H176: 688.73 | I176: 699.52 | J176: 705.88 | K176: 693.15 | L176: 676 | M176: 1.2844
A177: 168 | B177: RELIANCE | C177: 1524.6 | D177: 1524.20 | E177: 1513.90 | F177: 1503.20 | G177: 1492.90 | H177: 1534.90 | I177: 1545.20 | J177: 1555.90 | K177: 1534.5 | L177: 1513.5 | M177: 76.27191
A178: 169 | B178: RNAM | C178: 341.65 | D178: 343.07 | E178: 337.83 | F178: 334.02 | G178: 328.78 | H178: 346.88 | I178: 352.12 | J178: 355.93 | K178: 348.3 | L178: 339.25 | M178: 9.62611
A179: 170 | B179: SBILIFE | C179: 984.9 | D179: 989.30 | E179: 975.60 | F179: 966.30 | G179: 952.60 | H179: 998.60 | I179: 1012.30 | J179: 1021.60 | K179: 1003 | L179: 980 | M179: 5.70304
A180: 171 | B180: SRF | C180: 3417.7 | D180: 3418.27 | E180: 3387.53 | F180: 3357.37 | G180: 3326.63 | H180: 3448.43 | I180: 3479.17 | J180: 3509.33 | K180: 3449 | L180: 3388.1 | M180: 1.53859
A181: 172 | B181: SHREECEM | C181: 21963.15 | D181: 21654.72 | E181: 21259.43 | F181: 20555.72 | G181: 20160.43 | H181: 22358.43 | I181: 22753.72 | J181: 23457.43 | K181: 22050 | L181: 20951 | M181: 0.83884
A182: 173 | B182: SRTRANSFIN | C182: 1124.25 | D182: 1129.38 | E182: 1107.77 | F182: 1091.28 | G182: 1069.67 | H182: 1145.87 | I182: 1167.48 | J182: 1183.97 | K182: 1151 | L182: 1112.9 | M182: 4.40393
A183: 174 | B183: SIEMENS | C183: 1485.15 | D183: 1485.83 | E183: 1474.32 | F183: 1463.48 | G183: 1451.97 | H183: 1496.67 | I183: 1508.18 | J183: 1519.02 | K183: 1497.35 | L183: 1475 | M183: 1.87292
A184: 175 | B184: SBIN | C184: 318.4 | D184: 320.27 | E184: 313.53 | F184: 308.67 | G184: 301.93 | H184: 325.13 | I184: 331.87 | J184: 336.73 | K184: 327 | L184: 315.4 | M184: 509.66826
A185: 176 | B185: SAIL | C185: 45.5 | D185: 45.55 | E185: 44.80 | F185: 44.10 | G185: 43.35 | H185: 46.25 | I185: 47.00 | J185: 47.70 | K185: 46.3 | L185: 44.85 | M185: 265.93985
A186: 177 | B186: STRTECH | C186: 123.2 | D186: 123.77 | E186: 120.93 | F186: 118.67 | G186: 115.83 | H186: 126.03 | I186: 128.87 | J186: 131.13 | K186: 126.6 | L186: 121.5 | M186: 13.11029
A187: 178 | B187: SUNPHARMA | C187: 446.4 | D187: 443.98 | E187: 439.97 | F187: 433.53 | G187: 429.52 | H187: 450.42 | I187: 454.43 | J187: 460.87 | K187: 448 | L187: 437.55 | M187: 45.04083
A188: 179 | B188: SUNTV | C188: 423 | D188: 426.22 | E188: 417.68 | F188: 412.37 | G188: 403.83 | H188: 431.53 | I188: 440.07 | J188: 445.38 | K188: 434.75 | L188: 420.9 | M188: 13.48267
A189: 180 | B189: SYNGENE | C189: 309.75 | D189: 312.57 | E189: 303.83 | F189: 297.92 | G189: 289.18 | H189: 318.48 | I189: 327.22 | J189: 333.13 | K189: 321.3 | L189: 306.65 | M189: 2.34843
A190: 181 | B190: TVSMOTOR | C190: 448.1 | D190: 448.48 | E190: 442.62 | F190: 437.13 | G190: 431.27 | H190: 453.97 | I190: 459.83 | J190: 465.32 | K190: 454.35 | L190: 443 | M190: 13.09468
A191: 182 | B191: TCS | C191: 2205.85 | D191: 2201.43 | E191: 2188.22 | F191: 2170.58 | G191: 2157.37 | H191: 2219.07 | I191: 2232.28 | J191: 2249.92 | K191: 2214.65 | L191: 2183.8 | M191: 24.29317
A192: 183 | B192: TATAGLOBAL | C192: 314.9 | D192: 315.43 | E192: 311.47 | F192: 308.03 | G192: 304.07 | H192: 318.87 | I192: 322.83 | J192: 326.27 | K192: 319.4 | L192: 312 | M192: 21.46089
A193: 184 | B193: TATAMTRDVR | C193: 76 | D193: 75.97 | E193: 74.13 | F193: 72.27 | G193: 70.43 | H193: 77.83 | I193: 79.67 | J193: 81.53 | K193: 77.8 | L193: 74.1 | M193: 58.37072
A194: 185 | B194: TATAMOTORS | C194: 184.7 | D194: 185.47 | E194: 181.53 | F194: 178.37 | G194: 174.43 | H194: 188.63 | I194: 192.57 | J194: 195.73 | K194: 189.4 | L194: 182.3 | M194: 349.95035
A195: 186 | B195: TATAPOWER | C195: 56.6 | D195: 56.73 | E195: 55.92 | F195: 55.23 | G195: 54.42 | H195: 57.42 | I195: 58.23 | J195: 58.92 | K195: 57.55 | L195: 56.05 | M195: 39.74582
A196: 187 | B196: TATASTEEL | C196: 476.1 | D196: 478.08 | E196: 471.57 | F196: 467.03 | G196: 460.52 | H196: 482.62 | I196: 489.13 | J196: 493.67 | K196: 484.6 | L196: 473.55 | M196: 131.95788
A197: 188 | B197: TECHM | C197: 777.1 | D197: 772.07 | E197: 765.63 | F197: 754.17 | G197: 747.73 | H197: 783.53 | I197: 789.97 | J197: 801.43 | K197: 778.5 | L197: 760.6 | M197: 19.37143
A198: 189 | B198: NIACL | C198: 148.3 | D198: 149.42 | E198: 146.38 | F198: 144.47 | G198: 141.43 | H198: 151.33 | I198: 154.37 | J198: 156.28 | K198: 152.45 | L198: 147.5 | M198: 4.1094
A199: 190 | B199: RAMCOCEM | C199: 788.7 | D199: 778.25 | E199: 763.50 | F199: 738.30 | G199: 723.55 | H199: 803.45 | I199: 818.20 | J199: 843.40 | K199: 793 | L199: 753.05 | M199: 19.62483
A200: 191 | B200: TITAN | C200: 1159.95 | D200: 1161.95 | E200: 1150.05 | F200: 1140.15 | G200: 1128.25 | H200: 1171.85 | I200: 1183.75 | J200: 1193.65 | K200: 1173.85 | L200: 1152.05 | M200: 23.63578
A201: 192 | B201: TORNTPHARM | C201: 1872.75 | D201: 1882.88 | E201: 1855.77 | F201: 1838.78 | G201: 1811.67 | H201: 1899.87 | I201: 1926.98 | J201: 1943.97 | K201: 1910 | L201: 1865.9 | M201: 1.33465
A202: 193 | B202: TORNTPOWER | C202: 287.45 | D202: 286.12 | E202: 283.73 | F202: 280.02 | G202: 277.63 | H202: 289.83 | I202: 292.22 | J202: 295.93 | K202: 288.5 | L202: 282.4 | M202: 3.78887
A203: 194 | B203: UPL | C203: 595.05 | D203: 594.03 | E203: 584.07 | F203: 573.08 | G203: 563.12 | H203: 605.02 | I203: 614.98 | J203: 625.97 | K203: 604 | L203: 583.05 | M203: 42.47207
A204: 195 | B204: ULTRACEMCO | C204: 4242.1 | D204: 4220.05 | E204: 4186.10 | F204: 4130.10 | G204: 4096.15 | H204: 4276.05 | I204: 4310.00 | J204: 4366.00 | K204: 4254 | L204: 4164.05 | M204: 5.24372
A205: 196 | B205: UNIONBANK | C205: 52.7 | D205: 53.08 | E205: 51.87 | F205: 51.03 | G205: 49.82 | H205: 53.92 | I205: 55.13 | J205: 55.97 | K205: 54.3 | L205: 52.25 | M205: 55.27537
... 30 more rows

Sheet MidCap Intra
L5: Back To Main Page
A6: FOR INTRA DAY TRADING | K6: =Main!B10 -> 2020-01-08
A9: Sr.no | B9: Scrip | C9: CLOSE RATE | D9: Pivot Point | E9: Supports | H9: Resistances
C10: Point | E10: S1 | F10: S2 | G10: S3 | H10: R1 | I10: R2 | J10: R3 | K10: HIGH | L10: LOW | M10: Total Trade Quanity in Lakhs
A11: 1 | B11: 3MINDIA | C11: 21660.4 | D11: 21520.47 | E11: 21164.93 | F11: 20669.47 | G11: 20313.93 | H11: 22015.93 | I11: 22371.47 | J11: 22866.93 | K11: 21876 | L11: 21025 | M11: 0.06441
A12: 2 | B12: ACC | C12: 1456 | D12: 1452.35 | E12: 1439.65 | F12: 1423.30 | G12: 1410.60 | H12: 1468.70 | I12: 1481.40 | J12: 1497.75 | K12: 1465.05 | L12: 1436 | M12: 8.63805
A13: 3 | B13: AIAENG | C13: 1649.3 | D13: 1641.90 | E13: 1628.05 | F13: 1606.80 | G13: 1592.95 | H13: 1663.15 | I13: 1677.00 | J13: 1698.25 | K13: 1655.75 | L13: 1620.65 | M13: 0.3258
A14: 4 | B14: APLAPOLLO | C14: 1842.5 | D14: 1828.42 | E14: 1806.73 | F14: 1770.97 | G14: 1749.28 | H14: 1864.18 | I14: 1885.87 | J14: 1921.63 | K14: 1850.1 | L14: 1792.65 | M14: 0.27512
A15: 5 | B15: AUBANK | C15: 800.7 | D15: 798.92 | E15: 789.78 | F15: 778.87 | G15: 769.73 | H15: 809.83 | I15: 818.97 | J15: 829.88 | K15: 808.05 | L15: 788 | M15: 28.46702
A16: 6 | B16: AARTIIND | C16: 892.25 | D16: 885.78 | E16: 866.47 | F16: 840.68 | G16: 821.37 | H16: 911.57 | I16: 930.88 | J16: 956.67 | K16: 905.1 | L16: 860 | M16: 6.82246
A17: 7 | B17: AAVAS | C17: 1970.8 | D17: 2005.22 | E17: 1931.43 | F17: 1892.07 | G17: 1818.28 | H17: 2044.58 | I17: 2118.37 | J17: 2157.73 | K17: 2079 | L17: 1965.85 | M17: 0.80277
A18: 8 | B18: ABBOTINDIA | C18: 12742.9 | D18: 12824.95 | E18: 12574.95 | F18: 12407.00 | G18: 12157.00 | H18: 12992.90 | I18: 13242.90 | J18: 13410.85 | K18: 13074.95 | L18: 12657 | M18: 0.17812
A19: 9 | B19: ADANIGAS | C19: 171.1 | D19: 169.97 | E19: 166.93 | F19: 162.77 | G19: 159.73 | H19: 174.13 | I19: 177.17 | J19: 181.33 | K19: 173 | L19: 165.8 | M19: 36.98599
A20: 10 | B20: ADANIGREEN | C20: 210.6 | D20: 208.07 | E20: 205.53 | F20: 200.47 | G20: 197.93 | H20: 213.13 | I20: 215.67 | J20: 220.73 | K20: 210.6 | L20: 203 | M20: 21.26797
A21: 11 | B21: ADANIPORTS | C21: 384.8 | D21: 385.65 | E21: 381.55 | F21: 378.30 | G21: 374.20 | H21: 388.90 | I21: 393.00 | J21: 396.25 | K21: 389.75 | L21: 382.4 | M21: 80.91465
A22: 12 | B22: ADANIPOWER | C22: 61 | D22: 60.80 | E22: 59.85 | F22: 58.70 | G22: 57.75 | H22: 61.95 | I22: 62.90 | J22: 64.05 | K22: 61.75 | L22: 59.65 | M22: 87.0402
A23: 13 | B23: ADANITRANS | C23: 332.05 | D23: 334.57 | E23: 325.13 | F23: 318.22 | G23: 308.78 | H23: 341.48 | I23: 350.92 | J23: 357.83 | K23: 344 | L23: 327.65 | M23: 3.97234
A24: 14 | B24: ABCAPITAL | C24: 102.35 | D24: 102.78 | E24: 101.07 | F24: 99.78 | G24: 98.07 | H24: 104.07 | I24: 105.78 | J24: 107.07 | K24: 104.5 | L24: 101.5 | M24: 19.32133
A25: 15 | B25: ABFRL | C25: 232.35 | D25: 234.18 | E25: 228.42 | F25: 224.48 | G25: 218.72 | H25: 238.12 | I25: 243.88 | J25: 247.82 | K25: 239.95 | L25: 230.25 | M25: 3.03954
A26: 16 | B26: ADVENZYMES | C26: 165.45 | D26: 166.03 | E26: 163.52 | F26: 161.58 | G26: 159.07 | H26: 167.97 | I26: 170.48 | J26: 172.42 | K26: 168.55 | L26: 164.1 | M26: 0.33876
A27: 17 | B27: AEGISCHEM | C27: 185.05 | D27: 186.10 | E27: 181.45 | F27: 177.85 | G27: 173.20 | H27: 189.70 | I27: 194.35 | J27: 197.95 | K27: 190.75 | L27: 182.5 | M27: 0.95116
A28: 18 | B28: AFFLE | C28: 1559.1 | D28: 1563.22 | E28: 1532.43 | F28: 1505.77 | G28: 1474.98 | H28: 1589.88 | I28: 1620.67 | J28: 1647.33 | K28: 1594 | L28: 1536.55 | M28: 0.7764
A29: 19 | B29: AJANTPHARM | C29: 1006.5 | D29: 994.23 | E29: 978.47 | F29: 950.43 | G29: 934.67 | H29: 1022.27 | I29: 1038.03 | J29: 1066.07 | K29: 1010 | L29: 966.2 | M29: 1.13527
A30: 20 | B30: AKZOINDIA | C30: 1979.75 | D30: 1996.90 | E30: 1913.90 | F30: 1848.05 | G30: 1765.05 | H30: 2062.75 | I30: 2145.75 | J30: 2211.60 | K30: 2079.9 | L30: 1931.05 | M30: 0.22439
A31: 21 | B31: APLLTD | C31: 556.55 | D31: 561.85 | E31: 548.80 | F31: 541.05 | G31: 528.00 | H31: 569.60 | I31: 582.65 | J31: 590.40 | K31: 574.9 | L31: 554.1 | M31: 0.38931
A32: 22 | B32: ALKEM | C32: 2117.15 | D32: 2111.43 | E32: 2097.87 | F32: 2078.58 | G32: 2065.02 | H32: 2130.72 | I32: 2144.28 | J32: 2163.57 | K32: 2125 | L32: 2092.15 | M32: 3.60489
A33: 23 | B33: ALLCARGO | C33: 98.6 | D33: 98.83 | E33: 97.27 | F33: 95.93 | G33: 94.37 | H33: 100.17 | I33: 101.73 | J33: 103.07 | K33: 100.4 | L33: 97.5 | M33: 0.51941
A34: 24 | B34: AMARAJABAT | C34: 726.25 | D34: 726.78 | E34: 716.57 | F34: 706.88 | G34: 696.67 | H34: 736.47 | I34: 746.68 | J34: 756.37 | K34: 737 | L34: 717.1 | M34: 8.13022
A35: 25 | B35: AMBER | C35: 1171.85 | D35: 1162.28 | E35: 1149.57 | F35: 1127.28 | G35: 1114.57 | H35: 1184.57 | I35: 1197.28 | J35: 1219.57 | K35: 1175 | L35: 1140 | M35: 0.60101
A36: 26 | B36: AMBUJACEM | C36: 199 | D36: 199.42 | E36: 196.28 | F36: 193.57 | G36: 190.43 | H36: 202.13 | I36: 205.27 | J36: 207.98 | K36: 202.55 | L36: 196.7 | M36: 35.57312
A37: 27 | B37: APOLLOHOSP | C37: 1478.7 | D37: 1483.40 | E37: 1467.85 | F37: 1457.00 | G37: 1441.45 | H37: 1494.25 | I37: 1509.80 | J37: 1520.65 | K37: 1498.95 | L37: 1472.55 | M37: 3.65266
A38: 28 | B38: APOLLOTYRE | C38: 161.25 | D38: 161.70 | E38: 158.00 | F38: 154.75 | G38: 151.05 | H38: 164.95 | I38: 168.65 | J38: 171.90 | K38: 165.4 | L38: 158.45 | M38: 26.54726
A39: 29 | B39: ARVINDFASN | C39: 397.4 | D39: 398.45 | E39: 393.00 | F39: 388.60 | G39: 383.15 | H39: 402.85 | I39: 408.30 | J39: 412.70 | K39: 403.9 | L39: 394.05 | M39: 0.35304
A40: 30 | B40: ASAHIINDIA | C40: 207.95 | D40: 206.20 | E40: 204.15 | F40: 200.35 | G40: 198.30 | H40: 210.00 | I40: 212.05 | J40: 215.85 | K40: 208.25 | L40: 202.4 | M40: 0.07632
A41: 31 | B41: ASHOKLEY | C41: 82.1 | D41: 81.72 | E41: 80.98 | F41: 79.87 | G41: 79.13 | H41: 82.83 | I41: 83.57 | J41: 84.68 | K41: 82.45 | L41: 80.6 | M41: 161.34697
A42: 32 | B42: ASHOKA | C42: 104.05 | D42: 105.13 | E42: 102.42 | F42: 100.78 | G42: 98.07 | H42: 106.77 | I42: 109.48 | J42: 111.12 | K42: 107.85 | L42: 103.5 | M42: 3.70103
A43: 33 | B43: ASIANPAINT | C43: 1724.4 | D43: 1725.30 | E43: 1710.10 | F43: 1695.80 | G43: 1680.60 | H43: 1739.60 | I43: 1754.80 | J43: 1769.10 | K43: 1740.5 | L43: 1711 | M43: 10.3365
A44: 34 | B44: ASTERDM | C44: 164.25 | D44: 166.88 | E44: 158.87 | F44: 153.48 | G44: 145.47 | H44: 172.27 | I44: 180.28 | J44: 185.67 | K44: 174.9 | L44: 161.5 | M44: 3.16227
A45: 35 | B45: ASTRAZEN | C45: 2529.7 | D45: 2533.43 | E45: 2497.87 | F45: 2466.03 | G45: 2430.47 | H45: 2565.27 | I45: 2600.83 | J45: 2632.67 | K45: 2569 | L45: 2501.6 | M45: 0.18518
A46: 36 | B46: ASTRAL | C46: 1146.9 | D46: 1149.32 | E46: 1138.63 | F46: 1130.37 | G46: 1119.68 | H46: 1157.58 | I46: 1168.27 | J46: 1176.53 | K46: 1160 | L46: 1141.05 | M46: 0.67712
A47: 37 | B47: ATUL | C47: 4215.55 | D47: 4202.17 | E47: 4168.33 | F47: 4121.12 | G47: 4087.28 | H47: 4249.38 | I47: 4283.22 | J47: 4330.43 | K47: 4236 | L47: 4154.95 | M47: 0.09608
A48: 38 | B48: AUROPHARMA | C48: 452.4 | D48: 451.28 | E48: 447.62 | F48: 442.83 | G48: 439.17 | H48: 456.07 | I48: 459.73 | J48: 464.52 | K48: 454.95 | L48: 446.5 | M48: 17.31056
A49: 39 | B49: AVANTIFEED | C49: 604.4 | D49: 601.57 | E49: 589.83 | F49: 575.27 | G49: 563.53 | H49: 616.13 | I49: 627.87 | J49: 642.43 | K49: 613.3 | L49: 587 | M49: 6.75519
A50: 40 | B50: DMART | C50: 1815.75 | D50: 1819.42 | E50: 1801.33 | F50: 1786.92 | G50: 1768.83 | H50: 1833.83 | I50: 1851.92 | J50: 1866.33 | K50: 1837.5 | L50: 1805 | M50: 4.59172
A51: 41 | B51: AXISBANK | C51: 725.75 | D51: 728.27 | E51: 718.53 | F51: 711.32 | G51: 701.58 | H51: 735.48 | I51: 745.22 | J51: 752.43 | K51: 738 | L51: 721.05 | M51: 91.0336
A52: 42 | B52: BASF | C52: 984.65 | D52: 987.75 | E52: 978.50 | F52: 972.35 | G52: 963.10 | H52: 993.90 | I52: 1003.15 | J52: 1009.30 | K52: 997 | L52: 981.6 | M52: 0.07208
A53: 43 | B53: BEML | C53: 948.95 | D53: 955.63 | E53: 939.32 | F53: 929.68 | G53: 913.37 | H53: 965.27 | I53: 981.58 | J53: 991.22 | K53: 971.95 | L53: 946 | M53: 2.57679
A54: 44 | B54: BSE | C54: 494.85 | D54: 498.80 | E54: 488.15 | F54: 481.45 | G54: 470.80 | H54: 505.50 | I54: 516.15 | J54: 522.85 | K54: 509.45 | L54: 492.1 | M54: 0.89275
A55: 45 | B55: BAJAJ-AUTO | C55: 3037.95 | D55: 3046.68 | E55: 3021.37 | F55: 3004.78 | G55: 2979.47 | H55: 3063.27 | I55: 3088.58 | J55: 3105.17 | K55: 3072 | L55: 3030.1 | M55: 2.25535
A56: 46 | B56: BAJAJCON | C56: 235.9 | D56: 235.13 | E56: 233.27 | F56: 230.63 | G56: 228.77 | H56: 237.77 | I56: 239.63 | J56: 242.27 | K56: 237 | L56: 232.5 | M56: 2.26184
A57: 47 | B57: BAJAJELEC | C57: 360.1 | D57: 360.87 | E57: 356.83 | F57: 353.57 | G57: 349.53 | H57: 364.13 | I57: 368.17 | J57: 371.43 | K57: 364.9 | L57: 357.6 | M57: 0.9698
A58: 48 | B58: BAJFINANCE | C58: 4007.65 | D58: 4031.95 | E58: 3971.90 | F58: 3936.15 | G58: 3876.10 | H58: 4067.70 | I58: 4127.75 | J58: 4163.50 | K58: 4092 | L58: 3996.2 | M58: 21.49042
A59: 49 | B59: BAJAJFINSV | C59: 9095.65 | D59: 9141.90 | E59: 9018.80 | F59: 8941.95 | G59: 8818.85 | H59: 9218.75 | I59: 9341.85 | J59: 9418.70 | K59: 9265 | L59: 9065.05 | M59: 2.42676
A60: 50 | B60: BAJAJHLDNG | C60: 3396.65 | D60: 3419.18 | E60: 3357.52 | F60: 3318.38 | G60: 3256.72 | H60: 3458.32 | I60: 3519.98 | J60: 3559.12 | K60: 3480.85 | L60: 3380.05 | M60: 0.31735
A61: 51 | B61: BALKRISIND | C61: 967.5 | D61: 973.65 | E61: 958.30 | F61: 949.10 | G61: 933.75 | H61: 982.85 | I61: 998.20 | J61: 1007.40 | K61: 989 | L61: 964.45 | M61: 6.14315
A62: 52 | B62: BALMLAWRIE | C62: 123.05 | D62: 123.35 | E62: 122.20 | F62: 121.35 | G62: 120.20 | H62: 124.20 | I62: 125.35 | J62: 126.20 | K62: 124.5 | L62: 122.5 | M62: 0.62482
A63: 53 | B63: BALRAMCHIN | C63: 186.2 | D63: 188.30 | E63: 181.60 | F63: 177.00 | G63: 170.30 | H63: 192.90 | I63: 199.60 | J63: 204.20 | K63: 195 | L63: 183.7 | M63: 22.58251
A64: 54 | B64: BANDHANBNK | C64: 493.35 | D64: 495.88 | E64: 487.77 | F64: 482.18 | G64: 474.07 | H64: 501.47 | I64: 509.58 | J64: 515.17 | K64: 504 | L64: 490.3 | M64: 11.87941
A65: 55 | B65: BANKBARODA | C65: 96.15 | D65: 96.35 | E65: 94.55 | F65: 92.95 | G65: 91.15 | H65: 97.95 | I65: 99.75 | J65: 101.35 | K65: 98.15 | L65: 94.75 | M65: 311.24816
A66: 56 | B66: BANKINDIA | C66: 68.55 | D66: 68.77 | E66: 67.63 | F66: 66.72 | G66: 65.58 | H66: 69.68 | I66: 70.82 | J66: 71.73 | K66: 69.9 | L66: 67.85 | M66: 18.41065
A67: 57 | B67: MAHABANK | C67: 12.45 | D67: 12.47 | E67: 12.28 | F67: 12.12 | G67: 11.93 | H67: 12.63 | I67: 12.82 | J67: 12.98 | K67: 12.65 | L67: 12.3 | M67: 5.66553
A68: 58 | B68: BATAINDIA | C68: 1716.3 | D68: 1719.95 | E68: 1701.75 | F68: 1687.20 | G68: 1669.00 | H68: 1734.50 | I68: 1752.70 | J68: 1767.25 | K68: 1738.15 | L68: 1705.4 | M68: 4.46263
A69: 59 | B69: BAYERCROP | C69: 3679.6 | D69: 3687.15 | E69: 3641.30 | F69: 3603.00 | G69: 3557.15 | H69: 3725.45 | I69: 3771.30 | J69: 3809.60 | K69: 3733 | L69: 3648.85 | M69: 0.22215
A70: 60 | B70: BERGEPAINT | C70: 494.4 | D70: 495.85 | E70: 489.20 | F70: 484.00 | G70: 477.35 | H70: 501.05 | I70: 507.70 | J70: 512.90 | K70: 502.5 | L70: 490.65 | M70: 9.2569
A71: 61 | B71: BDL | C71: 297.25 | D71: 296.20 | E71: 291.05 | F71: 284.85 | G71: 279.70 | H71: 302.40 | I71: 307.55 | J71: 313.75 | K71: 301.35 | L71: 290 | M71: 0.33414
A72: 62 | B72: BEL | C72: 96.35 | D72: 96.88 | E72: 94.77 | F72: 93.18 | G72: 91.07 | H72: 98.47 | I72: 100.58 | J72: 102.17 | K72: 99 | L72: 95.3 | M72: 110.9942
A73: 63 | B73: BHARATFORG | C73: 483.7 | D73: 485.07 | E73: 478.63 | F73: 473.57 | G73: 467.13 | H73: 490.13 | I73: 496.57 | J73: 501.63 | K73: 491.5 | L73: 480 | M73: 18.62852
A74: 64 | B74: BHEL | C74: 43.4 | D74: 43.37 | E74: 42.73 | F74: 42.07 | G74: 41.43 | H74: 44.03 | I74: 44.67 | J74: 45.33 | K74: 44 | L74: 42.7 | M74: 133.21218
A75: 65 | B75: BPCL | C75: 461 | D75: 465.20 | E75: 455.65 | F75: 450.30 | G75: 440.75 | H75: 470.55 | I75: 480.10 | J75: 485.45 | K75: 474.75 | L75: 459.85 | M75: 117.27294
A76: 66 | B76: BHARTIARTL | C76: 445.1 | D76: 447.83 | E76: 440.37 | F76: 435.63 | G76: 428.17 | H76: 452.57 | I76: 460.03 | J76: 464.77 | K76: 455.3 | L76: 443.1 | M76: 42.73646
A77: 67 | B77: INFRATEL | C77: 238.25 | D77: 240.77 | E77: 234.63 | F77: 231.02 | G77: 224.88 | H77: 244.38 | I77: 250.52 | J77: 254.13 | K77: 246.9 | L77: 237.15 | M77: 48.18126
A78: 68 | B78: BIOCON | C78: 284.15 | D78: 284.68 | E78: 274.67 | F78: 265.18 | G78: 255.17 | H78: 294.17 | I78: 304.18 | J78: 313.67 | K78: 294.7 | L78: 275.2 | M78: 147.75959
A79: 69 | B79: BIRLACORPN | C79: 619.85 | D79: 618.97 | E79: 609.88 | F79: 599.92 | G79: 590.83 | H79: 628.93 | I79: 638.02 | J79: 647.98 | K79: 628.05 | L79: 609 | M79: 0.89694
A80: 70 | B80: BSOFT | C80: 70.9 | D80: 71.53 | E80: 69.47 | F80: 68.03 | G80: 65.97 | H80: 72.97 | I80: 75.03 | J80: 76.47 | K80: 73.6 | L80: 70.1 | M80: 4.73333
A81: 71 | B81: BLISSGVS | C81: 148.6 | D81: 148.95 | E81: 147.20 | F81: 145.80 | G81: 144.05 | H81: 150.35 | I81: 152.10 | J81: 153.50 | K81: 150.7 | L81: 147.55 | M81: 0.98315
A82: 72 | B82: BLUEDART | C82: 2189.5 | D82: 2197.50 | E82: 2145.00 | F82: 2100.50 | G82: 2048.00 | H82: 2242.00 | I82: 2294.50 | J82: 2339.00 | K82: 2250 | L82: 2153 | M82: 0.02579
A83: 73 | B83: BLUESTARCO | C83: 814.45 | D83: 815.37 | E83: 805.28 | F83: 796.12 | G83: 786.03 | H83: 824.53 | I83: 834.62 | J83: 843.78 | K83: 825.45 | L83: 806.2 | M83: 0.2419
A84: 74 | B84: BBTC | C84: 1114.75 | D84: 1103.60 | E84: 1075.20 | F84: 1035.65 | G84: 1007.25 | H84: 1143.15 | I84: 1171.55 | J84: 1211.10 | K84: 1132 | L84: 1064.05 | M84: 2.80475
A85: 75 | B85: BOMDYEING | C85: 79.8 | D85: 79.90 | E85: 78.40 | F85: 77.00 | G85: 75.50 | H85: 81.30 | I85: 82.80 | J85: 84.20 | K85: 81.4 | L85: 78.5 | M85: 24.44057
A86: 76 | B86: BOSCHLTD | C86: 14828 | D86: 14841.92 | E86: 14683.88 | F86: 14539.77 | G86: 14381.73 | H86: 14986.03 | I86: 15144.07 | J86: 15288.18 | K86: 14999.95 | L86: 14697.8 | M86: 0.12015
A87: 77 | B87: BRIGADE | C87: 225 | D87: 224.23 | E87: 216.77 | F87: 208.53 | G87: 201.07 | H87: 232.47 | I87: 239.93 | J87: 248.17 | K87: 231.7 | L87: 216 | M87: 4.29362
A88: 78 | B88: BRITANNIA | C88: 3036.6 | D88: 3039.53 | E88: 3025.07 | F88: 3013.53 | G88: 2999.07 | H88: 3051.07 | I88: 3065.53 | J88: 3077.07 | K88: 3054 | L88: 3028 | M88: 1.59307
A89: 79 | B89: CARERATING | C89: 608.4 | D89: 620.75 | E89: 592.90 | F89: 577.40 | G89: 549.55 | H89: 636.25 | I89: 664.10 | J89: 679.60 | K89: 648.6 | L89: 605.25 | M89: 18.14371
A90: 80 | B90: CCL | C90: 194.35 | D90: 195.77 | E90: 192.63 | F90: 190.92 | G90: 187.78 | H90: 197.48 | I90: 200.62 | J90: 202.33 | K90: 198.9 | L90: 194.05 | M90: 0.17731
A91: 81 | B91: CESC | C91: 726.5 | D91: 729.35 | E91: 719.25 | F91: 712.00 | G91: 701.90 | H91: 736.60 | I91: 746.70 | J91: 753.95 | K91: 739.45 | L91: 722.1 | M91: 2.9852
A92: 82 | B92: CRISIL | C92: 1835.35 | D92: 1837.12 | E92: 1813.23 | F92: 1791.12 | G92: 1767.23 | H92: 1859.23 | I92: 1883.12 | J92: 1905.23 | K92: 1861 | L92: 1815 | M92: 0.22069
A93: 83 | B93: CADILAHC | C93: 257.05 | D93: 256.70 | E93: 253.40 | F93: 249.75 | G93: 246.45 | H93: 260.35 | I93: 263.65 | J93: 267.30 | K93: 260 | L93: 253.05 | M93: 6.06481
A94: 84 | B94: CANFINHOME | C94: 388.15 | D94: 390.75 | E94: 382.75 | F94: 377.35 | G94: 369.35 | H94: 396.15 | I94: 404.15 | J94: 409.55 | K94: 398.75 | L94: 385.35 | M94: 0.91083
A95: 85 | B95: CANBK | C95: 208.05 | D95: 209.02 | E95: 203.73 | F95: 199.42 | G95: 194.13 | H95: 213.33 | I95: 218.62 | J95: 222.93 | K95: 214.3 | L95: 204.7 | M95: 142.22549
A96: 86 | B96: CAPLIPOINT | C96: 290.8 | D96: 293.27 | E96: 287.53 | F96: 284.27 | G96: 278.53 | H96: 296.53 | I96: 302.27 | J96: 305.53 | K96: 299 | L96: 290 | M96: 0.51869
A97: 87 | B97: CGCL | C97: 204.15 | D97: 199.68 | E97: 194.47 | F97: 184.78 | G97: 179.57 | H97: 209.37 | I97: 214.58 | J97: 224.27 | K97: 204.9 | L97: 190 | M97: 3.65179
A98: 88 | B98: CARBORUNIV | C98: 325.2 | D98: 326.10 | E98: 322.25 | F98: 319.30 | G98: 315.45 | H98: 329.05 | I98: 332.90 | J98: 335.85 | K98: 329.95 | L98: 323.15 | M98: 3.07741
A99: 89 | B99: CASTROLIND | C99: 126.95 | D99: 126.82 | E99: 125.68 | F99: 124.42 | G99: 123.28 | H99: 128.08 | I99: 129.22 | J99: 130.48 | K99: 127.95 | L99: 125.55 | M99: 6.62653
A100: 90 | B100: CEATLTD | C100: 999.2 | D100: 1001.38 | E100: 987.92 | F100: 976.63 | G100: 963.17 | H100: 1012.67 | I100: 1026.13 | J100: 1037.42 | K100: 1014.85 | L100: 990.1 | M100: 1.31454
A101: 91 | B101: CENTRALBK | C101: 17.95 | D101: 18.00 | E101: 17.80 | F101: 17.65 | G101: 17.45 | H101: 18.15 | I101: 18.35 | J101: 18.50 | K101: 18.2 | L101: 17.85 | M101: 3.88447
A102: 92 | B102: CDSL | C102: 240.7 | D102: 241.65 | E102: 236.60 | F102: 232.50 | G102: 227.45 | H102: 245.75 | I102: 250.80 | J102: 254.90 | K102: 246.7 | L102: 237.55 | M102: 6.06094
A103: 93 | B103: CENTURYPLY | C103: 164.3 | D103: 165.07 | E103: 162.23 | F103: 160.17 | G103: 157.33 | H103: 167.13 | I103: 169.97 | J103: 172.03 | K103: 167.9 | L103: 163 | M103: 1.02206
A104: 94 | B104: CERA | C104: 2616.5 | D104: 2613.15 | E104: 2578.30 | F104: 2540.10 | G104: 2505.25 | H104: 2651.35 | I104: 2686.20 | J104: 2724.40 | K104: 2648 | L104: 2574.95 | M104: 0.02112
A105: 95 | B105: CHALET | C105: 330.95 | D105: 329.43 | E105: 324.87 | F105: 318.78 | G105: 314.22 | H105: 335.52 | I105: 340.08 | J105: 346.17 | K105: 334 | L105: 323.35 | M105: 0.17456
A106: 96 | B106: CHAMBLFERT | C106: 153.9 | D106: 153.60 | E106: 152.20 | F106: 150.50 | G106: 149.10 | H106: 155.30 | I106: 156.70 | J106: 158.40 | K106: 155 | L106: 151.9 | M106: 6.81608
A107: 97 | B107: CHENNPETRO | C107: 114 | D107: 115.23 | E107: 111.97 | F107: 109.93 | G107: 106.67 | H107: 117.27 | I107: 120.53 | J107: 122.57 | K107: 118.5 | L107: 113.2 | M107: 1.19854
A108: 98 | B108: CHOLAHLDNG | C108: 509.85 | D108: 508.22 | E108: 502.63 | F108: 495.42 | G108: 489.83 | H108: 515.43 | I108: 521.02 | J108: 528.23 | K108: 513.8 | L108: 501 | M108: 0.13908
A109: 99 | B109: CHOLAFIN | C109: 294.75 | D109: 294.52 | E109: 291.48 | F109: 288.22 | G109: 285.18 | H109: 297.78 | I109: 300.82 | J109: 304.08 | K109: 297.55 | L109: 291.25 | M109: 10.64029
A110: 100 | B110: CIPLA | C110: 468.6 | D110: 467.42 | E110: 464.83 | F110: 461.07 | G110: 458.48 | H110: 471.18 | I110: 473.77 | J110: 477.53 | K110: 470 | L110: 463.65 | M110: 23.65554
A111: 101 | B111: CUB | C111: 227.9 | D111: 228.50 | E111: 226.30 | F111: 224.70 | G111: 222.50 | H111: 230.10 | I111: 232.30 | J111: 233.90 | K111: 230.7 | L111: 226.9 | M111: 3.9416
A112: 102 | B112: COALINDIA | C112: 205.7 | D112: 206.08 | E112: 203.97 | F112: 202.23 | G112: 200.12 | H112: 207.82 | I112: 209.93 | J112: 211.67 | K112: 208.2 | L112: 204.35 | M112: 52.43225
A113: 103 | B113: COCHINSHIP | C113: 403.4 | D113: 403.92 | E113: 400.53 | F113: 397.67 | G113: 394.28 | H113: 406.78 | I113: 410.17 | J113: 413.03 | K113: 407.3 | L113: 401.05 | M113: 0.25942
A114: 104 | B114: COLPAL | C114: 1450.35 | D114: 1446.93 | E114: 1440.77 | F114: 1431.18 | G114: 1425.02 | H114: 1456.52 | I114: 1462.68 | J114: 1472.27 | K114: 1453.1 | L114: 1437.35 | M114: 2.26452
A115: 105 | B115: CONCOR | C115: 556.35 | D115: 559.60 | E115: 551.50 | F115: 546.65 | G115: 538.55 | H115: 564.45 | I115: 572.55 | J115: 577.40 | K115: 567.7 | L115: 554.75 | M115: 5.32397
A116: 106 | B116: COROMANDEL | C116: 533.65 | D116: 533.78 | E116: 530.02 | F116: 526.38 | G116: 522.62 | H116: 537.42 | I116: 541.18 | J116: 544.82 | K116: 537.55 | L116: 530.15 | M116: 0.61744
A117: 107 | B117: CREDITACC | C117: 761.5 | D117: 762.98 | E117: 748.02 | F117: 734.53 | G117: 719.57 | H117: 776.47 | I117: 791.43 | J117: 804.92 | K117: 777.95 | L117: 749.5 | M117: 1.47196
A118: 108 | B118: CROMPTON | C118: 239.5 | D118: 238.58 | E118: 236.82 | F118: 234.13 | G118: 232.37 | H118: 241.27 | I118: 243.03 | J118: 245.72 | K118: 240.35 | L118: 235.9 | M118: 12.02103
A119: 109 | B119: CUMMINSIND | C119: 573.55 | D119: 575.63 | E119: 568.42 | F119: 563.28 | G119: 556.07 | H119: 580.77 | I119: 587.98 | J119: 593.12 | K119: 582.85 | L119: 570.5 | M119: 6.20142
A120: 110 | B120: CYIENT | C120: 418.9 | D120: 421.93 | E120: 412.97 | F120: 407.03 | G120: 398.07 | H120: 427.87 | I120: 436.83 | J120: 442.77 | K120: 430.9 | L120: 416 | M120: 0.60347
A121: 111 | B121: DBCORP | C121: 132.85 | D121: 133.05 | E121: 131.80 | F121: 130.75 | G121: 129.50 | H121: 134.10 | I121: 135.35 | J121: 136.40 | K121: 134.3 | L121: 132 | M121: 0.15087
A122: 112 | B122: DCBBANK | C122: 185.8 | D122: 185.22 | E122: 183.58 | F122: 181.37 | G122: 179.73 | H122: 187.43 | I122: 189.07 | J122: 191.28 | K122: 186.85 | L122: 183 | M122: 10.62742
A123: 113 | B123: DCMSHRIRAM | C123: 388.1 | D123: 387.80 | E123: 381.30 | F123: 374.50 | G123: 368.00 | H123: 394.60 | I123: 401.10 | J123: 407.90 | K123: 394.3 | L123: 381 | M123: 2.20094
A124: 114 | B124: DLF | C124: 225.5 | D124: 225.15 | E124: 222.85 | F124: 220.20 | G124: 217.90 | H124: 227.80 | I124: 230.10 | J124: 232.75 | K124: 227.45 | L124: 222.5 | M124: 46.46862
A125: 115 | B125: DABUR | C125: 453.5 | D125: 452.88 | E125: 449.77 | F125: 446.03 | G125: 442.92 | H125: 456.62 | I125: 459.73 | J125: 463.47 | K125: 456 | L125: 449.15 | M125: 9.66767
A126: 116 | B126: DALBHARAT | C126: 794.75 | D126: 792.90 | E126: 781.85 | F126: 768.95 | G126: 757.90 | H126: 805.80 | I126: 816.85 | J126: 829.75 | K126: 803.95 | L126: 780 | M126: 1.18028
A127: 117 | B127: DEEPAKNTR | C127: 374.8 | D127: 374.60 | E127: 370.20 | F127: 365.60 | G127: 361.20 | H127: 379.20 | I127: 383.60 | J127: 388.20 | K127: 379 | L127: 370 | M127: 2.10161
A128: 118 | B128: DELTACORP | C128: 188.75 | D128: 188.42 | E128: 185.58 | F128: 182.42 | G128: 179.58 | H128: 191.58 | I128: 194.42 | J128: 197.58 | K128: 191.25 | L128: 185.25 | M128: 6.52018
A129: 119 | B129: DHFL | C129: 17.7 | D129: 17.58 | E129: 17.47 | F129: 17.23 | G129: 17.12 | H129: 17.82 | I129: 17.93 | J129: 18.17 | K129: 17.7 | L129: 17.35 | M129: 13.62076
A130: 120 | B130: DBL | C130: 405 | D130: 406.50 | E130: 401.00 | F130: 397.00 | G130: 391.50 | H130: 410.50 | I130: 416.00 | J130: 420.00 | K130: 412 | L130: 402.5 | M130: 2.14016
A131: 121 | B131: DISHTV | C131: 12.3 | D131: 12.08 | E131: 11.67 | F131: 11.03 | G131: 10.62 | H131: 12.72 | I131: 13.13 | J131: 13.77 | K131: 12.5 | L131: 11.45 | M131: 422.87119
A132: 122 | B132: DCAL | C132: 70.4 | D132: 70.40 | E132: 70.40 | F132: 70.40 | G132: 70.40 | H132: 70.40 | I132: 70.40 | J132: 70.40 | K132: 70.4 | L132: 70.4 | M132: 1.40289
A133: 123 | B133: DIVISLAB | C133: 1843.9 | D133: 1842.75 | E133: 1833.75 | F133: 1823.60 | G133: 1814.60 | H133: 1852.90 | I133: 1861.90 | J133: 1872.05 | K133: 1851.75 | L133: 1832.6 | M133: 3.02472
A134: 124 | B134: DIXON | C134: 4235.05 | D134: 4189.32 | E134: 4063.73 | F134: 3892.42 | G134: 3766.83 | H134: 4360.63 | I134: 4486.22 | J134: 4657.53 | K134: 4314.9 | L134: 4018 | M134: 1.82707
A135: 125 | B135: LALPATHLAB | C135: 1550.95 | D135: 1547.83 | E135: 1535.77 | F135: 1520.58 | G135: 1508.52 | H135: 1563.02 | I135: 1575.08 | J135: 1590.27 | K135: 1559.9 | L135: 1532.65 | M135: 0.60028
A136: 126 | B136: DRREDDY | C136: 2884.2 | D136: 2888.42 | E136: 2866.83 | F136: 2849.47 | G136: 2827.88 | H136: 2905.78 | I136: 2927.37 | J136: 2944.73 | K136: 2910 | L136: 2871.05 | M136: 3.57635
A137: 127 | B137: EIDPARRY | C137: 229.55 | D137: 230.52 | E137: 226.03 | F137: 222.52 | G137: 218.03 | H137: 234.03 | I137: 238.52 | J137: 242.03 | K137: 235 | L137: 227 | M137: 5.56767
A138: 128 | B138: EIHOTEL | C138: 141.75 | D138: 141.87 | E138: 140.73 | F138: 139.72 | G138: 138.58 | H138: 142.88 | I138: 144.02 | J138: 145.03 | K138: 143 | L138: 140.85 | M138: 0.44399
A139: 129 | B139: EDELWEISS | C139: 115.1 | D139: 115.28 | E139: 113.82 | F139: 112.53 | G139: 111.07 | H139: 116.57 | I139: 118.03 | J139: 119.32 | K139: 116.75 | L139: 114 | M139: 7.80174
A140: 130 | B140: EICHERMOT | C140: 20803.8 | D140: 20955.80 | E140: 20561.80 | F140: 20319.80 | G140: 19925.80 | H140: 21197.80 | I140: 21591.80 | J140: 21833.80 | K140: 21349.8 | L140: 20713.8 | M140: 1.37152
A141: 131 | B141: ELGIEQUIP | C141: 269.1 | D141: 270.72 | E141: 267.43 | F141: 265.77 | G141: 262.48 | H141: 272.38 | I141: 275.67 | J141: 277.33 | K141: 274 | L141: 269.05 | M141: 0.04333
A142: 132 | B142: EMAMILTD | C142: 302 | D142: 304.00 | E142: 297.00 | F142: 292.00 | G142: 285.00 | H142: 309.00 | I142: 316.00 | J142: 321.00 | K142: 311 | L142: 299 | M142: 4.16453
A143: 133 | B143: ENDURANCE | C143: 1037.75 | D143: 1038.57 | E143: 1025.18 | F143: 1012.62 | G143: 999.23 | H143: 1051.13 | I143: 1064.52 | J143: 1077.08 | K143: 1051.95 | L143: 1026 | M143: 0.06687
A144: 134 | B144: ENGINERSIN | C144: 98.85 | D144: 99.00 | E144: 98.35 | F144: 97.85 | G144: 97.20 | H144: 99.50 | I144: 100.15 | J144: 100.65 | K144: 99.65 | L144: 98.5 | M144: 3.53276
A145: 135 | B145: EQUITAS | C145: 101.15 | D145: 102.02 | E145: 99.68 | F145: 98.22 | G145: 95.88 | H145: 103.48 | I145: 105.82 | J145: 107.28 | K145: 104.35 | L145: 100.55 | M145: 32.30234
A146: 136 | B146: ERIS | C146: 492.35 | D146: 487.63 | E146: 480.37 | F146: 468.38 | G146: 461.12 | H146: 499.62 | I146: 506.88 | J146: 518.87 | K146: 494.9 | L146: 475.65 | M146: 1.04749
A147: 137 | B147: ESCORTS | C147: 612.1 | D147: 614.98 | E147: 607.27 | F147: 602.43 | G147: 594.72 | H147: 619.82 | I147: 627.53 | J147: 632.37 | K147: 622.7 | L147: 610.15 | M147: 14.77019
A148: 138 | B148: ESSELPACK | C148: 170 | D148: 171.13 | E148: 167.37 | F148: 164.73 | G148: 160.97 | H148: 173.77 | I148: 177.53 | J148: 180.17 | K148: 174.9 | L148: 168.5 | M148: 1.1664
A149: 139 | B149: EXIDEIND | C149: 182.65 | D149: 183.27 | E149: 180.53 | F149: 178.42 | G149: 175.68 | H149: 185.38 | I149: 188.12 | J149: 190.23 | K149: 186 | L149: 181.15 | M149: 18.15286
A150: 140 | B150: FDC | C150: 211 | D150: 210.47 | E150: 207.03 | F150: 203.07 | G150: 199.63 | H150: 214.43 | I150: 217.87 | J150: 221.83 | K150: 213.9 | L150: 206.5 | M150: 0.32959
A151: 141 | B151: FEDERALBNK | C151: 87.35 | D151: 87.60 | E151: 86.30 | F151: 85.25 | G151: 83.95 | H151: 88.65 | I151: 89.95 | J151: 91.00 | K151: 88.9 | L151: 86.55 | M151: 92.85639
A152: 142 | B152: FMGOETZE | C152: 660.2 | D152: 660.23 | E152: 659.52 | F152: 658.83 | G152: 658.12 | H152: 660.92 | I152: 661.63 | J152: 662.32 | K152: 660.95 | L152: 659.55 | M152: 1.98658
A153: 143 | B153: FINEORG | C153: 1929.15 | D153: 1912.38 | E153: 1882.77 | F153: 1836.38 | G153: 1806.77 | H153: 1958.77 | I153: 1988.38 | J153: 2034.77 | K153: 1942 | L153: 1866 | M153: 0.4466
A154: 144 | B154: FINCABLES | C154: 386.65 | D154: 389.20 | E154: 382.45 | F154: 378.25 | G154: 371.50 | H154: 393.40 | I154: 400.15 | J154: 404.35 | K154: 395.95 | L154: 385 | M154: 0.30643
A155: 145 | B155: FINPIPE | C155: 541.65 | D155: 543.05 | E155: 538.65 | F155: 535.65 | G155: 531.25 | H155: 546.05 | I155: 550.45 | J155: 553.45 | K155: 547.45 | L155: 540.05 | M155: 0.18523
A156: 146 | B156: FSL | C156: 41.15 | D156: 41.35 | E156: 40.75 | F156: 40.35 | G156: 39.75 | H156: 41.75 | I156: 42.35 | J156: 42.75 | K156: 41.95 | L156: 40.95 | M156: 12.52736
A157: 147 | B157: FORTIS | C157: 133.05 | D157: 133.15 | E157: 131.25 | F157: 129.45 | G157: 127.55 | H157: 134.95 | I157: 136.85 | J157: 138.65 | K157: 135.05 | L157: 131.35 | M157: 5
A158: 148 | B158: FCONSUMER | C158: 25.2 | D158: 24.80 | E158: 23.60 | F158: 22.00 | G158: 20.80 | H158: 26.40 | I158: 27.60 | J158: 29.20 | K158: 26 | L158: 23.2 | M158: 20.08363
A159: 149 | B159: FLFL | C159: 400.5 | D159: 400.40 | E159: 397.80 | F159: 395.10 | G159: 392.50 | H159: 403.10 | I159: 405.70 | J159: 408.40 | K159: 403 | L159: 397.7 | M159: 0.08268
A160: 150 | B160: FRETAIL | C160: 344.85 | D160: 343.45 | E160: 339.90 | F160: 334.95 | G160: 331.40 | H160: 348.40 | I160: 351.95 | J160: 356.90 | K160: 347 | L160: 338.5 | M160: 11.78406
A161: 151 | B161: GAIL | C161: 124.45 | D161: 124.78 | E161: 123.52 | F161: 122.58 | G161: 121.32 | H161: 125.72 | I161: 126.98 | J161: 127.92 | K161: 126.05 | L161: 123.85 | M161: 92.98669
A162: 152 | B162: GEPIL | C162: 700.65 | D162: 703.68 | E162: 692.57 | F162: 684.48 | G162: 673.37 | H162: 711.77 | I162: 722.88 | J162: 730.97 | K162: 714.8 | L162: 695.6 | M162: 0.0642
A163: 153 | B163: GET&D | C163: 151.05 | D163: 151.90 | E163: 149.35 | F163: 147.65 | G163: 145.10 | H163: 153.60 | I163: 156.15 | J163: 157.85 | K163: 154.45 | L163: 150.2 | M163: 0.1681
A164: 154 | B164: GHCL | C164: 184.3 | D164: 184.20 | E164: 182.30 | F164: 180.30 | G164: 178.40 | H164: 186.20 | I164: 188.10 | J164: 190.10 | K164: 186.1 | L164: 182.2 | M164: 0.90147
A165: 155 | B165: GMRINFRA | C165: 23.3 | D165: 23.28 | E165: 22.82 | F165: 22.33 | G165: 21.87 | H165: 23.77 | I165: 24.23 | J165: 24.72 | K165: 23.75 | L165: 22.8 | M165: 459.501
A166: 156 | B166: GALAXYSURF | C166: 1484.85 | D166: 1488.02 | E166: 1472.83 | F166: 1460.82 | G166: 1445.63 | H166: 1500.03 | I166: 1515.22 | J166: 1527.23 | K166: 1503.2 | L166: 1476 | M166: 0.06436
A167: 157 | B167: GARFIBRES | C167: 1210.2 | D167: 1219.00 | E167: 1193.20 | F167: 1176.20 | G167: 1150.40 | H167: 1236.00 | I167: 1261.80 | J167: 1278.80 | K167: 1244.8 | L167: 1202 | M167: 0.02718
A168: 158 | B168: GAYAPROJ | C168: 84.15 | D168: 83.42 | E168: 81.98 | F168: 79.82 | G168: 78.38 | H168: 85.58 | I168: 87.02 | J168: 89.18 | K168: 84.85 | L168: 81.25 | M168: 11.95413
A169: 159 | B169: GICRE | C169: 242.05 | D169: 242.38 | E169: 240.62 | F169: 239.18 | G169: 237.42 | H169: 243.82 | I169: 245.58 | J169: 247.02 | K169: 244.15 | L169: 240.95 | M169: 1.33763
A170: 160 | B170: GILLETTE | C170: 6554.95 | D170: 6560.97 | E170: 6513.98 | F170: 6473.02 | G170: 6426.03 | H170: 6601.93 | I170: 6648.92 | J170: 6689.88 | K170: 6607.95 | L170: 6520 | M170: 0.0271
A171: 161 | B171: GLAXO | C171: 1628.85 | D171: 1629.62 | E171: 1604.23 | F171: 1579.62 | G171: 1554.23 | H171: 1654.23 | I171: 1679.62 | J171: 1704.23 | K171: 1655 | L171: 1605 | M171: 1.03521
A172: 162 | B172: GLENMARK | C172: 343.2 | D172: 343.77 | E172: 337.93 | F172: 332.67 | G172: 326.83 | H172: 349.03 | I172: 354.87 | J172: 360.13 | K172: 349.6 | L172: 338.5 | M172: 12.70046
A173: 163 | B173: GODFRYPHLP | C173: 1311.9 | D173: 1311.85 | E173: 1300.20 | F173: 1288.50 | G173: 1276.85 | H173: 1323.55 | I173: 1335.20 | J173: 1346.90 | K173: 1323.5 | L173: 1300.15 | M173: 0.77554
A174: 164 | B174: GODREJAGRO | C174: 535.05 | D174: 536.18 | E174: 526.37 | F174: 517.68 | G174: 507.87 | H174: 544.87 | I174: 554.68 | J174: 563.37 | K174: 546 | L174: 527.5 | M174: 1.69454
A175: 165 | B175: GODREJCP | C175: 708.6 | D175: 708.50 | E175: 701.00 | F175: 693.40 | G175: 685.90 | H175: 716.10 | I175: 723.60 | J175: 731.20 | K175: 716 | L175: 700.9 | M175: 15.78096
A176: 166 | B176: GODREJIND | C176: 438.8 | D176: 437.55 | E176: 432.25 | F176: 425.70 | G176: 420.40 | H176: 444.10 | I176: 449.40 | J176: 455.95 | K176: 442.85 | L176: 431 | M176: 1.38634
A177: 167 | B177: GODREJPROP | C177: 970.7 | D177: 959.30 | E177: 941.30 | F177: 911.90 | G177: 893.90 | H177: 988.70 | I177: 1006.70 | J177: 1036.10 | K177: 977.3 | L177: 929.9 | M177: 2.10833
A178: 168 | B178: GRANULES | C178: 123.9 | D178: 123.82 | E178: 122.73 | F178: 121.57 | G178: 120.48 | H178: 124.98 | I178: 126.07 | J178: 127.23 | K178: 124.9 | L178: 122.65 | M178: 5.65695
A179: 169 | B179: GRAPHITE | C179: 296.75 | D179: 297.58 | E179: 293.17 | F179: 289.58 | G179: 285.17 | H179: 301.17 | I179: 305.58 | J179: 309.17 | K179: 302 | L179: 294 | M179: 8.01106
A180: 170 | B180: GRASIM | C180: 742.3 | D180: 744.60 | E180: 733.20 | F180: 724.10 | G180: 712.70 | H180: 753.70 | I180: 765.10 | J180: 774.20 | K180: 756 | L180: 735.5 | M180: 11.04012
A181: 171 | B181: GESHIP | C181: 300.6 | D181: 300.75 | E181: 297.00 | F181: 293.40 | G181: 289.65 | H181: 304.35 | I181: 308.10 | J181: 311.70 | K181: 304.5 | L181: 297.15 | M181: 0.23818
A182: 172 | B182: GREAVESCOT | C182: 138.75 | D182: 137.78 | E182: 135.67 | F182: 132.58 | G182: 130.47 | H182: 140.87 | I182: 142.98 | J182: 146.07 | K182: 139.9 | L182: 134.7 | M182: 6.53828
A183: 173 | B183: GRINDWELL | C183: 589.65 | D183: 592.57 | E183: 585.28 | F183: 580.92 | G183: 573.63 | H183: 596.93 | I183: 604.22 | J183: 608.58 | K183: 599.85 | L183: 588.2 | M183: 0.03533
A184: 174 | B184: GUJALKALI | C184: 419.6 | D184: 421.67 | E184: 413.58 | F184: 407.57 | G184: 399.48 | H184: 427.68 | I184: 435.77 | J184: 441.78 | K184: 429.75 | L184: 415.65 | M184: 0.20631
A185: 175 | B185: GUJGASLTD | C185: 255.8 | D185: 256.32 | E185: 251.08 | F185: 246.37 | G185: 241.13 | H185: 261.03 | I185: 266.27 | J185: 270.98 | K185: 261.55 | L185: 251.6 | M185: 19.015
A186: 176 | B186: GMDCLTD | C186: 63.4 | D186: 63.18 | E186: 62.47 | F186: 61.53 | G186: 60.82 | H186: 64.12 | I186: 64.83 | J186: 65.77 | K186: 63.9 | L186: 62.25 | M186: 1.89325
A187: 177 | B187: GNFC | C187: 177.05 | D187: 174.15 | E187: 168.90 | F187: 160.75 | G187: 155.50 | H187: 182.30 | I187: 187.55 | J187: 195.70 | K187: 179.4 | L187: 166 | M187: 15.10925
A188: 178 | B188: GPPL | C188: 89.85 | D188: 90.28 | E188: 88.57 | F188: 87.28 | G188: 85.57 | H188: 91.57 | I188: 93.28 | J188: 94.57 | K188: 92 | L188: 89 | M188: 3.34296
A189: 179 | B189: GSFC | C189: 74.45 | D189: 74.00 | E189: 72.55 | F189: 70.65 | G189: 69.20 | H189: 75.90 | I189: 77.35 | J189: 79.25 | K189: 75.45 | L189: 72.1 | M189: 10.91272
A190: 180 | B190: GSPL | C190: 236.6 | D190: 236.48 | E190: 233.67 | F190: 230.73 | G190: 227.92 | H190: 239.42 | I190: 242.23 | J190: 245.17 | K190: 239.3 | L190: 233.55 | M190: 2.55244
A191: 181 | B191: GULFOILLUB | C191: 829.45 | D191: 822.48 | E191: 812.97 | F191: 796.48 | G191: 786.97 | H191: 838.97 | I191: 848.48 | J191: 864.97 | K191: 832 | L191: 806 | M191: 0.16076
A192: 182 | B192: HEG | C192: 1040.85 | D192: 1046.98 | E192: 1029.12 | F192: 1017.38 | G192: 999.52 | H192: 1058.72 | I192: 1076.58 | J192: 1088.32 | K192: 1064.85 | L192: 1035.25 | M192: 1.9
A193: 183 | B193: HCLTECH | C193: 584.25 | D193: 583.68 | E193: 579.62 | F193: 574.98 | G193: 570.92 | H193: 588.32 | I193: 592.38 | J193: 597.02 | K193: 587.75 | L193: 579.05 | M193: 31.79728
A194: 184 | B194: HDFCAMC | C194: 3094.95 | D194: 3106.98 | E194: 3063.97 | F194: 3032.98 | G194: 2989.97 | H194: 3137.97 | I194: 3180.98 | J194: 3211.97 | K194: 3150 | L194: 3076 | M194: 3.82317
A195: 185 | B195: HDFCBANK | C195: 1260.6 | D195: 1261.43 | E195: 1251.42 | F195: 1242.23 | G195: 1232.22 | H195: 1270.62 | I195: 1280.63 | J195: 1289.82 | K195: 1271.45 | L195: 1252.25 | M195: 73.62247
A196: 186 | B196: HDFCLIFE | C196: 629.95 | D196: 632.42 | E196: 621.13 | F196: 612.32 | G196: 601.03 | H196: 641.23 | I196: 652.52 | J196: 661.33 | K196: 643.7 | L196: 623.6 | M196: 28.27658
A197: 187 | B197: HFCL | C197: 17.3 | D197: 17.38 | E197: 17.17 | F197: 17.03 | G197: 16.82 | H197: 17.52 | I197: 17.73 | J197: 17.87 | K197: 17.6 | L197: 17.25 | M197: 9.36052
A198: 188 | B198: HATSUN | C198: 580.2 | D198: 581.00 | E198: 577.20 | F198: 574.20 | G198: 570.40 | H198: 584.00 | I198: 587.80 | J198: 590.80 | K198: 584.8 | L198: 578 | M198: 0.13272
A199: 189 | B199: HAVELLS | C199: 640.4 | D199: 645.43 | E199: 633.97 | F199: 627.53 | G199: 616.07 | H199: 651.87 | I199: 663.33 | J199: 669.77 | K199: 656.9 | L199: 639 | M199: 8.7701
A200: 190 | B200: HEIDELBERG | C200: 186.3 | D200: 186.20 | E200: 180.40 | F200: 174.50 | G200: 168.70 | H200: 192.10 | I200: 197.90 | J200: 203.80 | K200: 192 | L200: 180.3 | M200: 6.37601
A201: 191 | B201: HERITGFOOD | C201: 355.3 | D201: 362.90 | E201: 343.80 | F201: 332.30 | G201: 313.20 | H201: 374.40 | I201: 393.50 | J201: 405.00 | K201: 382 | L201: 351.4 | M201: 0.40538
A202: 192 | B202: HEROMOTOCO | C202: 2348.05 | D202: 2361.65 | E202: 2323.40 | F202: 2298.75 | G202: 2260.50 | H202: 2386.30 | I202: 2424.55 | J202: 2449.20 | K202: 2399.9 | L202: 2337 | M202: 6.20687
A203: 193 | B203: HEXAWARE | C203: 334.75 | D203: 335.32 | E203: 332.43 | F203: 330.12 | G203: 327.23 | H203: 337.63 | I203: 340.52 | J203: 342.83 | K203: 338.2 | L203: 333 | M203: 1.40765
A204: 194 | B204: HSCL | C204: 65.15 | D204: 64.82 | E204: 63.63 | F204: 62.12 | G204: 60.93 | H204: 66.33 | I204: 67.52 | J204: 69.03 | K204: 66 | L204: 63.3 | M204: 16.25322
A205: 195 | B205: HIMATSEIDE | C205: 124.85 | D205: 125.33 | E205: 123.17 | F205: 121.48 | G205: 119.32 | H205: 127.02 | I205: 129.18 | J205: 130.87 | K205: 127.5 | L205: 123.65 | M205: 1.38698
A206: 196 | B206: HINDALCO | C206: 208.85 | D206: 209.92 | E206: 206.63 | F206: 204.42 | G206: 201.13 | H206: 212.13 | I206: 215.42 | J206: 217.63 | K206: 213.2 | L206: 207.7 | M206: 127.67569
... 320 more rows

Sheet Bulk Deals
E6: Back To Main Page
A7: Subject : | B7: BULK DEAL | D7: =Main!B10 -> 2020-01-08
A9: Date | B9: Scrip code | C9: Scrip Name | D9: Client Name | E9: Buy / Sell | F9: Quantity Traded | G9: Trade Price / Wt.Avg.trade price | H9: Exchange
A10: 2020-01-07 | B10: 539098 | C10: FILTRA | D10: RADHIKA RASTOGI | E10: BUY | F10: 45,000 | G10: 14.04 | H10: BSE
A11: 2020-01-07 | B11: 541627 | C11: HITECHWIND | D11: RAJA CHANDRASHEKHAR VENKATRAMAN | E11: BUY | F11: 40,000 | G11: 26.05 | H11: BSE
A12: 2020-01-07 | B12: 538765 | C12: JSHL | D12: RAJEEV KUMAR GUPTA | E12: BUY | F12: 40,000 | G12: 17.6 | H12: BSE
A13: 2020-01-07 | B13: 538765 | C13: JSHL | D13: ANURAAG BAJPAI | E13: BUY | F13: 35,000 | G13: 17.65 | H13: BSE
A14: 2020-01-07 | B14: 538765 | C14: JSHL | D14: RAM SAGAR TIWARI | E14: SELL | F14: 35,000 | G14: 17.7 | H14: BSE
A15: 2020-01-07 | B15: 535387 | C15: LAKHOTIA | D15: GANNAYAK SALES PRIVATE LIMITED | E15: BUY | F15: 150,000 | G15: 8.84 | H15: BSE
A16: 2020-01-07 | B16: 535387 | C16: LAKHOTIA | D16: INTENSIVE FINANCE PRIVATE LIMITED | E16: SELL | F16: 150,000 | G16: 8.84 | H16: BSE
A17: 2020-01-07 | B17: 531515 | C17: MAHANIN | D17: RAHUL R MEHTA | E17: SELL | F17: 500,000 | G17: 0.19 | H17: BSE
A18: 2020-01-07 | B18: 531515 | C18: MAHANIN | D18: SHARDA SHARMA | E18: BUY | F18: 501,900 | G18: 0.19 | H18: BSE
A19: 2020-01-07 | B19: 542771 | C19: NOVATEOR | D19: VIMAL RAMNIKLAL AMBANI | E19: BUY | F19: 60,000 | G19: 17.80 | H19: BSE
A20: 2020-01-07 | B20: 542771 | C20: NOVATEOR | D20: PARSOTAM KANTILAL PUROHIT | E20: SELL | F20: 66,000 | G20: 17.8 | H20: BSE
A21: 2020-01-07 | B21: 512217 | C21: PRISMMEDI | D21: SHASHI MAKKAD . | E21: BUY | F21: 110,000 | G21: 23.66 | H21: BSE
A22: 2020-01-07 | B22: 512217 | C22: PRISMMEDI | D22: PRIYA GOEL . | E22: SELL | F22: 102,000 | G22: 23.73 | H22: BSE
A23: 2020-01-07 | B23: 539760 | C23: RELICAB | D23: OVERSKUD MULTI ASSET MANAGEMENT PRIVATE LIMITED | E23: SELL | F23: 33,000 | G23: 46 | H23: BSE
A24: 2020-01-07 | B24: 539760 | C24: RELICAB | D24: BINA PARESH SHAH | E24: BUY | F24: 132,000 | G24: 46.00 | H24: BSE
A25: 2020-01-07 | B25: 539760 | C25: RELICAB | D25: NIKHIL DHIREN SHAH | E25: SELL | F25: 66,000 | G25: 46 | H25: BSE
A26: 2020-01-07 | B26: 539760 | C26: RELICAB | D26: DHIREN JAYANTILAL SHAH | E26: SELL | F26: 69,000 | G26: 46.00 | H26: BSE
A27: 2020-01-07 | B27: 539760 | C27: RELICAB | D27: SHAH BABULAL VADILAL HUF | E27: BUY | F27: 36,000 | G27: 46 | H27: BSE
A28: 2020-01-07 | B28: 531952 | C28: RIBATEX | D28: MENIKA . | E28: SELL | F28: 51,588 | G28: 35.7 | H28: BSE
A29: 2020-01-07 | B29: 531952 | C29: RIBATEX | D29: STRM TRADING FOCUS PRIVATE LIMITED | E29: BUY | F29: 76,342 | G29: 35.59 | H29: BSE
A30: 2020-01-07 | B30: 531952 | C30: RIBATEX | D30: STRM TRADING FOCUS PRIVATE LIMITED | E30: SELL | F30: 11,141 | G30: 35.15 | H30: BSE
A31: 2020-01-07 | B31: 523445 | C31: RIIL | D31: MILLENNIUM STOCK BROKING PVT LTD | E31: BUY | F31: 74,131 | G31: 452.79 | H31: BSE
A32: 2020-01-07 | B32: 523445 | C32: RIIL | D32: MILLENNIUM STOCK BROKING PVT LTD | E32: SELL | F32: 85,234 | G32: 451.84 | H32: BSE
A33: 2020-01-07 | B33: 532034 | C33: SAFALHBS | D33: MINSHI CREATION PRIVATE LIMITED | E33: BUY | F33: 538,900 | G33: 0.63 | H33: BSE
A34: 2020-01-07 | B34: 539222 | C34: VMV | D34: RAJESH KUMAR SODHANI HUF | E34: SELL | F34: 60,000 | G34: 26.42 | H34: BSE
A35: 2020-01-07 | B35: CALSOFT | C35: California Soft Ltd. | D35: MAHADEVAN N | E35: BUY | F35: 119,549 | G35: 12.71 | H35: NSE
A36: 2020-01-07 | B36: CALSOFT | C36: California Soft Ltd. | D36: MANUSH DISTRIBUTORS | E36: BUY | F36: 90,736 | G36: 12.67 | H36: NSE
A37: 2020-01-07 | B37: DCI | C37: DC Infotech and Comun Ltd | D37: MAYUR MAHENDRA CHHEDA | E37: BUY | F37: 78,000 | G37: 45.4 | H37: NSE
A38: 2020-01-07 | B38: DCI | C38: DC Infotech and Comun Ltd | D38: JATIN ATUL MEHTA | E38: BUY | F38: 219,000 | G38: 45.4 | H38: NSE
A39: 2020-01-07 | B39: DCI | C39: DC Infotech and Comun Ltd | D39: BHAVEN MAHENDRA CHHEDA | E39: BUY | F39: 78,000 | G39: 45.4 | H39: NSE
A40: 2020-01-07 | B40: IBULHSGFIN | C40: Indiabulls Hsg Fin Ltd | D40: TOWER RESEARCH CAPITAL MARKETS INDIA PRIVATE LIMITED | E40: BUY | F40: 2,590,481 | G40: 310.46 | H40: NSE
A41: 2020-01-07 | B41: JIYAECO | C41: Jiya Eco-Products Ltd | D41: ALPHA LEON ENTERPRISES LLP | E41: BUY | F41: 281,779 | G41: 15.86 | H41: NSE
A42: 2020-01-07 | B42: RIIL | C42: Reliance Indl Infra Ltd | D42: ELIXIR WEALTH MANAGEMENT PRIVATE LIMITED | E42: BUY | F42: 128,309 | G42: 453.39 | H42: NSE
A43: 2020-01-07 | B43: RIIL | C43: Reliance Indl Infra Ltd | D43: PURITY TRADEMAX LLP | E43: BUY | F43: 145,115 | G43: 452.14 | H43: NSE
A44: 2020-01-07 | B44: RIIL | C44: Reliance Indl Infra Ltd | D44: TOWER RESEARCH CAPITAL MARKETS INDIA PRIVATE LIMITED | E44: BUY | F44: 102,146 | G44: 451.14 | H44: NSE
A45: 2020-01-07 | B45: RIIL | C45: Reliance Indl Infra Ltd | D45: CHANDARANA INTERMEDIARIES BROKERS PRIVATE LIMITED | E45: BUY | F45: 147,172 | G45: 450.03 | H45: NSE
A46: 2020-01-07 | B46: RIIL | C46: Reliance Indl Infra Ltd | D46: NUMIV RESEARCH PRIVATE LIMITED | E46: BUY | F46: 101,645 | G46: 453.2 | H46: NSE
A47: 2020-01-07 | B47: RIIL | C47: Reliance Indl Infra Ltd | D47: CENTILLION RESEARCH INDIA LLP | E47: BUY | F47: 215,332 | G47: 453.82 | H47: NSE
A48: 2020-01-07 | B48: RIIL | C48: Reliance Indl Infra Ltd | D48: N.K.SECURITIES | E48: BUY | F48: 81,590 | G48: 456.25 | H48: NSE
A49: 2020-01-07 | B49: RIIL | C49: Reliance Indl Infra Ltd | D49: MAHAVEER COMSTOCK TRADIND LLP | E49: BUY | F49: 82,440 | G49: 452.73 | H49: NSE
A50: 2020-01-07 | B50: RIIL | C50: Reliance Indl Infra Ltd | D50: AAKRAYA RESEARCH LLP | E50: BUY | F50: 89,408 | G50: 452.76 | H50: NSE
A51: 2020-01-07 | B51: RIIL | C51: Reliance Indl Infra Ltd | D51: KIVI CAPITAL | E51: BUY | F51: 75,503 | G51: 451.3 | H51: NSE
A52: 2020-01-07 | B52: SOLEX | C52: Solex Energy Limited | D52: SUFAL INVESTMENT | E52: BUY | F52: 50,000 | G52: 35.57 | H52: NSE
A53: 2020-01-07 | B53: SONAMCLOCK | C53: Sonam Clock Limited | D53: JAYESHBHAI CHHABILDAS SHAH | E53: BUY | F53: 60,000 | G53: 38.6 | H53: NSE
A54: 2020-01-07 | B54: CALSOFT | C54: California Soft Ltd. | D54: MANUSH DISTRIBUTORS | E54: SELL | F54: 89,016 | G54: 12.71 | H54: NSE
A55: 2020-01-07 | B55: CALSOFT | C55: California Soft Ltd. | D55: MAHADEVAN N | E55: SELL | F55: 121,510 | G55: 12.66 | H55: NSE
A56: 2020-01-07 | B56: CKFSL | C56: Cox & Kings Fin Serv Ltd | D56: DIMENSIONAL EMERGING MARKETS VALUE FUND | E56: SELL | F56: 447,523 | G56: 0.4 | H56: NSE
A57: 2020-01-07 | B57: CONTI | C57: Continental Seed Chem Ltd | D57: NAVAL KISHORE GUPTA | E57: SELL | F57: 40,000 | G57: 35.9 | H57: NSE
A58: 2020-01-07 | B58: CONTI | C58: Continental Seed Chem Ltd | D58: VIJAY PRAKASH GUPTA | E58: SELL | F58: 40,000 | G58: 35.9 | H58: NSE
A59: 2020-01-07 | B59: DCI | C59: DC Infotech and Comun Ltd | D59: JIGNESH AMRUTLAL THOBHANI | E59: SELL | F59: 147,000 | G59: 45.4 | H59: NSE
A60: 2020-01-07 | B60: IBULHSGFIN | C60: Indiabulls Hsg Fin Ltd | D60: TOWER RESEARCH CAPITAL MARKETS INDIA PRIVATE LIMITED | E60: SELL | F60: 2,553,331 | G60: 310.76 | H60: NSE
A61: 2020-01-07 | B61: JIYAECO | C61: Jiya Eco-Products Ltd | D61: ALPHA LEON ENTERPRISES LLP | E61: SELL | F61: 281,779 | G61: 17.93 | H61: NSE
A62: 2020-01-07 | B62: RIIL | C62: Reliance Indl Infra Ltd | D62: NUMIV RESEARCH PRIVATE LIMITED | E62: SELL | F62: 101,645 | G62: 454.03 | H62: NSE
A63: 2020-01-07 | B63: RIIL | C63: Reliance Indl Infra Ltd | D63: PURITY TRADEMAX LLP | E63: SELL | F63: 145,115 | G63: 452.77 | H63: NSE
A64: 2020-01-07 | B64: RIIL | C64: Reliance Indl Infra Ltd | D64: TOWER RESEARCH CAPITAL MARKETS INDIA PRIVATE LIMITED | E64: SELL | F64: 102146 | G64: 451.49 | H64: NSE
A65: 2020-01-07 | B65: RIIL | C65: Reliance Indl Infra Ltd | D65: N.K.SECURITIES | E65: SELL | F65: 81,590 | G65: 456.45 | H65: NSE
A66: 2020-01-07 | B66: RIIL | C66: Reliance Indl Infra Ltd | D66: MAHAVEER COMSTOCK TRADIND LLP | E66: SELL | F66: 82,440 | G66: 452.47 | H66: NSE
A67: 2020-01-07 | B67: RIIL | C67: Reliance Indl Infra Ltd | D67: KIVI CAPITAL | E67: SELL | F67: 75,503 | G67: 454.02 | H67: NSE
A68: 2020-01-07 | B68: RIIL | C68: Reliance Indl Infra Ltd | D68: AAKRAYA RESEARCH LLP | E68: SELL | F68: 89,408 | G68: 453.02 | H68: NSE
A69: 2020-01-07 | B69: RIIL | C69: Reliance Indl Infra Ltd | D69: CHANDARANA INTERMEDIARIES BROKERS PRIVATE LIMITED | E69: SELL | F69: 146,949 | G69: 449.76 | H69: NSE
A70: 2020-01-07 | B70: RIIL | C70: Reliance Indl Infra Ltd | D70: CENTILLION RESEARCH INDIA LLP | E70: SELL | F70: 215,332 | G70: 454.01 | H70: NSE
A71: 2020-01-07 | B71: RIIL | C71: Reliance Indl Infra Ltd | D71: ELIXIR WEALTH MANAGEMENT PRIVATE LIMITED | E71: SELL | F71: 129,082 | G71: 453.22 | H71: NSE
A72: 2020-01-07 | B72: SOLEX | C72: Solex Energy Limited | D72: P C JAIN HUF | E72: SELL | F72: 32,000 | G72: 35.8 | H72: NSE
A73: 2020-01-07 | B73: SONAMCLOCK | C73: Sonam Clock Limited | D73: ARCADIA SHARE & STOCK BROKERS PVT. LTD. | E73: SELL | F73: 60,000 | G73: 38.6 | H73: NSE

Sheet Call Tracker (Equity & F&O)
M5: Back To Main Page
A6: Retail Research Technical Calls & Fundamental Performance Report for the month of January-2020
M7: =Main!B10 -> 2020-01-08
B8: Positional Call
A9: Sr.no | B9: Date | D9: Company | E9: Rec | F9: Rec Price | G9: Stop Loss*** | H9: Call Closed At | I9: Target | J9: Remark | K9: Profit / Loss per Share | L9: Gain / Loss % | M9: Status | N9: Closed Date | O9: NSE Closed Price
A10: 1 | B10: 2019-10-07 | D10: PIDILITIND | E10: Buy{} | F10: 1367.5 | G10: 1297 | H10: 1399.25 | I10: 1500-1520 | J10: Profit of Rs.31.75/- | K10: =H10-F10 -> 31.75 | L10: =K10/F10 -> 2.32% | M10: Successful | N10: 2020-01-06 | R10: R
A11: 2 | B11: 2019-11-14 | D11: HEIDELBERG | E11: Buy{} | F11: 186.5 | G11: 174 | H11: 191.5 | I11: 205-210 | J11: Profit of Rs.5/- | K11: =H11-F11 -> 5 | L11: =K11/F11 -> 2.68% | M11: Successful | N11: 2020-01-07 | R11: H
A12: 3 | B12: 2019-11-18 | D12: BAJAJ-AUTO | E12: Sell | F12: 3190 | G12: 3356.7 | H12: 3030 | I12: 2900-2850 | J12: Profit of Rs.160/- | K12: =F12-H12 -> 160 | L12: 5.02% | M12: Successful | N12: 2020-01-06 | R12: R
A13: 4 | B13: 2019-11-20 | D13: BRITANNIA | E13: Buy | F13: 3075-3100 | G13: 2930 | I13: 3380-3420 | J13: Open | O13: =VLOOKUP(D13,Sheet2!A76:M1715,6,0) -> 3036.6 | R13: H
A14: 5 | B14: 2019-11-21 | D14: HINDUNILVR | E14: Buy{} | F14: 2020 | G14: 1917 | H14: 1999.75 | I14: 2200-2250 | J14: Loss of Rs.20/- | K14: =H14-F14 -> -20.25 | L14: =K14/F14 -> -1.00% | M14: Successful | N14: 2020-01-06 | R14: H
A15: 6 | B15: 2019-11-27 | D15: LT | E15: Buy | F15: 1330-1340 | G15: 1270 | I15: 1450-1500 | J15: Open | O15: =VLOOKUP(D15,Sheet2!A80:M1719,6,0) -> 1320.5 | R15: H
A16: 7 | B16: 2019-12-02 | D16: HAVELLS | E16: Buy | F16: 662-667 | G16: 632.7 | I16: 725-735 | J16: Open | O16: =VLOOKUP(D16,Sheet2!A82:M1721,6,0) -> 640.4 | R16: R
A17: 8 | B17: 2019-12-06 | D17: ONGC | E17: Buy | F17: 127.5 | G17: 122 | H17: 132.5 | I17: 140 | J17: Part Profit of Rs.5/- | K17: =H17-F17 -> 5 | L17: =K17/F17 -> 3.92% | M17: Successful | N17: 2020-01-03 | O17: =VLOOKUP(D17,Sheet2!A87:M1726,6,0) -> 125.75 | R17: H
A18: 9 | B18: 2019-12-23 | D18: CANBK | E18: Sell | F18: 227 | G18: 238.3 | H18: 216 | I18: 216-213 | J18: Profit of Rs.11/- | K18: =F18-H18 -> 11 | L18: =K18/F18 -> 4.85% | M18: Successful | N18: 2020-01-06 | R18: R
A19: 10 | B19: 2019-12-24 | D19: SBIN | E19: Sell | F19: 334 | G19: 351.3 | H19: 317 | I19: 305-300 | J19: Profit of Rs.17/- | K19: =F19-H19 -> 17 | L19: 5.09% | M19: Successful | N19: 2020-01-07 | R19: R
A20: 11 | B20: 2019-12-30 | D20: EIHOTEL | E20: Buy | F20: 140 | G20: 132 | H20: 145.5 | I20: 152-156 | J20: Part Profit of Rs.5.50/- | K20: =H20-F20 -> 5.5 | L20: =K20/F20 -> 3.93% | M20: Successful | N20: 2020-01-01 | O20: =VLOOKUP(D20,Sheet2!A90:M1729,6,0) -> 141.75 | R20: H
A21: 12 | B21: 2020-01-01 | D21: DCBBANK | E21: Buy | F21: 174 | G21: 164 | H21: 185.5 | I21: 195-200 | J21: Profit of Rs.11.50/- | K21: =H21-F21 -> 11.5 | L21: =K21/F21 -> 6.61% | M21: Successful | N21: 2020-01-07 | O21: =VLOOKUP(D21,Sheet2!A91:M1730,6,0) -> 185.8 | R21: H
A22: 13 | B22: 2020-01-02 | D22: TVTODAY | E22: Buy | F22: 244 | G22: 228 | H22: 258 | I22: 270-280 | J22: Part Profit of Rs.14/- | K22: =H22-F22 -> 14 | L22: =K22/F22 -> 5.74% | M22: Successful | N22: 2020-01-02 | R22: H
A23: 14 | B23: 2020-01-02 | D23: VGUARD | E23: Buy | F23: 212-214 | G23: 199 | I23: 230-240 | J23: Open | O23: =VLOOKUP(D23,Sheet2!A96:M1735,6,0) -> 212.55 | R23: H
A24: 15 | B24: 2020-01-03 | D24: L&TFH | E24: Buy{} | F24: 119.5 | G24: 125.3 | H24: 113 | I24: 110-107 | J24: Profit of Rs.6.5/- | K24: =F24-H24 -> 6.5 | L24: =K24/F24 -> 5.44% | M24: Successful | N24: 2020-01-06 | R24: R
A25: 16 | B25: 2020-01-03 | D25: INDIGO | E25: Buy | F25: 1340-1350 | G25: 1275 | I25: 1460-1500 | J25: Open | O25: =VLOOKUP(D25,Sheet2!A98:M1737,6,0) -> 1364.05 | R25: R
A26: 17 | B26: 2020-01-07 | D26: ITC | E26: Buy | F26: 236-238 | G26: 222.2 | I26: 255-260 | J26: Open | O26: =VLOOKUP(D26,Sheet2!A99:M1738,6,0) -> 235.35
A33: CLBS = Closing Basis ***
A34: Dividend adjusted <> | F34: Reinitiated $
A35: Part book {} | F35: Revised stoploss #
B37: Momentum Call
A38: Sr.no | B38: Date | D38: Company | E38: Rec | F38: Rec Price | G38: Stop Loss | H38: Call Closed At | I38: Target | J38: Remark | K38: Profit / Loss per Share/Lot | L38: Gain / Loss % | M38: Gain / Loss per Lot | N38: Lot | O38: Status | P38: Closed Date
A39: 1 | B39: 2019-12-19 | D39: FINPIPE | E39: Buy | F39: 547.5 | G39: 529 | H39: 549 | I39: 590-600 | J39: Profit of Rs.1.5/- | K39: =H39-F39 -> 1.5 | L39: =K39/F39 -> 0.27% | O39: Neutral | P39: 2020-01-03 | R39: H
A40: 2 | B40: 2019-12-23 | D40: RALLIS | E40: Buy | F40: 169 | G40: 164 | H40: 173 | I40: 180-182 | J40: Profit of Rs.4/- | K40: =H40-F40 -> 4 | L40: =K40/F40 -> 2.37% | O40: Successful | P40: 2020-01-01 | R40: H
A41: 3 | B41: 2019-12-23 | D41: MOTHERSUMI | E41: Sell | F41: 147.5 | G41: 152.3 | H41: 144.5 | I41: 140-138 | J41: Profit of Rs.3/- | K41: =F41-H41 -> 3 | L41: 2.03% | O41: Successful | P41: 2020-01-06 | R41: R
A42: 4 | B42: 2019-12-23 | D42: M&M JAN FUT | E42: Buy | F42: 535 | G42: 522 | H42: 542 | I42: 560 | J42: Profit of Rs.7/- | K42: =H42-F42 -> 7 | M42: =N42*K42 -> 7000 | N42: 1000 | O42: Successful | P42: 2020-01-02 | R42: N
A43: 5 | B43: 2019-12-26 | D43: TATASTEEL | E43: Sell | F43: 468.5 | G43: 482 | H43: 483 | I43: 450-440 | J43: Loss of Rs.14.50/- | K43: =F43-H43 -> -14.5 | L43: =K43/F43 -> -3.09% | O43: Unsuccessful | P43: 2020-01-02 | R43: H
A44: 6 | B44: 2019-12-27 | D44: VEDL | E44: Sell | F44: 152 | G44: 156 | H44: 156 | I44: 145-143 | J44: Loss of Rs.4/- | K44: =F44-H44 -> -4 | L44: -2.63% | O44: Unsuccessful | P44: 2020-01-02 | R44: H
A45: 7 | B45: 2019-12-30 | D45: MARICO | E45: Buy | F45: 339.5 | G45: 329 | H45: 346.5 | I45: 355-360 | J45: Profit of Rs.7/- | K45: =H45-F45 -> 7 | L45: =K45/F45 -> 2.06% | O45: Successful | P45: 2020-01-01 | R45: H
A46: 8 | B46: 2019-12-30 | D46: CENTURYTEX JAN FUT | E46: Buy | F46: 484 | G46: 464 | H46: 496 | I46: 520 | J46: Profit of Rs.12/- | K46: 12 | M46: =N46*K46 -> 7200 | N46: 600 | O46: Successful | P46: 2020-01-02 | R46: N
A47: 9 | B47: 2019-12-31 | D47: LT JAN FUT | E47: Buy | F47: 1312 | G47: 1276 | H47: 1331.5 | I47: 1350-1360 | J47: Profit of Rs.19.50/- | K47: =H47-F47 -> 19.5 | M47: =N47*K47 -> 7312.5 | N47: 375 | O47: Successful | P47: 2020-01-02 | R47: N
A48: 10 | B48: 2019-12-31 | D48: HINDALCO | E48: Sell | F48: 218.5 | G48: 226.3 | H48: 214 | I48: 210-208 | J48: Profit of Rs.4.5/- | K48: =F48-H48 -> 4.5 | L48: =K48/F48 -> 2.06% | O48: Successful | P48: 2020-01-01 | R48: R
A49: 11 | B49: 2019-12-31 | D49: BIOCON | E49: Sell | F49: 293.5 | G49: 302.3 | H49: 302.3 | I49: 278-275 | J49: Loss of Rs.8.80/- | K49: =H49-F49 -> 8.8 | L49: 3.00% | O49: Unsuccessful | P49: 2020-01-03 | R49: R
A50: 12 | B50: 2019-12-31 | D50: GAIL | E50: Buy | F50: 120.5 | G50: 116.7 | H50: 123 | I50: 126-128 | J50: Profit of Rs.2.50/- | K50: =H50-F50 -> 2.5 | L50: =K50/F50 -> 2.07% | O50: Successful | P50: 2020-01-02 | R50: R
A51: 13 | B51: 2019-12-31 | D51: ACC JAN FUT | E51: Buy | F51: 1464 | G51: 1433 | H51: 1482 | I51: 1520 | J51: Profit of Rs.18/- | K51: =H51-F51 -> 18 | M51: =N51*K51 -> 7200 | N51: 400 | O51: Successful | P51: 2020-01-02 | R51: N
A52: 14 | B52: 2020-01-01 | D52: KOTAKBANK JAN FUT | E52: Buy | F52: 1701 | G52: 1674.4 | H52: 1670 | I52: 1750 | J52: Loss of Rs.31/- | K52: -31 | M52: =N52*K52 -> -12400 | N52: 400 | O52: Unsuccessful | P52: 2020-01-03 | R52: R
A53: 15 | B53: 2020-01-01 | D53: JUSTDIAL | E53: Buy | F53: 576.5 | G53: 557.7 | H53: 557.7 | I53: 605-615 | J53: Loss of Rs.18.80/- | K53: =H53-F53 -> -18.8 | L53: =K53/F53 -> -3.26% | O53: Unsuccessful | P53: 2020-01-02 | R53: R
A54: 16 | B54: 2020-01-02 | D54: CROMPTON | E54: Buy | F54: 242-243 | G54: 235 | I54: 255-260 | J54: Open | R54: H
A55: 17 | B55: 2020-01-02 | D55: CESC JAN FUT | E55: Buy | F55: 753 | G55: 736 | H55: 736 | I55: 790 | J55: Loss of Rs.17/- | K55: =H55-F55 -> -17 | M55: =N55*K55 -> -13600 | N55: 800 | O55: Unsuccessful | P55: 2020-01-06 | R55: N
A56: 18 | B56: 2020-01-02 | D56: UJJIVAN JAN FUT | E56: Sell | F56: 352 | G56: 360.6 | H56: 347.5 | I56: 340 | J56: Profit of Rs.4.5/- | K56: =F56-H56 -> 4.5 | M56: =N56*K56 -> 7650 | N56: 1700 | O56: Successful | P56: 2020-01-03 | R56: R
A57: 19 | B57: 2020-01-02 | D57: HINDALCO | E57: Sell | F57: 218.5 | G57: 226.3 | H57: 212.5 | I57: 210-208 | J57: Profit of Rs.6/- | K57: =F57-H57 -> 6 | L57: =K57/F57 -> 2.75% | O57: Successful | P57: 2020-01-06 | R57: R
A58: 20 | B58: 2020-01-02 | D58: GHCL | E58: Buy | F58: 183.5 | G58: 177 | H58: 188.5 | I58: 193-197 | J58: Profit of Rs.5/- | K58: =H58-F58 -> 5 | L58: =K58/F58 -> 2.72% | O58: Successful | P58: 2020-01-03 | R58: H
A59: 21 | B59: 2020-01-02 | D59: ICICIPRULI JAN FUT | E59: Buy | F59: 487.5 | G59: 479 | H59: 479 | I59: 505 | J59: Loss of Rs.8.5/- | K59: -8.5 | M59: =N59*K59 -> -12750 | N59: 1500 | O59: Unsuccessful | P59: 2020-01-06 | R59: N
A60: 22 | B60: 2020-01-02 | D60: UBL JAN FUT | E60: Buy | F60: 1282.5 | G60: 1264 | H60: 1292.5 | I60: 1320 | J60: Profit of Rs.10/- | K60: =H60-F60 -> 10 | M60: 7000 | N60: 700 | O60: Successful | P60: 2020-01-03 | R60: N
A61: 23 | B61: 2020-01-03 | D61: AXISBANK JAN FUT | E61: Buy | F61: 757.5 | G61: 747 | H61: 748 | I61: 778 | J61: Loss of Rs.9.5/- | K61: -9.5 | M61: -11400 | N61: 1200 | O61: Unsuccessful | P61: 2020-01-03 | R61: N
A62: 24 | B62: 2020-01-03 | D62: COLPAL JAN FUT | E62: Buy | F62: 1469 | G62: 1453 | H62: 1453 | I62: 1500 | J62: Loss of Rs.16/- | K62: =H62-F62 -> -16 | M62: -11200 | N62: 700 | O62: Unsuccessful | P62: 2020-01-06 | R62: N
A63: 25 | B63: 2020-01-06 | D63: NIFTY JAN FUT | E63: Buy | F63: 12072.5 | G63: 11977.7 | H63: 12145 | I63: 12200 | J63: Profit of Rs.72.50/- | K63: 72.5 | M63: 5437.5 | N63: 75 | O63: Successful | P63: 2020-01-07 | R63: R
A64: 26 | B64: 2020-01-07 | D64: COLPAL JAN FUT | E64: Buy | F64: 1446.5 | G64: 1418 | H64: 1458 | I64: 1490-1500 | J64: Profit of Rs.11.50/- | K64: 11.5 | M64: 8050 | N64: 700 | O64: Successful | P64: 2020-01-07
A65: 27 | B65: 2020-01-07 | D65: M&M JAN FUT | E65: Buy | F65: 530-531 | G65: 518 | I65: 550 | J65: Open
A66: 28 | B66: 2020-01-07 | D66: ACC | E66: Buy | F66: 1445-1455 | G66: 1399 | I66: 1520-1550 | J66: Open
A67: 29 | B67: 2020-01-07 | D67: AMARAJABAT JAN FUT | E67: Buy | F67: 734-736 | G67: 720 | I67: 760 | J67: Open
A68: 30 | B68: 2020-01-07 | D68: BPCL | E68: Sell | F68: 463-465 | G68: 477.7 | I68: 440-435 | J68: Open
A69: 31 | B69: 2020-01-07 | D69: AMBUJACEM JAN FUT | E69: Buy | F69: 199.50-200.50 | G69: 195 | I69: 210 | J69: Open
A70: 32
A71: 33
A72: 34
A73: 35
A74: 36
A75: 37
A76: 38
A77: 39
A78: 40
A79: 41
A80: 42
A83: CLBS = Closing Basis ***
A84: Dividend adjusted <> | F84: Reinitiated $
F85: Revised stoploss #
A87: Master Trade High Risk
A88: Sr.no | B88: Date | D88: Company | E88: Rec | F88: Rec Price | G88: Stop Loss | H88: Call Closed At | I88: Target | J88: Remark | K88: Profit / Loss per share | L88: Gain / Loss per Lot | M88: Lot | N88: Status | O88: Closed Date
A89: 1 | B89: 2019-12-27 | D89: NIFTY JAN FUT | E89: Sell | F89: 12250 | G89: 12375 | H89: 12147.5 | I89: 12000 | J89: Profit of Rs.102.5/- | K89: =F89-H89 -> 102.5 | L89: =K89*M89 -> 7687.5 | M89: 75 | N89: Successful | O89: 2020-01-06 | R89: R
A90: 2 | B90: 2020-01-07 | D90: HAVELLS JAN FUT | E90: Buy | F90: 653-655 | G90: 638.5 | I90: 675 | J90: Open
D91: HAVELLS JAN 670 CE | E91: Sell | F91: 12-13
A98: Master Trade Medium Risk
A99: Sr.no | B99: Date | D99: Company | E99: Rec | F99: Rec Price | G99: Stop Loss | H99: Call Closed At | I99: Target | J99: Remark | K99: Profit/ Loss per lot | L99: Gain / Loss per Lot | M99: Lot | N99: Status | O99: Closed Date
A100: 1 | B100: 2019-12-27 | D100: NIFTY 30 JAN 12200 PE | E100: Buy | F100: 122 | H100: 205 | J100: Profit of Rs. 25.50/- | K100: =H100-F100 -> 83 | L100: =25.5*M100 -> 1912.5 | M100: 75 | N100: Successful | O100: 2020-01-06 | R100: H
D101: NIFTY 30 JAN 12050 PE | E101: Sell | F101: 80 | H101: 137.5 | K101: =F101-H101 -> -57.5 | R101: H
A102: 2 | B102: 2020-01-01 | D102: ICICIBANK JAN 520 PE | E102: Buy | F102: 5.95 | G102: 2.5 | H102: 6.95 | I102: 12 | J102: Profit of Rs.1/- | K102: 1 | L102: =K102*M102 -> 1375 | M102: 1375 | N102: Successful | O102: 2020-01-01 | R102: H
A103: 3 | B103: 2020-01-02 | D103: ICICIBANK JAN 520 PE | E103: Buy | F103: 5.8 | G103: 2.5 | H103: 6.9 | I103: 12 | J103: Profit of Rs.1.1/- | K103: =H103-F103 -> 1.1 | L103: =K103*M103 -> 1512.5 | M103: 1375 | N103: Successful | O103: 2020-01-03 | R103: H
A104: 4 | B104: 2020-01-02 | D104: LT JAN 1340 CE | E104: Buy | F104: 28-30 | J104: Open | R104: H
D105: LT JAN 1360 CE | E105: Sell | F105: 21-23 | R105: H
A106: 5 | B106: 2020-01-03 | D106: ACC JAN 1500 CE | E106: Buy | F106: 33 | G106: 19 | H106: 19 | I106: 50-60 | J106: Loss of Rs.14/- | K106: =H106-F106 -> -14 | L106: =K106*M106 -> -5600 | M106: 400 | N106: UnSuccessful | O106: 2020-01-06 | R106: H
A107: 6 | B107: 2020-01-04 | D107: DABUR JAN 465 CE | E107: Buy | F107: 7.30-7.70 | G107: 3.25 | I107: 12.14 | J107: Open | R107: H
A119: Techno -Funda (positional)
A120: Sr.no | B120: Date | D120: Company | E120: Rec | F120: Rec Price | G120: Stop Loss*** | H120: Call Closed At | I120: Target | J120: Remark | K120: Profit / Loss per Share | L120: Gain / Loss % | M120: Status | N120: Closed Date | O120: NSE Closed Price
A121: 1 | B121: 2019-11-27 | D121: JKLAKSHMI | E121: Buy | F121: 286 | G121: 258 | H121: 308.5 | I121: 330-350 | J121: Profit of Rs.22.50/- | K121: =H121-F121 -> 22.5 | L121: =K121/F121 -> 7.87% | M121: Successful | N121: 2020-01-07 | O121: =VLOOKUP(D121,Sheet2!A173:M1812,6,0) -> 307.85 | R121: H
A122: 2 | B122: 2020-01-07 | D122: FINPIPE | E122: Buy | F122: 540-546 | G122: 495 | I122: 630-650 | J122: Open
A124: CLBS = Closing Basis *** | F124: Reinitiated $
A125: Dividend adjusted <> | F125: Revised stoploss #
B130: Investment Idea
A131: Sr.no | B131: Date | D131: Company | E131: Rec | F131: Rec Price | G131: Point of Review | H131: Close Rate | I131: Target | J131: Remark | K131: Profit / Loss per Share | L131: Gain / Loss % | M131: Status | N131: Closed Date
A132: 1 | B132: 2013-11-01 | D132: L&T Finance Holding | E132: Accu | F132: 82.00 | G132: - | H132: 100 | I132: 100.00 | J132: Target Achieved | K132: =H132-F132 -> 18.00 | L132: =K132/F132 -> 21.95% | M132: Successful | N132: 2016-10-14
A133: 2 | B133: 2014-06-04 | D133: Finolex Inds | E133: Buy | F133: 257.00 | G133: - | H133: 300 | I133: 300.00 | J133: Target Achieved | K133: 43.00 | L133: 16.73% | M133: Successful | N133: 2014-07-02
A134: 3 | B134: 2014-07-08 | D134: JK Cement | E134: Buy | F134: 393.00 | G134: - | H134: 468 | I134: 468.00 | J134: Target Achieved | K134: 75.00 | L134: 19.08% | M134: Successful | N134: 2014-08-12
A135: 4 | B135: 2014-08-06 | D135: Finolex Cables | E135: Buy | F135: 205.00 | G135: - | H135: 275 | I135: 250.00 | J135: Target Achieved | K135: 70.00 | L135: 34.15% | M135: Successful | N135: 2014-11-19
A136: 5 | B136: 2014-09-04 | D136: Exide Inds | E136: Buy | F136: 162.00 | G136: - | H136: 190 | I136: 190.00 | J136: Target Achieved | K136: 28.00 | L136: 17.28% | M136: Successful | N136: 2015-01-02
A137: 6 | B137: 2014-09-04 | D137: Deepak Nitrite | E137: Buy | F137: 75.00 | G137: - | H137: 91.5 | I137: 95-100 | J137: Profit of Rs.16.50/- | K137: 16.50 | L137: 22.00% | M137: Successful | N137: 2014-11-11
A138: 7 | B138: 2014-10-01 | D138: Mercks | E138: Buy | F138: 850.00 | G138: - | H138: 982.5 | I138: 1050.00 | J138: Profit of Rs.132.50/- | K138: 132.50 | L138: 15.59% | M138: Successful | N138: 2015-02-04
A139: 8 | B139: 2014-10-01 | D139: Grindwell Norton | E139: Buy | F139: 475.00 | G139: - | H139: 515 | I139: 600.00 | J139: Profit of Rs.40/- | K139: 40.00 | L139: 8.42% | M139: Successful | N139: 2014-10-27
A140: 9 | B140: 2014-10-01 | D140: Snowman Logistics | E140: Buy | F140: 86.00 | G140: - | H140: 99 | I140: 140.00 | J140: Profit of Rs.13.00/- | K140: 13.00 | L140: 15.12% | M140: Successful | N140: 2014-10-27
A141: 10 | B141: 2014-10-14 | D141: Birla Corp | E141: Buy | F141: 496.60 | G141: - | H141: 621 | I141: 580.00 | J141: Target Achieved | K141: 124.40 | L141: 25.05% | M141: Successful | N141: 2016-08-23
A142: 11 | B142: 2014-10-14 | D142: Ultratech Cem | E142: Buy | F142: 2481.90 | G142: - | H142: 2840 | I142: 2870.00 | J142: Profit of Rs.358.10/- | K142: 358.10 | L142: 14.43% | M142: Successful | N142: 2015-01-13
A143: 12 | B143: 2014-10-16 | D143: Sintex Inds | E143: Buy | F143: 84.50 | G143: - | H143: 93 | I143: 110.00 | J143: Profit of Rs.8.50/- | K143: 8.50 | L143: 10.06% | M143: Successful | N143: 2014-10-27
A144: 13 | B144: 2014-10-16 | D144: HSIL | E144: Buy | F144: 401.00 | G144: - | H144: 428 | I144: 450.00 | J144: Profit of Rs.27.00/- | K144: 27.00 | L144: 6.73% | M144: Successful | N144: 2015-01-16
A145: 14 | B145: 2014-10-16 | D145: Eveready Inds | E145: Buy | F145: 101.00 | G145: - | H145: 112 | I145: 120.00 | J145: Profit of Rs.11.00/- | K145: 11.00 | L145: 10.89% | M145: Successful | N145: 2014-10-27
A146: 15 | B146: 2014-11-11 | D146: Pennar Inds | E146: Buy | F146: 59.00 | G146: - | H146: 76 | I146: 76.00 | J146: Target Achieved | K146: 17.00 | L146: 28.81% | M146: Successful | N146: 2017-10-24
A147: 16 | B147: 2014-11-11 | D147: Snowman Logistics | E147: Buy | F147: 99.00 | G147: - | H147: 120 | I147: 120.00 | J147: Profit of Rs.21/- | K147: 21.00 | L147: 21.21% | M147: Successful | N147: 2014-11-17
A148: 17 | B148: 2014-11-13 | D148: Dharamsi Morarji Chem | E148: Buy | F148: 22.00 | G148: - | H148: 33.55 | I148: 32.00 | J148: Profit of Rs 11.55/- | K148: 11.55 | L148: 52.50% | M148: Successful | N148: 2015-07-03
A149: 18 | B149: 2014-12-03 | D149: Tatachem | E149: Buy | F149: 440.00 | G149: - | H149: 520 | I149: 520.00 | J149: Profit of Rs 80.00/- | K149: 80.00 | L149: 18.18% | M149: Successful | N149: 2015-07-23
A150: 19 | B150: 2014-12-03 | D150: Advanta | E150: Buy | F150: 360.00 | G150: - | H150: 427 | I150: 425.00 | J150: Profit of Rs.67.00/- | K150: 67.00 | L150: 18.61% | M150: Successful | N150: 2015-02-23
A151: 20 | B151: 2015-01-08 | D151: GDL | E151: Buy | F151: 360.00 | G151: - | H151: 455 | I151: 420.00 | J151: Profit of Rs.95.00/- | K151: 95.00 | L151: 26.39% | M151: Successful | N151: 2015-01-20
A152: 21 | B152: 2015-01-08 | D152: NRB Bearing | E152: Buy | F152: 130.00 | H152: 175.5 | I152: 165.00 | J152: Profit of Rs 45.50/- | K152: 45.50 | L152: 35.00% | M152: Successful | N152: 2017-12-19
A153: 22 | B153: 2015-02-05 | D153: GSFC | E153: Accu | F153: 98.00 | H153: 120 | I153: 120.00 | J153: Target Achieved | K153: 22.00 | L153: 22.45% | M153: Successful | N153: 2017-01-18
A154: 23 | B154: 2015-02-05 | D154: Sundrmfast | E154: Accu | F154: 196.00 | H154: 262 | I154: 255.00 | J154: Target Achieved | K154: 66.00 | L154: 33.67% | M154: Successful | N154: 2016-08-17
A155: 24 | B155: 2015-03-04 | D155: GPPL | E155: Accu | F155: 235 | H155: 77.00 | I155: 280-285 | J155: Loss of Rs.158/- | K155: -158.00 | L155: -67.23% | M155: Unsuccessful | N155: 2019-02-26
A156: 25 | B156: 2015-03-04 | D156: ORIENTCEM | E156: Accu | F156: 185.00 | H156: 224 | I156: 220-225 | J156: Target Achieved | K156: 39.00 | L156: 21.08% | M156: Successful | N156: 2016-10-04
A157: 26 | B157: 2015-03-27 | D157: PFS | E157: Accu | F157: 49.5 | H157: 15.85 | I157: 67.00 | J157: Loss of Rs.33.65/- | K157: -33.65 | L157: -68% | M157: Unsuccessful | N157: 2019-06-11
A158: 27 | B158: 2015-03-30 | D158: Walchandnagar Ind Ltd | E158: Accu | F158: 183.50 | H158: 219 | I158: 218.00 | J158: Profit of Rs.35.50/- | K158: 35.50 | L158: 19.35% | M158: Successful | N158: 2015-04-09
A159: 28 | B159: 2015-04-20 | D159: Kalpataru Power Transmission Ltd | E159: Accu | F159: =(227+237)/2 -> 232.00 | H159: 298 | I159: 298.00 | J159: Target Achieved | K159: 66.00 | L159: 28.45% | M159: Successful | N159: 2017-03-29
A160: 29 | B160: 2015-05-04 | D160: Mastek Ltd | E160: Buy | F160: 385.00 | H160: =212.5+331 -> 543.5 | I160: 510.00 | J160: Profit of Rs 158.50/- | K160: 158.50 | L160: 41.17% | M160: Successful | N160: 2015-08-19
A161: 30 | B161: 2015-05-04 | D161: Suprajit Eng | E161: Buy | F161: 115.50 | H161: 146 | I161: 142.00 | J161: Profit of Rs 30.50/- | K161: 30.50 | L161: 26.41% | M161: Successful | N161: 2015-07-17
A162: 31 | B162: 2015-05-27 | D162: TCI | E162: Buy | F162: 237.50 | H162: 279.5 | I162: 278.00 | J162: Target Achieved | K162: 42.00 | L162: 17.68% | M162: Successful | N162: 2015-08-06
A163: 32 | B163: 2015-06-19 | D163: HSIL | E163: Accu | F163: 340.00 | H163: 448 | I163: 448.00 | J163: Target Achieved | K163: 108.00 | L163: 31.76% | M163: Successful | N163: 2017-10-10
A164: 33 | B164: 2015-07-06 | D164: Capital First | E164: Accu | F164: 390.00 | H164: 460 | I164: 460.00 | J164: Target Achieved | K164: =H164-F164 -> 70.00 | L164: =K164/F164 -> 17.95% | M164: Successful | N164: 2016-04-18
A165: 34 | B165: 2015-07-10 | D165: Dolphin OffShore | E165: Accu | F165: 122.5 | H165: 61.00 | I165: 172.00 | J165: Loss of Rs.61.50/- | K165: -61.50 | L165: -50.20% | M165: Unsuccessful | N165: 2018-08-21
A166: 35 | B166: 2015-08-03 | D166: Allcargo logistics | E166: Accu | F166: 297.50 | H166: 350 | I166: 360.00 | J166: Profit of Rs 52.50/- | K166: 52.50 | L166: 17.65% | M166: Successful | N166: 2015-08-16
A167: 36 | B167: 2015-08-03 | D167: Camline Fine | E167: Accu | F167: 115.50 | H167: 149 | I167: 140.00 | J167: Profit of Rs 33.50/- | K167: 33.50 | L167: 29.00% | M167: Successful | N167: 2017-01-05
A168: 37 | B168: 2015-09-04 | D168: TCI | E168: Accu | F168: 226.00 | H168: 292 | I168: 292.00 | J168: Target Achieved | K168: 66.00 | L168: 29.20% | M168: Successful | N168: 2015-10-09
A169: 38 | B169: 2015-09-07 | D169: Kalpataru Power Transmission Ltd | E169: Accu | F169: 232.50 | H169: 312.5 | I169: 310.00 | J169: Target Achieved | K169: 80.00 | L169: 34.41% | M169: Successful | N169: 2017-03-29
A170: 39 | B170: 2015-09-21 | D170: LLOYD ELECTRIC & ENG LTD | E170: Accu | F170: 196.50 | H170: 238 | I170: 238.00 | J170: Target Achieved | K170: 41.50 | L170: 21.12% | M170: Successful | N170: 2015-10-14
A171: 40 | B171: 2015-09-24 | D171: L&T Finance Holding | E171: Accu | F171: 65.00 | H171: 82 | I171: 82.00 | J171: Target Achieved | K171: 17.00 | L171: 26.15% | M171: Successful | N171: 2016-07-27
A172: 41 | B172: 2015-10-14 | D172: KEC International ltd | E172: Accu | F172: 144.00 | H172: 182.5 | I172: 181.00 | J172: Target Achieved | K172: 38.50 | L172: 26.74% | M172: Successful | N172: 2017-03-23
A173: 42 | B173: 2015-10-14 | D173: Gruh Finance | E173: Accu | F173: 264.00 | H173: 311 | I173: 311.00 | J173: Target Achieved | K173: 47.00 | L173: 17.80% | M173: Successful | N173: 2016-08-22
A174: 43 | B174: 2015-11-10 | D174: Pidilitind | E174: Buy | F174: 549.50 | H174: 630 | I174: 630.00 | J174: Target Achieved | K174: 80.50 | L174: 14.65% | M174: Successful | N174: 2016-02-19
A175: 44 | B175: 2015-12-04 | D175: Zensar Technology | E175: Accu | F175: 1027.50 | H175: 1315 | I175: 1250.00 | J175: Target Achieved | K175: 287.50 | L175: 27.98% | M175: Successful | N175: 2018-05-24
A176: 45 | B176: 2015-12-29 | D176: Vinati Organics Ltd | E176: Accu | F176: 465.00 | H176: 540 | I176: 540.00 | J176: Target Achieved | K176: 75.00 | L176: 16.13% | M176: Successful | N176: 2016-06-09
A177: 46 | B177: 2016-01-11 | D177: GSFC | E177: Buy | F177: 81.00 | H177: 110 | I177: 110.00 | J177: Target Achieved | K177: 29.00 | L177: 35.80% | M177: Successful | N177: 2017-01-10
A178: 47 | B178: 2016-01-13 | D178: SSWL | E178: Buy | F178: 417.50 | H178: 547 | I178: 535.00 | J178: Target Achieved | K178: 129.50 | L178: 31.02% | M178: Successful | N178: 2016-07-27
A179: 48 | B179: 2016-02-08 | D179: Persistent System Ltd | E179: Accu | F179: 650.00 | H179: 800 | I179: 800.00 | J179: Target Achieved | K179: 150.00 | L179: 23.08% | M179: Successful | N179: 2018-02-23
A180: 49 | B180: 2016-03-04 | D180: UPL | E180: Accu | F180: 437.50 | H180: 504.5 | I180: 522.00 | J180: Profit of Rs.67/- | K180: 67.00 | L180: 15.31% | M180: Successful | N180: 2016-04-20
A181: 50 | B181: 2016-03-09 | D181: Ashoka Buildcon Ltd | E181: Accu | F181: 189.50 | H181: 218 | I181: 218.00 | J181: Target Achieved | K181: 28.50 | L181: 15.04% | M181: Successful | N181: 2017-10-26
A182: 51 | B182: 2016-04-11 | D182: PTC INDIA FIN SERV LTD | E182: Accu | F182: 36.5 | H182: 15.85 | I182: 60.00 | J182: Loss of Rs.20.65/- | K182: -20.65 | L182: -56.58% | M182: Unsuccessful | N182: 2019-06-11
A183: 52 | B183: 2016-04-12 | D183: CAMLINFINE $ | E183: Accu | F183: 93.00 | H183: 149 | I183: 140.00 | J183: Profit of Rs 56/- | K183: 56.00 | L183: 60.22% | M183: Successful | N183: 2017-01-05
A184: 53 | B184: 2016-04-12 | D184: Greaves Cotton Ltd. | E184: Accu | F184: 130.00 | H184: 150 | I184: 150-155 | J184: Target Achieved | K184: 20.00 | L184: 15.38% | M184: Successful | N184: 2016-07-13
A185: 54 | B185: 2016-04-13 | D185: DHFL | E185: Accu | F185: 196.00 | H185: 299 | I185: 299.00 | J185: Target Achieved | K185: 103.00 | L185: 52.55% | M185: Successful | N185: 2016-09-07
A186: 55 | B186: 2016-04-13 | D186: Magma | E186: Accu | F186: 88.00 | H186: 103 | I186: 103.00 | J186: Target Achieved | K186: 15.00 | L186: 17.05% | M186: Successful | N186: 2016-06-09
A187: 56 | B187: 2016-05-02 | D187: KEC International ltd $ | E187: Accu | F187: 127.50 | H187: 148 | I187: 148-150 | J187: Target Achieved | K187: =H187-F187 -> 20.50 | L187: =K187/F187 -> 16.08% | M187: Successful | N187: 2016-07-13
A188: 57 | B188: 2016-05-03 | D188: Mindtree | E188: Accu | F188: 675.00 | H188: 815 | I188: 790-800 | J188: Target Achieved | K188: =H188-F188 -> 140.00 | L188: =K188/F188 -> 20.74% | M188: Successful | N188: 2018-02-23
A189: 58 | B189: 2016-06-01 | D189: Atulauto | E189: Accu | F189: 500 | H189: 232.50 | I189: 565-570 | J189: Loss of Rs.267.50 /- | K189: =H189-F189 -> -267.50 | L189: =K189/F189 -> -53.50% | M189: Unsuccessful | N189: 2019-09-27
A190: 59 | B190: 2016-06-06 | D190: TRITURBINE | E190: Accu | F190: 110.00 | H190: 126.5 | I190: 125.00 | J190: Profit of Rs.16.50/- | K190: =H190-F190 -> 16.50 | L190: =K190/F190 -> 15.00% | M190: Successful | N190: 2016-07-01
A191: 60 | B191: 2016-06-17 | D191: Pennar Industries Ltd | E191: Accu | F191: 44.00 | H191: 69.5 | I191: 69.50 | J191: Profit of Rs.25.50/- | K191: =H191-F191 -> 25.50 | L191: =K191/F191 -> 57.95% | M191: Successful | N191: 2017-08-30
A192: 61 | B192: 2016-06-28 | D192: EVEREADY | E192: Accu | F192: 262.50 | H192: 340 | I192: 333.00 | J192: Profit of Rs.77.50/- | K192: 77.50 | L192: 29.52% | M192: Successful | N192: 2017-10-09
A193: 62 | B193: 2016-06-28 | D193: FIEMIND | E193: Accu | F193: 840.00 | H193: 1230 | I193: 1230.00 | J193: Target Achieved | K193: 390.00 | L193: 46.43% | M193: Successful | N193: 2016-10-06
A194: 63 | B194: 2016-07-05 | D194: Bajaj Corp Ltd | E194: Accu | F194: 395 | H194: =(468.5+342.5)/2 -> 405.50 | I194: 510.00 | J194: Profit of Rs.10.50/- | K194: =H194-F194 -> 10.50 | L194: =K194/F194 -> 3% | M194: Neutral | N194: 2019-05-21
A195: 64 | B195: 2016-08-02 | D195: GPPL $ | E195: Buy | F195: 169.5 | H195: 77.00 | I195: 198-200 | J195: Loss of Rs.92.5/- | K195: -92.50 | L195: -54.57% | M195: Unsuccessful | N195: 2019-02-26
A196: 65 | B196: 2016-08-04 | D196: WONDERLA HOLIDAYS LTD | E196: Accu | F196: 400 | H196: 305.00 | I196: 475.00 | J196: Loss of Rs.95/- | K196: -95.00 | L196: -23.75% | M196: Unsuccessful | N196: 2019-05-21
A197: 66 | B197: 2016-08-11 | D197: CAMLINFINE | E197: Accu | F197: 86.50 | H197: 130 | I197: 130.00 | J197: Profit of Rs.43.50/- | K197: 43.50 | L197: 50.29% | M197: Successful | N197: 2017-12-22
A198: 67 | B198: 2016-08-18 | D198: GRANULES | E198: Accu | F198: 133.5 | H198: 126.50 | I198: 178.00 | J198: Exit | K198: -7.00 | L198: -5.24% | M198: Unsuccessful | N198: 2016-09-02
A199: 68 | B199: 2016-08-31 | D199: VA TECH WABAG | E199: Accu | F199: 560.00 | H199: 725 | I199: 725.00 | J199: Target Achieved | K199: 165.00 | L199: 29.46% | M199: Successful | N199: 2016-03-27
A200: 69 | B200: 2016-09-01 | D200: SKIPPER LIMITED | E200: Accu | F200: 160.50 | H200: 210 | I200: 210.00 | J200: Target Achieved | K200: 49.50 | L200: 30.84% | M200: Successful | N200: 2017-05-16
A201: 70 | B201: 2016-10-03 | D201: IFBIND | E201: Accu | F201: 430.00 | H201: 596 | I201: 575.00 | J201: Profit of Rs.166/- | K201: 166.00 | L201: 38.60% | M201: Successful | N201: 2017-02-03
A202: 71 | B202: 2016-10-14 | D202: ASIANTILES | E202: Accu | F202: 280.00 | H202: 345 | I202: 345.00 | J202: Target Achieved | K202: =H202-F202 -> 65.00 | L202: =K202/F202 -> 23.21% | M202: Successful | N202: 2017-03-20
A203: 72 | B203: 2016-10-14 | D203: DEEPIND | E203: Accu | F203: 245.00 | H203: 325.5 | I203: 330.00 | J203: Profit of Rs.80.5/- | K203: 80.50 | L203: =K203/F203 -> 32.86% | M203: Successful | N203: 2017-02-03
A204: 73 | B204: 2016-10-17 | D204: DCBBANK | E204: Accu | F204: 125.00 | H204: 160 | I204: 160.00 | J204: Target Achieved | K204: 35.00 | L204: 28.00% | M204: Successful | N204: 2017-03-09
A205: 74 | B205: 2016-10-17 | D205: ORIENTREF | E205: Accu | F205: 114.00 | H205: 145 | I205: 145.00 | J205: Target Achieved | K205: 31.00 | L205: =K205/F205 -> 27.19% | M205: Successful | N205: 2017-05-04
A206: 75 | B206: 2016-10-17 | D206: GANECOS | E206: Accu | F206: 212.00 | H206: 280 | I206: 276.00 | J206: Profit of Rs.68/- | K206: 68.00 | L206: =K206/F206 -> 32.08% | M206: Successful | N206: 2017-05-03
A207: 76 | B207: 2016-11-04 | D207: NBCC | E207: Accu | F207: 155.00 | H207: 210 | I207: 210.00 | J207: Profit of Rs.55/- | K207: 55.00 | L207: =K207/F207 -> 35.48% | M207: Successful | N207: 2017-07-28
A208: 77 | B208: 2016-12-06 | D208: PRECAM | E208: Accu | F208: 150.5 | H208: 72.50 | I208: 174.00 | J208: Loss of Rs.78/- | K208: -78.00 | L208: -51.83% | M208: Unsuccessful | N208: 2018-08-21
A209: 78 | B209: 2016-12-08 | D209: INFRATEL | E209: Accu | F209: 380.00 | H209: 478 | I209: 468.00 | J209: Target Achieved | K209: =H209-F209 -> 98.00 | L209: =K209/F209 -> 25.79% | M209: Successful | N209: 2017-10-17
A210: 79 | B210: 2016-12-30 | D210: GODREJPROP | E210: Accu | F210: 305.00 | H210: 375 | I210: 375.00 | J210: Target Achieved | K210: =H210-F210 -> 70.00 | L210: =K210/F210 -> 22.95% | M210: Successful | N210: 2017-02-02
A211: 80 | B211: 2017-01-04 | D211: DEEPAKNTR | E211: Accu | F211: 99.50 | H211: 158 | I211: 158.00 | J211: Target Achieved | K211: =H211-F211 -> 58.50 | L211: =K211/F211 -> 58.79% | M211: Successful | N211: 2017-06-12
A212: 81 | B212: 2017-01-04 | D212: DEEPAKNTR | E212: Accu | F212: 99.50 | H212: 158 | I212: 158.00 | J212: Target Achieved | K212: 58.50 | L212: 58.79% | M212: Successful | N212: 2017-06-12
A213: 82 | B213: 2017-02-20 | D213: RECLTD | E213: Accu | F213: 140.50 | H213: 220 | I213: 220.00 | J213: Target Achieved | K213: =H213-F213 -> 79.50 | L213: =K213/F213 -> 56.58% | M213: Successful | N213: 2017-05-09
A214: 83 | B214: 2017-02-20 | D214: SUBROS | E214: Accu | F214: 202.50 | H214: 234 | I214: 234.00 | J214: Target Achieved | K214: 31.50 | L214: 15.56% | M214: Successful | N214: 2017-04-11
A215: 84 | B215: 2017-03-24 | D215: VRLLOG | E215: Accu | F215: 300.50 | H215: 417.5 | I215: 420.00 | J215: Profit of Rs.117/- | K215: =H215-F215 -> 117.00 | L215: =K215/F215 -> 38.94% | M215: Successful | N215: 2017-12-01
A216: 85 | B216: 2017-03-24 | D216: FIEMIND | E216: Accu | F216: 850.00 | H216: 1042.5 | I216: 1023.00 | J216: Profit of Rs 192.50/- | K216: 192.50 | L216: 22.65% | M216: Successful | N216: 2017-04-05
A217: 86 | B217: 2017-04-05 | D217: RATNAMANI | E217: Accu | F217: 785.00 | H217: 930 | I217: 920.00 | J217: Profit of Rs.145/- | K217: =H217-F217 -> 145.00 | L217: =K217/F217 -> 18.47% | M217: Successful | N217: 2017-08-29
A218: 87 | B218: 2017-04-06 | D218: ZEEMEDIA | E218: Accu | F218: 40 | H218: 13.10 | I218: 60.00 | J218: Loss of Rs.26.9/- | K218: -26.90 | L218: -67.25% | M218: Unsuccessful | N218: 2018-02-07
A219: 88 | B219: 2017-04-12 | D219: DABUR | E219: Accu | F219: 289.50 | H219: 354 | I219: 360.00 | J219: Profit of Rs.64.5/- | K219: =H219-F219 -> 64.50 | L219: =K219/F219 -> 22.28% | M219: Successful | N219: 2017-11-01
A220: 89 | B220: 2017-04-20 | D220: KPRMILL | E220: Accu | F220: 700.00 | H220: 840 | I220: 840.00 | J220: Profit of Rs.140/- | K220: 140.00 | L220: 20.00% | M220: Successful | N220: 2017-06-07
A221: 90 | B221: 2017-06-01 | D221: ESSELPACK | E221: Accu | F221: 130.00 | H221: 144.25 | I221: 170.00 | J221: Profit of Rs.14.25/- | K221: 14.25 | L221: 10.96% | M221: Successful | N221: 2019-07-29
A222: 91 | B222: 2017-06-15 | D222: KEI | E222: Accu | F222: 214.50 | H222: 262 | I222: 262.00 | J222: Profit of Rs.47.5/- | K222: 47.50 | L222: 22.14% | M222: Successful | N222: 2017-08-30
A223: 92 | B223: 2017-07-17 | D223: MAYURUNIQ | E223: Accu | F223: 370.00 | H223: 447.5 | I223: 450.00 | J223: Target Achieved | K223: 77.50 | L223: 20.95% | M223: Successful | N223: 2017-10-27
A224: 93 | B224: 2017-07-27 | D224: RAMCOCEM | E224: Accu | F224: 657.50 | H224: 825 | I224: 820.00 | J224: Target Achieved | K224: 167.50 | L224: 25.48% | M224: Successful | N224: 2017-12-21
A225: 94 | B225: 2017-08-17 | D225: FINPIPE | E225: Accu | F225: 605.00 | H225: 750 | I225: 750.00 | J225: Profit of Rs.145/- | K225: 145.00 | L225: 23.97% | M225: Successful | N225: 2017-10-19
A226: 95 | B226: 2017-09-01 | D226: SHK | E226: Accu | F226: 255 | H226: 217.25 | I226: 320.00 | J226: Loss of Rs.37.75/- | K226: -37.75 | L226: -15% | M226: Unsuccessful | N226: 2019-07-15
A227: 96 | B227: 2017-09-19 | D227: SKIPPER | E227: Accu | F227: 215.00 | H227: 258 | I227: 258.00 | J227: Target Achieved | K227: 43.00 | L227: 20.00% | M227: Successful | N227: 2017-11-01
A228: 97 | B228: 2017-09-19 | D228: SKIPPER | E228: Accu | F228: 215.00 | H228: 258 | I228: 258.00 | J228: Target Achieved | K228: 43.00 | L228: 20.00% | M228: Successful | N228: 2017-11-01
A229: 98 | B229: 2017-09-20 | D229: CAMLINFINE$ | E229: Accu | F229: 75.00 | H229: 90 | I229: 90.00 | J229: Profit of Rs.15.00/- | K229: =H229-F229 -> 15.00 | L229: =K229/F229 -> 20.00% | M229: Successful | N229: 2017-10-11
A230: 99 | B230: 2017-10-03 | D230: GNA | E230: Accu | F230: 315.00 | H230: 392 | I230: 384.00 | J230: Profit of Rs.77/- | K230: 77.00 | L230: 24.44% | M230: Successful | N230: 2017-10-09
A231: 100 | B231: 2017-10-05 | D231: NOCIL | E231: Accu | F231: 145.00 | H231: 179 | I231: 180.00 | J231: Profit of Rs.34/- | K231: 34.00 | L231: 23.45% | M231: Successful | N231: 2017-10-17
A232: 101 | B232: 2017-10-06 | D232: CENTURYPLY | E232: Accu | F232: 256.00 | H232: 323 | I232: 320.00 | J232: Target Achieved | K232: 67.00 | L232: 26.17% | M232: Successful | N232: 2017-11-28
A233: 102 | B233: 2017-10-09 | D233: EIHOTEL | E233: Accu | F233: 137.50 | H233: 184 | I233: 183.00 | J233: Profit of Rs.46.5/- | K233: 46.50 | L233: 33.82% | M233: Successful | N233: 2018-01-08
A234: 103 | B234: 2017-10-10 | D234: NRBBEARING | E234: Accu | F234: 125.50 | H234: 158 | I234: 155.00 | J234: Profit of Rs.32.5/- | K234: 32.50 | L234: 25.90% | M234: Successful | N234: 2017-11-28
A235: 104 | B235: 2017-10-10 | D235: BOROSIL | E235: Accu | F235: 895.00 | H235: 1122.5 | I235: 1078.00 | J235: Profit of Rs.227.5/- | K235: 227.50 | L235: 25.42% | M235: Successful | N235: 2018-01-17
A236: 105 | B236: 2017-10-12 | D236: CYIENT | E236: Accu | F236: 525.00 | H236: 629 | I236: 629.00 | J236: Target Achieved | K236: 104.00 | L236: 19.81% | M236: Successful | N236: 2018-01-19
... 48 more rows

Sheet Sheet2 (hidden)
A1: SYMBOL | B1: SERIES | C1: OPEN | D1: HIGH | E1: LOW | F1: CLOSE | G1: LAST | H1: PREVCLOSE | I1: TOTTRDQTY | J1: TOTTRDVAL | K1: TIMESTAMP | L1: TOTALTRADES | M1: ISIN | N1: ISIN
A2: 20MICRONS | B2: EQ | C2: 32.35 | D2: 34.8 | E2: 32.35 | F2: 33.2 | G2: 33.3 | H2: 32.8 | I2: 24770 | J2: 835535.35 | K2: 2020-01-07 | L2: 604 | M2: INE144J01027
A3: 21STCENMGM | B3: EQ | C3: 16.5 | D3: 16.5 | E3: 16.5 | F3: 16.5 | G3: 16.5 | H3: 16.2 | I3: 2520 | J3: 41580 | K3: 2020-01-07 | L3: 10 | M3: INE253B01015
A4: 3IINFOTECH | B4: EQ | C4: 2.2 | D4: 2.35 | E4: 2.15 | F4: 2.25 | G4: 2.3 | H4: 2.15 | I4: 7695279 | J4: 17350494.95 | K4: 2020-01-07 | L4: 1468 | M4: INE748C01020
A5: 3MINDIA | B5: EQ | C5: 21300 | D5: 21876 | E5: 21025 | F5: 21660.4 | G5: 21850 | H5: 21089.7 | I5: 6441 | J5: 137757946.1 | K5: 2020-01-07 | L5: 1302 | M5: INE470A01017
A6: 3PLAND | B6: EQ | C6: 6.45 | D6: 6.45 | E6: 5.85 | F6: 6.4 | G6: 6.4 | H6: 6.15 | I6: 180 | J6: 1135.1 | K6: 2020-01-07 | L6: 8 | M6: INE105C01023
A7: 5PAISA | B7: EQ | C7: 207 | D7: 210.45 | E7: 200.75 | F7: 204.75 | G7: 204 | H7: 198.05 | I7: 17367 | J7: 3548664.7 | K7: 2020-01-07 | L7: 572 | M7: INE618L01018
A8: 63MOONS | B8: EQ | C8: 105.2 | D8: 110.35 | E8: 105.2 | F8: 107.75 | G8: 107.5 | H8: 104.2 | I8: 244357 | J8: 26308317.6 | K8: 2020-01-07 | L8: 4796 | M8: INE111B01023
A9: A2ZINFRA | B9: EQ | C9: 8.5 | D9: 8.5 | E9: 8.15 | F9: 8.2 | G9: 8.15 | H9: 8.05 | I9: 127374 | J9: 1051451.2 | K9: 2020-01-07 | L9: 291 | M9: INE619I01012
A10: AARTIDRUGS | B10: EQ | C10: 563 | D10: 587 | E10: 563 | F10: 573.1 | G10: 573.05 | H10: 562.15 | I10: 10871 | J10: 6277209.95 | K10: 2020-01-07 | L10: 871 | M10: INE767A01016
A11: AARTIIND | B11: EQ | C11: 864.8 | D11: 905.1 | E11: 860 | F11: 892.25 | G11: 890 | H11: 855.95 | I11: 682246 | J11: 608272141.1 | K11: 2020-01-07 | L11: 14269 | M11: INE769A01020
A12: AARVEEDEN | B12: EQ | C12: 14.5 | D12: 14.5 | E12: 13.65 | F12: 13.95 | G12: 13.85 | H12: 14.15 | I12: 8993 | J12: 125751.8 | K12: 2020-01-07 | L12: 57 | M12: INE273D01019
A13: AAVAS | B13: EQ | C13: 1993.05 | D13: 2079 | E13: 1965.85 | F13: 1970.8 | G13: 1970.25 | H13: 1990.2 | I13: 80277 | J13: 162029728.2 | K13: 2020-01-07 | L13: 9838 | M13: INE216P01012
A14: ABAN | B14: EQ | C14: 28.75 | D14: 28.85 | E14: 27.15 | F14: 27.5 | G14: 27.5 | H14: 28.25 | I14: 76497 | J14: 2132249.25 | K14: 2020-01-07 | L14: 564 | M14: INE421A01028
A15: ABB | B15: EQ | C15: 1298 | D15: 1315 | E15: 1289 | F15: 1306.75 | G15: 1299.95 | H15: 1287 | I15: 27246 | J15: 35498571.45 | K15: 2020-01-07 | L15: 2127 | M15: INE117A01022
A16: ABBOTINDIA | B16: EQ | C16: 12881.1 | D16: 13074.95 | E16: 12657 | F16: 12742.9 | G16: 12749.85 | H16: 12780.3 | I16: 17812 | J16: 228117434.8 | K16: 2020-01-07 | L16: 4751 | M16: INE358A01014
A17: ABCAPITAL | B17: EQ | C17: 103.1 | D17: 104.5 | E17: 101.5 | F17: 102.35 | G17: 102.1 | H17: 101.2 | I17: 1932133 | J17: 198888214.8 | K17: 2020-01-07 | L17: 17100 | M17: INE674K01013
A18: ABFRL | B18: EQ | C18: 239.95 | D18: 239.95 | E18: 230.25 | F18: 232.35 | G18: 230.25 | H18: 234.4 | I18: 303954 | J18: 70973806.3 | K18: 2020-01-07 | L18: 6861 | M18: INE647O01011
A19: ABMINTLTD | B19: BE | C19: 14.75 | D19: 14.75 | E19: 14.75 | F19: 14.75 | G19: 14.75 | H19: 14.75 | I19: 38 | J19: 560.5 | K19: 2020-01-07 | L19: 1 | M19: INE251C01017
A20: ABSLBANETF | B20: EQ | C20: 317.6 | D20: 317.6 | E20: 315 | F20: 315.22 | G20: 315.22 | H20: 311.26 | I20: 18 | J20: 5709.22 | K20: 2020-01-07 | L20: 3 | M20: INF209KB1O58
A21: ABSLNN50ET | B21: EQ | C21: 284.17 | D21: 284.17 | E21: 283 | F21: 283 | G21: 283 | H21: 282.52 | I21: 162 | J21: 45847.17 | K21: 2020-01-07 | L21: 2 | M21: INF209KB1B87
A22: ACC | B22: EQ | C22: 1450 | D22: 1465.05 | E22: 1436 | F22: 1456 | G22: 1453.1 | H22: 1435.55 | I22: 863805 | J22: 1254520967 | K22: 2020-01-07 | L22: 26295 | M22: INE012A01025
A23: ACCELYA | B23: EQ | C23: 1035.5 | D23: 1060 | E23: 1035.5 | F23: 1050.35 | G23: 1055 | H23: 1054.85 | I23: 3407 | J23: 3581373.75 | K23: 2020-01-07 | L23: 300 | M23: INE793A01012
A24: ACE | B24: EQ | C24: 81.4 | D24: 82.8 | E24: 80.1 | F24: 81.8 | G24: 81.55 | H24: 79.4 | I24: 152142 | J24: 12401048.05 | K24: 2020-01-07 | L24: 2471 | M24: INE731H01025
A25: ADANIENT | B25: EQ | C25: 200.55 | D25: 205.7 | E25: 200.55 | F25: 204.05 | G25: 202.95 | H25: 199.55 | I25: 2966120 | J25: 603438498.4 | K25: 2020-01-07 | L25: 17757 | M25: INE423A01024
A26: ADANIGAS | B26: EQ | C26: 165.8 | D26: 173 | E26: 165.8 | F26: 171.1 | G26: 171 | H26: 163.3 | I26: 3698599 | J26: 630139001.5 | K26: 2020-01-07 | L26: 30387 | M26: INE399L01023
A27: ADANIGREEN | B27: EQ | C27: 208 | D27: 210.6 | E27: 203 | F27: 210.6 | G27: 210.6 | H27: 200.6 | I27: 2126797 | J27: 445480469.2 | K27: 2020-01-07 | L27: 15650 | M27: INE364U01010
A28: ADANIPORTS | B28: EQ | C28: 384.05 | D28: 389.75 | E28: 382.4 | F28: 384.8 | G28: 384.05 | H28: 380.2 | I28: 8091465 | J28: 3119177905 | K28: 2020-01-07 | L28: 58470 | M28: INE742F01042
A29: ADANIPOWER | B29: EQ | C29: 60.35 | D29: 61.75 | E29: 59.65 | F29: 61 | G29: 60.6 | H29: 60.1 | I29: 8704020 | J29: 529984117.1 | K29: 2020-01-07 | L29: 18340 | M29: INE814H01011
A30: ADANITRANS | B30: EQ | C30: 328 | D30: 344 | E30: 327.65 | F30: 332.05 | G30: 332 | H30: 324.05 | I30: 397234 | J30: 132429169.4 | K30: 2020-01-07 | L30: 11340 | M30: INE931S01010
A31: ADFFOODS | B31: EQ | C31: 294.2 | D31: 302 | E31: 294 | F31: 296.65 | G31: 297.8 | H31: 292.9 | I31: 25217 | J31: 7508917.95 | K31: 2020-01-07 | L31: 1143 | M31: INE982B01019
A32: ADHUNIKIND | B32: EQ | C32: 40.75 | D32: 43.6 | E32: 40.75 | F32: 42.85 | G32: 42.1 | H32: 42.85 | I32: 28859 | J32: 1196579.5 | K32: 2020-01-07 | L32: 301 | M32: INE452L01012
A33: ADLABS | B33: BE | C33: 4.15 | D33: 4.4 | E33: 4.15 | F33: 4.15 | G33: 4.25 | H33: 4.35 | I33: 41082 | J33: 172990.45 | K33: 2020-01-07 | L33: 134 | M33: INE172N01012
A34: ADORWELD | B34: EQ | C34: 307.9 | D34: 307.9 | E34: 297.5 | F34: 300.25 | G34: 301.9 | H34: 297.75 | I34: 1432 | J34: 430689.65 | K34: 2020-01-07 | L34: 113 | M34: INE045A01017
A35: ADROITINFO | B35: BE | C35: 6.65 | D35: 6.65 | E35: 6.65 | F35: 6.65 | G35: 6.65 | H35: 6.6 | I35: 614 | J35: 4083.1 | K35: 2020-01-07 | L35: 5 | M35: INE737B01033
A36: ADSL | B36: BE | C36: 19.7 | D36: 20.35 | E36: 19.5 | F36: 19.75 | G36: 19.75 | H36: 19.7 | I36: 10949 | J36: 217705.15 | K36: 2020-01-07 | L36: 75 | M36: INE102I01027
A37: ADVANIHOTR | B37: EQ | C37: 52.4 | D37: 53.95 | E37: 52.25 | F37: 52.5 | G37: 52.8 | H37: 52.2 | I37: 1346 | J37: 70963.9 | K37: 2020-01-07 | L37: 31 | M37: INE199C01026
A38: ADVENZYMES | B38: EQ | C38: 165.05 | D38: 168.55 | E38: 164.1 | F38: 165.45 | G38: 165.45 | H38: 164.9 | I38: 33876 | J38: 5635241 | K38: 2020-01-07 | L38: 1079 | M38: INE837H01020
A39: AEGISCHEM | B39: EQ | C39: 184.65 | D39: 190.75 | E39: 182.5 | F39: 185.05 | G39: 187 | H39: 186.1 | I39: 95116 | J39: 17744031.25 | K39: 2020-01-07 | L39: 3200 | M39: INE208C01025
A40: AFFLE | B40: EQ | C40: 1536.55 | D40: 1594 | E40: 1536.55 | F40: 1559.1 | G40: 1560.4 | H40: 1526.9 | I40: 77640 | J40: 121859544.8 | K40: 2020-01-07 | L40: 6204 | M40: INE00WC01019
A41: AGARIND | B41: EQ | C41: 115.2 | D41: 121 | E41: 108.7 | F41: 110.8 | G41: 109 | H41: 115.2 | I41: 6214 | J41: 707389.85 | K41: 2020-01-07 | L41: 217 | M41: INE204E01012
A42: AGCNET | B42: EQ | C42: 146.95 | D42: 148.9 | E42: 144.55 | F42: 147.55 | G42: 148.5 | H42: 146.05 | I42: 3558 | J42: 522141.65 | K42: 2020-01-07 | L42: 60 | M42: INE676A01019
A43: AGRITECH | B43: EQ | C43: 43.95 | D43: 45.7 | E43: 43.5 | F43: 44.15 | G43: 44.7 | H43: 43.6 | I43: 4679 | J43: 207790.85 | K43: 2020-01-07 | L43: 82 | M43: INE449G01018
A44: AGROPHOS | B44: EQ | C44: 58.75 | D44: 58.75 | E44: 58.75 | F44: 58.75 | G44: 58.75 | H44: 61.8 | I44: 595 | J44: 34956.25 | K44: 2020-01-07 | L44: 69 | M44: INE740V01019
A45: AHLEAST | B45: EQ | C45: 170 | D45: 174 | E45: 167.45 | F45: 172.65 | G45: 172.9 | H45: 169.15 | I45: 4126 | J45: 705082.75 | K45: 2020-01-07 | L45: 562 | M45: INE926K01017
A46: AHLUCONT | B46: EQ | C46: 289.3 | D46: 301 | E46: 289.3 | F46: 298 | G46: 298 | H46: 295.1 | I46: 171563 | J46: 51125136.25 | K46: 2020-01-07 | L46: 479 | M46: INE758C01029
A47: AHLWEST | B47: EQ | C47: 357 | D47: 374 | E47: 352.65 | F47: 361.05 | G47: 361 | H47: 358.1 | I47: 2899 | J47: 1048281.05 | K47: 2020-01-07 | L47: 91 | M47: INE915K01010
A48: AIAENG | B48: EQ | C48: 1628.45 | D48: 1655.75 | E48: 1620.65 | F48: 1649.3 | G48: 1650 | H48: 1628.45 | I48: 32580 | J48: 53440305.55 | K48: 2020-01-07 | L48: 1287 | M48: INE212H01026
A49: AIONJSW | B49: EQ | C49: 17.05 | D49: 17.4 | E49: 16.9 | F49: 16.9 | G49: 16.9 | H49: 17.75 | I49: 85044 | J49: 1439070.15 | K49: 2020-01-07 | L49: 190 | M49: INE743C01021
A50: AIRAN | B50: EQ | C50: 13.55 | D50: 13.65 | E50: 12.8 | F50: 13.25 | G50: 13.5 | H50: 13.05 | I50: 5888 | J50: 76639.1 | K50: 2020-01-07 | L50: 88 | M50: INE645W01026
A51: AJANTPHARM | B51: EQ | C51: 980.3 | D51: 1010 | E51: 966.2 | F51: 1006.5 | G51: 1009.9 | H51: 975.65 | I51: 113527 | J51: 112571289.2 | K51: 2020-01-07 | L51: 6075 | M51: INE031B01049
A52: AJMERA | B52: EQ | C52: 122 | D52: 127.5 | E52: 121.75 | F52: 124.45 | G52: 125.3 | H52: 120.7 | I52: 82082 | J52: 10258157.2 | K52: 2020-01-07 | L52: 2566 | M52: INE298G01027
A53: AKASH | B53: EQ | C53: 73 | D53: 73.35 | E53: 72 | F53: 73 | G53: 73 | H53: 70.05 | I53: 5652 | J53: 412098.55 | K53: 2020-01-07 | L53: 23 | M53: INE737W01013
A54: AKSHARCHEM | B54: EQ | C54: 239.9 | D54: 249.3 | E54: 230 | F54: 234.75 | G54: 235 | H54: 234.55 | I54: 6793 | J54: 1601527.85 | K54: 2020-01-07 | L54: 299 | M54: INE542B01011
A55: AKSHOPTFBR | B55: EQ | C55: 6.6 | D55: 6.85 | E55: 6.6 | F55: 6.7 | G55: 6.75 | H55: 6.65 | I55: 125302 | J55: 848338.3 | K55: 2020-01-07 | L55: 225 | M55: INE523B01011
A56: AKZOINDIA | B56: EQ | C56: 1931.05 | D56: 2079.9 | E56: 1931.05 | F56: 1979.75 | G56: 1966 | H56: 1951.05 | I56: 22439 | J56: 45460442.45 | K56: 2020-01-07 | L56: 3528 | M56: INE133A01011
A57: ALANKIT | B57: EQ | C57: 12.3 | D57: 12.8 | E57: 12.25 | F57: 12.75 | G57: 12.75 | H57: 12.4 | I57: 19227 | J57: 243757.7 | K57: 2020-01-07 | L57: 121 | M57: INE914E01040
A58: ALBERTDAVD | B58: EQ | C58: 410 | D58: 418.5 | E58: 410 | F58: 411.3 | G58: 410.5 | H58: 410 | I58: 4440 | J58: 1831277.15 | K58: 2020-01-07 | L58: 367 | M58: INE155C01010
A59: ALBK | B59: EQ | C59: 18.65 | D59: 18.9 | E59: 18.5 | F59: 18.6 | G59: 18.6 | H59: 18.45 | I59: 800098 | J59: 14901616.5 | K59: 2020-01-07 | L59: 2599 | M59: INE428A01015
A60: ALCHEM | B60: BE | C60: 1.05 | D60: 1.05 | E60: 1.05 | F60: 1.05 | G60: 1.05 | H60: 1 | I60: 1045 | J60: 1097.25 | K60: 2020-01-07 | L60: 5 | M60: INE964B01033
A61: ALEMBICLTD | B61: EQ | C61: 57.45 | D61: 59.15 | E61: 57.2 | F61: 57.65 | G61: 57.95 | H61: 57.45 | I61: 124886 | J61: 7251431.15 | K61: 2020-01-07 | L61: 2595 | M61: INE426A01027
A62: ALICON | B62: EQ | C62: 404 | D62: 405 | E62: 393.15 | F62: 398.2 | G62: 400 | H62: 388.5 | I62: 7083 | J62: 2831954.2 | K62: 2020-01-07 | L62: 249 | M62: INE062D01024
A63: ALKALI | B63: EQ | C63: 40.7 | D63: 41.5 | E63: 40.7 | F63: 41.45 | G63: 41.5 | H63: 40.4 | I63: 2669 | J63: 110275.15 | K63: 2020-01-07 | L63: 22 | M63: INE773I01017
A64: ALKEM | B64: EQ | C64: 2095 | D64: 2125 | E64: 2092.15 | F64: 2117.15 | G64: 2120 | H64: 2089.55 | I64: 360489 | J64: 757723996 | K64: 2020-01-07 | L64: 6029 | M64: INE540L01014
A65: ALKYLAMINE | B65: EQ | C65: 1145.1 | D65: 1250 | E65: 1145.1 | F65: 1241.65 | G65: 1234 | H65: 1142.25 | I65: 52025 | J65: 63279231.1 | K65: 2020-01-07 | L65: 4952 | M65: INE150B01021
A66: ALLCARGO | B66: EQ | C66: 97.5 | D66: 100.4 | E66: 97.5 | F66: 98.6 | G66: 98.8 | H66: 97.7 | I66: 51941 | J66: 5153209.6 | K66: 2020-01-07 | L66: 890 | M66: INE418H01029
A67: ALLSEC | B67: EQ | C67: 296 | D67: 296 | E67: 284 | F67: 293.25 | G67: 294 | H67: 284.05 | I67: 315 | J67: 92000.05 | K67: 2020-01-07 | L67: 60 | M67: INE835G01018
A68: ALMONDZ | B68: EQ | C68: 11.95 | D68: 12 | E68: 11.4 | F68: 11.95 | G68: 11.95 | H68: 11.95 | I68: 547 | J68: 6395.65 | K68: 2020-01-07 | L68: 16 | M68: INE326B01027
A69: ALOKTEXT | B69: BE | C69: 3.05 | D69: 3.1 | E69: 2.95 | F69: 3.05 | G69: 3.1 | H69: 3 | I69: 1067484 | J69: 3238391.8 | K69: 2020-01-07 | L69: 1053 | M69: INE270A01011
A70: ALPA | B70: EQ | C70: 16.75 | D70: 16.75 | E70: 16.3 | F70: 16.4 | G70: 16.4 | H70: 16.25 | I70: 12243 | J70: 201037.25 | K70: 2020-01-07 | L70: 76 | M70: INE385I01010
A71: ALPHAGEO | B71: EQ | C71: 189.5 | D71: 192.9 | E71: 186.35 | F71: 190.05 | G71: 191.5 | H71: 189.1 | I71: 4351 | J71: 826437.45 | K71: 2020-01-07 | L71: 201 | M71: INE137C01018
A72: ALPSINDUS | B72: BE | C72: 1.95 | D72: 1.95 | E72: 1.95 | F72: 1.95 | G72: 1.95 | H72: 2.05 | I72: 5967 | J72: 11635.65 | K72: 2020-01-07 | L72: 25 | M72: INE093B01015
A73: AMARAJABAT | B73: EQ | C73: 717.1 | D73: 737 | E73: 717.1 | F73: 726.25 | G73: 725 | H73: 715.55 | I73: 813022 | J73: 592676612.8 | K73: 2020-01-07 | L73: 28450 | M73: INE885A01032
A74: AMBER | B74: EQ | C74: 1140 | D74: 1175 | E74: 1140 | F74: 1171.85 | G74: 1170 | H74: 1135.25 | I74: 60101 | J74: 70019432.75 | K74: 2020-01-07 | L74: 3840 | M74: INE371P01015
A75: AMBIKCO | B75: EQ | C75: 859.95 | D75: 859.95 | E75: 837.15 | F75: 839.8 | G75: 840 | H75: 834.25 | I75: 3720 | J75: 3143720 | K75: 2020-01-07 | L75: 339 | M75: INE540G01014
A76: AMBUJACEM | B76: EQ | C76: 198.1 | D76: 202.55 | E76: 196.7 | F76: 199 | G76: 199.1 | H76: 196.9 | I76: 3557312 | J76: 708267158.9 | K76: 2020-01-07 | L76: 24608 | M76: INE079A01024
A77: AMDIND | B77: EQ | C77: 15.8 | D77: 15.9 | E77: 15.4 | F77: 15.45 | G77: 15.65 | H77: 15.8 | I77: 6281 | J77: 98443.9 | K77: 2020-01-07 | L77: 33 | M77: INE005I01014
A78: AMJLAND | B78: EQ | C78: 20.5 | D78: 24 | E78: 20.5 | F78: 22.5 | G78: 22.7 | H78: 20.3 | I78: 91212 | J78: 2059607.05 | K78: 2020-01-07 | L78: 522 | M78: INE606A01024
A79: AMRUTANJAN | B79: EQ | C79: 425.5 | D79: 436.9 | E79: 424.6 | F79: 425.2 | G79: 426 | H79: 425.15 | I79: 12315 | J79: 5279552.45 | K79: 2020-01-07 | L79: 665 | M79: INE098F01031
A80: ANANTRAJ | B80: EQ | C80: 33.95 | D80: 34.7 | E80: 33.7 | F80: 34.4 | G80: 34.4 | H80: 33.35 | I80: 348829 | J80: 11960573.6 | K80: 2020-01-07 | L80: 2688 | M80: INE242C01024
A81: ANDHRABANK | B81: EQ | C81: 16.4 | D81: 16.55 | E81: 16.35 | F81: 16.4 | G81: 16.4 | H81: 16.3 | I81: 349656 | J81: 5751134.7 | K81: 2020-01-07 | L81: 1674 | M81: INE434A01013
A82: ANDHRACEMT | B82: EQ | C82: 2 | D82: 2.1 | E82: 2 | F82: 2.1 | G82: 2.1 | H82: 2 | I82: 155579 | J82: 321325.75 | K82: 2020-01-07 | L82: 117 | M82: INE666E01012
A83: ANDHRSUGAR | B83: EQ | C83: 307.95 | D83: 313 | E83: 303.4 | F83: 308.45 | G83: 310 | H83: 299.3 | I83: 58496 | J83: 18047603.3 | K83: 2020-01-07 | L83: 2212 | M83: INE715B01013
A84: ANIKINDS | B84: EQ | C84: 7.75 | D84: 8.3 | E84: 7.75 | F84: 8.3 | G84: 8.3 | H84: 8.1 | I84: 270 | J84: 2207 | K84: 2020-01-07 | L84: 5 | M84: INE087B01017
A85: ANKITMETAL | B85: BE | C85: 0.55 | D85: 0.55 | E85: 0.5 | F85: 0.55 | G85: 0.5 | H85: 0.55 | I85: 23167 | J85: 11817.05 | K85: 2020-01-07 | L85: 28 | M85: INE106I01010
A86: ANSALAPI | B86: EQ | C86: 4.9 | D86: 5.1 | E86: 4.85 | F86: 5.05 | G86: 5.05 | H86: 4.9 | I86: 55478 | J86: 277340.3 | K86: 2020-01-07 | L86: 95 | M86: INE436A01026
A87: ANSALHSG | B87: BE | C87: 5.25 | D87: 5.6 | E87: 5.25 | F87: 5.3 | G87: 5.3 | H87: 5.4 | I87: 9368 | J87: 50653.05 | K87: 2020-01-07 | L87: 30 | M87: INE880B01015
A88: ANTGRAPHIC | B88: BE | C88: 0.55 | D88: 0.6 | E88: 0.55 | F88: 0.6 | G88: 0.6 | H88: 0.6 | I88: 4399 | J88: 2519.5 | K88: 2020-01-07 | L88: 19 | M88: INE414B01021
A89: ANUP | B89: EQ | C89: 470 | D89: 494.6 | E89: 470 | F89: 484.2 | G89: 483 | H89: 470 | I89: 9808 | J89: 4760645.85 | K89: 2020-01-07 | L89: 516 | M89: INE294Z01018
A90: APARINDS | B90: EQ | C90: 390.25 | D90: 398 | E90: 390.25 | F90: 394.8 | G90: 395.95 | H90: 389.85 | I90: 13089 | J90: 5168524.05 | K90: 2020-01-07 | L90: 1545 | M90: INE372A01015
A91: APCL | B91: EQ | C91: 144.15 | D91: 152.7 | E91: 144 | F91: 149.9 | G91: 150 | H91: 144.15 | I91: 8477 | J91: 1255572.9 | K91: 2020-01-07 | L91: 191 | M91: INE071F01012
A92: APCOTEXIND | B92: EQ | C92: 158.3 | D92: 162.4 | E92: 156.2 | F92: 157.55 | G92: 156.25 | H92: 157.5 | I92: 17127 | J92: 2713082.35 | K92: 2020-01-07 | L92: 621 | M92: INE116A01032
A93: APEX | B93: EQ | C93: 396.4 | D93: 417.9 | E93: 393.2 | F93: 406.8 | G93: 407 | H93: 383.15 | I93: 1356115 | J93: 554227432.3 | K93: 2020-01-07 | L93: 29167 | M93: INE346W01013
A94: APLAPOLLO | B94: EQ | C94: 1802.1 | D94: 1850.1 | E94: 1792.65 | F94: 1842.5 | G94: 1850.1 | H94: 1775.55 | I94: 27512 | J94: 50511349.6 | K94: 2020-01-07 | L94: 3125 | M94: INE702C01019
A95: APLLTD | B95: EQ | C95: 566.1 | D95: 574.9 | E95: 554.1 | F95: 556.55 | G95: 555.1 | H95: 566.7 | I95: 38931 | J95: 21821786.4 | K95: 2020-01-07 | L95: 1981 | M95: INE901L01018
A96: APOLLO | B96: EQ | C96: 74.05 | D96: 76.4 | E96: 73.25 | F96: 73.65 | G96: 73.8 | H96: 73.7 | I96: 21849 | J96: 1625256.25 | K96: 2020-01-07 | L96: 606 | M96: INE713T01010
A97: APOLLOHOSP | B97: EQ | C97: 1475 | D97: 1498.95 | E97: 1472.55 | F97: 1478.7 | G97: 1482 | H97: 1462.5 | I97: 365266 | J97: 542175199.1 | K97: 2020-01-07 | L97: 16282 | M97: INE437A01024
A98: APOLLOPIPE | B98: EQ | C98: 354.4 | D98: 354.4 | E98: 342.1 | F98: 352.15 | G98: 348.2 | H98: 346.9 | I98: 5537 | J98: 1943631.4 | K98: 2020-01-07 | L98: 1025 | M98: INE126J01016
A99: APOLLOTYRE | B99: EQ | C99: 162.5 | D99: 165.4 | E99: 158.45 | F99: 161.25 | G99: 161.3 | H99: 160.5 | I99: 2654726 | J99: 429852936.1 | K99: 2020-01-07 | L99: 18995 | M99: INE438A01022
A100: APOLSINHOT | B100: EQ | C100: 728 | D100: 751.05 | E100: 728 | F100: 735 | G100: 735 | H100: 727.05 | I100: 1137 | J100: 847338.75 | K100: 2020-01-07 | L100: 299 | M100: INE451F01024
A101: APTECHT | B101: EQ | C101: 158.1 | D101: 161 | E101: 156.5 | F101: 157.6 | G101: 157.6 | H101: 155.85 | I101: 148637 | J101: 23607270.4 | K101: 2020-01-07 | L101: 3265 | M101: INE266F01018
A102: ARCHIDPLY | B102: EQ | C102: 27.4 | D102: 28.4 | E102: 27.15 | F102: 27.9 | G102: 28 | H102: 27.1 | I102: 12830 | J102: 355340.4 | K102: 2020-01-07 | L102: 144 | M102: INE877I01016
A103: ARCHIES | B103: EQ | C103: 18.15 | D103: 18.2 | E103: 17.5 | F103: 17.85 | G103: 17.75 | H103: 17.75 | I103: 19088 | J103: 340682.5 | K103: 2020-01-07 | L103: 148 | M103: INE731A01020
A104: ARCOTECH | B104: BE | C104: 2.2 | D104: 2.35 | E104: 2.2 | F104: 2.35 | G104: 2.35 | H104: 2.3 | I104: 22479 | J104: 50787.25 | K104: 2020-01-07 | L104: 40 | M104: INE574I01035
A105: ARIES | B105: EQ | C105: 67.85 | D105: 68.3 | E105: 67.25 | F105: 67.6 | G105: 67.5 | H105: 67.45 | I105: 28505 | J105: 1933004.45 | K105: 2020-01-07 | L105: 391 | M105: INE298I01015
A106: ARIHANT | B106: EQ | C106: 21.6 | D106: 21.6 | E106: 20.1 | F106: 20.4 | G106: 20.9 | H106: 20.75 | I106: 353 | J106: 7208 | K106: 2020-01-07 | L106: 13 | M106: INE413D01011
A107: ARIHANTSUP | B107: EQ | C107: 29 | D107: 29 | E107: 27.5 | F107: 28.3 | G107: 28.8 | H107: 28.15 | I107: 973 | J107: 27386.95 | K107: 2020-01-07 | L107: 50 | M107: INE643K01018
A108: ARMANFIN | B108: EQ | C108: 686 | D108: 701 | E108: 686 | F108: 699.3 | G108: 690.15 | H108: 685.85 | I108: 14522 | J108: 10144617 | K108: 2020-01-07 | L108: 560 | M108: INE109C01017
A109: AROGRANITE | B109: EQ | C109: 38.75 | D109: 40.8 | E109: 37.25 | F109: 40 | G109: 40.8 | H109: 37.4 | I109: 13715 | J109: 539503.3 | K109: 2020-01-07 | L109: 171 | M109: INE210C01013
A110: ARROWGREEN | B110: EQ | C110: 46.5 | D110: 48.85 | E110: 46.5 | F110: 48.15 | G110: 48.4 | H110: 47.8 | I110: 1075 | J110: 51167.05 | K110: 2020-01-07 | L110: 112 | M110: INE570D01018
A111: ARROWTEX | B111: BE | C111: 10 | D111: 10.15 | E111: 9.8 | F111: 10 | G111: 10.15 | H111: 10.2 | I111: 1606 | J111: 16040.1 | K111: 2020-01-07 | L111: 25 | M111: INE933J01015
A112: ARSHIYA | B112: EQ | C112: 15.3 | D112: 16.45 | E112: 15.3 | F112: 16.3 | G112: 16.3 | H112: 15.95 | I112: 4597 | J112: 74692.25 | K112: 2020-01-07 | L112: 60 | M112: INE968D01022
A113: ARSSINFRA | B113: EQ | C113: 21.2 | D113: 23.25 | E113: 21.2 | F113: 21.95 | G113: 22.4 | H113: 21.7 | I113: 18710 | J113: 413956.65 | K113: 2020-01-07 | L113: 66 | M113: INE267I01010
A114: ARVIND | B114: EQ | C114: 40.8 | D114: 41.55 | E114: 39.9 | F114: 40.1 | G114: 40.1 | H114: 40.65 | I114: 1165432 | J114: 47430629 | K114: 2020-01-07 | L114: 7537 | M114: INE034A01011
A115: ARVINDFASN | B115: EQ | C115: 403.9 | D115: 403.9 | E115: 394.05 | F115: 397.4 | G115: 399.75 | H115: 395.15 | I115: 35304 | J115: 14031659.35 | K115: 2020-01-07 | L115: 1138 | M115: INE955V01021
A116: ARVSMART | B116: EQ | C116: 85.1 | D116: 92 | E116: 85.05 | F116: 86.9 | G116: 86.75 | H116: 86 | I116: 3371 | J116: 292328.35 | K116: 2020-01-07 | L116: 293 | M116: INE034S01021
A117: ASAHIINDIA | B117: EQ | C117: 205.5 | D117: 208.25 | E117: 202.4 | F117: 207.95 | G117: 207.5 | H117: 205.5 | I117: 7632 | J117: 1584028.1 | K117: 2020-01-07 | L117: 234 | M117: INE439A01020
A118: ASAHISONG | B118: EQ | C118: 151.1 | D118: 157 | E118: 151 | F118: 154.55 | G118: 153.05 | H118: 152.1 | I118: 11482 | J118: 1770921.95 | K118: 2020-01-07 | L118: 206 | M118: INE228I01012
A119: ASAL | B119: EQ | C119: 33.45 | D119: 33.8 | E119: 33.45 | F119: 33.7 | G119: 33.7 | H119: 33.25 | I119: 3654 | J119: 122938.4 | K119: 2020-01-07 | L119: 86 | M119: INE900C01027
A120: ASHAPURMIN | B120: EQ | C120: 29.1 | D120: 31.15 | E120: 29 | F120: 31.15 | G120: 31.15 | H120: 29.7 | I120: 34818 | J120: 1078447.1 | K120: 2020-01-07 | L120: 232 | M120: INE348A01023
A121: ASHIANA | B121: EQ | C121: 103.65 | D121: 106 | E121: 102.55 | F121: 105.85 | G121: 105.9 | H121: 102.1 | I121: 16607 | J121: 1741006.4 | K121: 2020-01-07 | L121: 310 | M121: INE365D01021
A122: ASHIMASYN | B122: EQ | C122: 7.1 | D122: 7.9 | E122: 6.7 | F122: 6.9 | G122: 6.95 | H122: 6.95 | I122: 137927 | J122: 990643 | K122: 2020-01-07 | L122: 454 | M122: INE440A01010
A123: ASHOKA | B123: EQ | C123: 107.85 | D123: 107.85 | E123: 103.5 | F123: 104.05 | G123: 104.1 | H123: 105.3 | I123: 370103 | J123: 39012954.8 | K123: 2020-01-07 | L123: 5125 | M123: INE442H01029
A124: ASHOKLEY | B124: EQ | C124: 81 | D124: 82.45 | E124: 80.6 | F124: 82.1 | G124: 82.05 | H124: 80.35 | I124: 16134697 | J124: 1316346326 | K124: 2020-01-07 | L124: 60387 | M124: INE208A01029
A125: ASIANHOTNR | B125: EQ | C125: 95.25 | D125: 96.95 | E125: 94.8 | F125: 95.55 | G125: 96 | H125: 96 | I125: 1593 | J125: 152060.65 | K125: 2020-01-07 | L125: 71 | M125: INE363A01022
A126: ASIANPAINT | B126: EQ | C126: 1711 | D126: 1740.5 | E126: 1711 | F126: 1724.4 | G126: 1730.65 | H126: 1707.15 | I126: 1033650 | J126: 1787440106 | K126: 2020-01-07 | L126: 70683 | M126: INE021A01026
A127: ASIANTILES | B127: EQ | C127: 215.15 | D127: 219.9 | E127: 215.15 | F127: 216.8 | G127: 215.75 | H127: 213.75 | I127: 12468 | J127: 2712843.95 | K127: 2020-01-07 | L127: 1610 | M127: INE022I01019
A128: ASPINWALL | B128: EQ | C128: 145 | D128: 147 | E128: 141 | F128: 144 | G128: 144 | H128: 142.45 | I128: 245 | J128: 34898 | K128: 2020-01-07 | L128: 57 | M128: INE991I01015
A129: ASTEC | B129: EQ | C129: 437.05 | D129: 494.7 | E129: 437.05 | F129: 483.55 | G129: 478 | H129: 439.35 | I129: 88295 | J129: 42162885.1 | K129: 2020-01-07 | L129: 4861 | M129: INE563J01010
A130: ASTERDM | B130: EQ | C130: 171.9 | D130: 174.9 | E130: 161.5 | F130: 164.25 | G130: 162.9 | H130: 165.8 | I130: 316227 | J130: 53327856.95 | K130: 2020-01-07 | L130: 7726 | M130: INE914M01019
A131: ASTRAL | B131: EQ | C131: 1155 | D131: 1160 | E131: 1141.05 | F131: 1146.9 | G131: 1143 | H131: 1145.25 | I131: 67712 | J131: 77873325 | K131: 2020-01-07 | L131: 4544 | M131: INE006I01046
A132: ASTRAMICRO | B132: EQ | C132: 82.7 | D132: 83.5 | E132: 81.75 | F132: 82.85 | G132: 83 | H132: 82.15 | I132: 178804 | J132: 14792698.2 | K132: 2020-01-07 | L132: 1122 | M132: INE386C01029
A133: ASTRAZEN | B133: EQ | C133: 2503 | D133: 2569 | E133: 2501.6 | F133: 2529.7 | G133: 2569 | H133: 2499.35 | I133: 18518 | J133: 46805575.3 | K133: 2020-01-07 | L133: 3506 | M133: INE203A01020
A134: ASTRON | B134: EQ | C134: 39.1 | D134: 40 | E134: 39.1 | F134: 39.55 | G134: 39.65 | H134: 39.3 | I134: 36691 | J134: 1452380.1 | K134: 2020-01-07 | L134: 238 | M134: INE646X01014
A135: ATFL | B135: EQ | C135: 643.85 | D135: 664.9 | E135: 635.7 | F135: 644.55 | G135: 646 | H135: 635.7 | I135: 11199 | J135: 7207417.4 | K135: 2020-01-07 | L135: 767 | M135: INE209A01019
A136: ATLANTA | B136: EQ | C136: 6.65 | D136: 6.65 | E136: 6.1 | F136: 6.6 | G136: 6.55 | H136: 6.35 | I136: 11006 | J136: 71145.75 | K136: 2020-01-07 | L136: 60 | M136: INE285H01022
A137: ATLASCYCLE | B137: BE | C137: 54.4 | D137: 54.4 | E137: 49.55 | F137: 52 | G137: 52 | H137: 51.9 | I137: 627 | J137: 32087.25 | K137: 2020-01-07 | L137: 14 | M137: INE446A01025
A138: ATUL | B138: EQ | C138: 4155 | D138: 4236 | E138: 4154.95 | F138: 4215.55 | G138: 4219.5 | H138: 4149.75 | I138: 9608 | J138: 40383151.3 | K138: 2020-01-07 | L138: 1836 | M138: INE100A01010
A139: ATULAUTO | B139: EQ | C139: 250 | D139: 251.85 | E139: 245.15 | F139: 248 | G139: 249.8 | H139: 245.7 | I139: 7583 | J139: 1882820.8 | K139: 2020-01-07 | L139: 402 | M139: INE951D01028
A140: AUBANK | B140: EQ | C140: 792 | D140: 808.05 | E140: 788 | F140: 800.7 | G140: 799.75 | H140: 791.5 | I140: 2846702 | J140: 2266660727 | K140: 2020-01-07 | L140: 31900 | M140: INE949L01017
A141: AURIONPRO | B141: EQ | C141: 59.8 | D141: 60.75 | E141: 59 | F141: 59.25 | G141: 59.3 | H141: 58.3 | I141: 4476 | J141: 267235.85 | K141: 2020-01-07 | L141: 105 | M141: INE132H01018
A142: AUROPHARMA | B142: EQ | C142: 446.5 | D142: 454.95 | E142: 446.5 | F142: 452.4 | G142: 452 | H142: 443.5 | I142: 1731056 | J142: 781297339.8 | K142: 2020-01-07 | L142: 23646 | M142: INE406A01037
A143: AUSOMENT | B143: BE | C143: 36.25 | D143: 36.25 | E143: 35.6 | F143: 35.6 | G143: 35.6 | H143: 35 | I143: 2360 | J143: 85441 | K143: 2020-01-07 | L143: 25 | M143: INE218C01016
A144: AUTOAXLES | B144: EQ | C144: 819.95 | D144: 835 | E144: 810 | F144: 829.7 | G144: 830.1 | H144: 805.25 | I144: 5112 | J144: 4218637.7 | K144: 2020-01-07 | L144: 559 | M144: INE449A01011
A145: AUTOIND | B145: BE | C145: 24.8 | D145: 24.8 | E145: 23.8 | F145: 24 | G145: 24 | H145: 23.7 | I145: 5619 | J145: 135766.45 | K145: 2020-01-07 | L145: 55 | M145: INE718H01014
A146: AUTOLITIND | B146: EQ | C146: 20.6 | D146: 22 | E146: 20.6 | F146: 21.45 | G146: 21.65 | H146: 20.55 | I146: 4844 | J146: 104340.9 | K146: 2020-01-07 | L146: 114 | M146: INE448A01013
A147: AVADHSUGAR | B147: EQ | C147: 297.5 | D147: 314.3 | E147: 293.55 | F147: 307.65 | G147: 309 | H147: 288.2 | I147: 389086 | J147: 118210985.2 | K147: 2020-01-07 | L147: 8832 | M147: INE349W01017
A148: AVANTIFEED | B148: EQ | C148: 587 | D148: 613.3 | E148: 587 | F148: 604.4 | G148: 603.5 | H148: 582.3 | I148: 675519 | J148: 407843646.4 | K148: 2020-01-07 | L148: 18586 | M148: INE871C01038
A149: AVTNPL | B149: EQ | C149: 32.6 | D149: 33.6 | E149: 32.15 | F149: 33.3 | G149: 33.4 | H149: 32.35 | I149: 92274 | J149: 3047999.1 | K149: 2020-01-07 | L149: 738 | M149: INE488D01021
A150: AXISBANK | B150: EQ | C150: 728 | D150: 738 | E150: 721.05 | F150: 725.75 | G150: 726.95 | H150: 723.25 | I150: 9103360 | J150: 6630906924 | K150: 2020-01-07 | L150: 123724 | M150: INE238A01034
A151: AXISCADES | B151: EQ | C151: 52.85 | D151: 54.7 | E151: 52.85 | F151: 53.65 | G151: 53.2 | H151: 53.6 | I151: 22638 | J151: 1218560.9 | K151: 2020-01-07 | L151: 531 | M151: INE555B01013
A152: AXISGOLD | B152: EQ | C152: 3600 | D152: 3600 | E152: 3502 | F152: 3552.7 | G152: 3557.9 | H152: 3603.15 | I152: 1985 | J152: 7068634.4 | K152: 2020-01-07 | L152: 258 | M152: INF846K01347
A153: AXISNIFTY | B153: EQ | C153: 1255.01 | D153: 1256.95 | E153: 1245 | F153: 1245 | G153: 1245 | H153: 1241.6 | I153: 44 | J153: 55009.33 | K153: 2020-01-07 | L153: 15 | M153: INF846K01ZL0
A154: AYMSYNTEX | B154: EQ | C154: 30.05 | D154: 31.25 | E154: 29.95 | F154: 30.8 | G154: 30.5 | H154: 29.5 | I154: 10615 | J154: 324167.85 | K154: 2020-01-07 | L154: 112 | M154: INE193B01039
A155: BAGFILMS | B155: BE | C155: 1.8 | D155: 1.9 | E155: 1.8 | F155: 1.9 | G155: 1.9 | H155: 1.85 | I155: 57384 | J155: 105499.6 | K155: 2020-01-07 | L155: 105 | M155: INE116D01028
A156: BAJAJ-AUTO | B156: EQ | C156: 3045.5 | D156: 3072 | E156: 3030.1 | F156: 3037.95 | G156: 3045 | H156: 3037.65 | I156: 225535 | J156: 686321029.7 | K156: 2020-01-07 | L156: 15131 | M156: INE917I01010
A157: BAJAJCON | B157: EQ | C157: 236.05 | D157: 237 | E157: 232.5 | F157: 235.9 | G157: 236 | H157: 234.05 | I157: 226184 | J157: 53045381.05 | K157: 2020-01-07 | L157: 4956 | M157: INE933K01021
A158: BAJAJELEC | B158: EQ | C158: 359.1 | D158: 364.9 | E158: 357.6 | F158: 360.1 | G158: 359.4 | H158: 357.6 | I158: 96980 | J158: 34937253.4 | K158: 2020-01-07 | L158: 3779 | M158: INE193E01025
A159: BAJAJFINSV | B159: EQ | C159: 9125 | D159: 9265 | E159: 9065.05 | F159: 9095.65 | G159: 9080 | H159: 9042.7 | I159: 242676 | J159: 2218427376 | K159: 2020-01-07 | L159: 23159 | M159: INE918I01018
A160: BAJAJHIND | B160: EQ | C160: 7.15 | D160: 7.3 | E160: 6.9 | F160: 7.1 | G160: 7.15 | H160: 6.8 | I160: 2992758 | J160: 21177199.5 | K160: 2020-01-07 | L160: 3178 | M160: INE306A01021
A161: BAJAJHLDNG | B161: EQ | C161: 3450.05 | D161: 3480.85 | E161: 3380.05 | F161: 3396.65 | G161: 3404 | H161: 3450.05 | I161: 31735 | J161: 109181505.6 | K161: 2020-01-07 | L161: 4857 | M161: INE118A01012
A162: BAJFINANCE | B162: EQ | C162: 4055 | D162: 4092 | E162: 3996.2 | F162: 4007.65 | G162: 4005.9 | H162: 3996.7 | I162: 2149042 | J162: 8668489841 | K162: 2020-01-07 | L162: 105478 | M162: INE296A01024
A163: BALAJITELE | B163: EQ | C163: 51.45 | D163: 53.2 | E163: 51.3 | F163: 51.7 | G163: 52 | H163: 51.25 | I163: 11010 | J163: 574183.25 | K163: 2020-01-07 | L163: 166 | M163: INE794B01026
A164: BALAMINES | B164: EQ | C164: 391.95 | D164: 401 | E164: 391.05 | F164: 397.35 | G164: 399 | H164: 388 | I164: 25291 | J164: 10025893.2 | K164: 2020-01-07 | L164: 1322 | M164: INE050E01027
A165: BALAXI | B165: EQ | C165: 78.75 | D165: 78.75 | E165: 73.5 | F165: 76.35 | G165: 77.2 | H165: 73.25 | I165: 224 | J165: 16529.25 | K165: 2020-01-07 | L165: 13 | M165: INE618N01014
A166: BALKRISHNA | B166: BE | C166: 19.9 | D166: 19.9 | E166: 19.9 | F166: 19.9 | G166: 19.9 | H166: 20.9 | I166: 855 | J166: 17014.5 | K166: 2020-01-07 | L166: 13 | M166: INE875R01011
A167: BALKRISIND | B167: EQ | C167: 972 | D167: 989 | E167: 964.45 | F167: 967.5 | G167: 965.05 | H167: 964.35 | I167: 614315 | J167: 599129108.7 | K167: 2020-01-07 | L167: 18792 | M167: INE787D01026
A168: BALLARPUR | B168: BE | C168: 0.4 | D168: 0.45 | E168: 0.4 | F168: 0.45 | G168: 0.45 | H168: 0.45 | I168: 939572 | J168: 399937.4 | K168: 2020-01-07 | L168: 121 | M168: INE294A01037
A169: BALMLAWRIE | B169: EQ | C169: 123.5 | D169: 124.5 | E169: 122.5 | F169: 123.05 | G169: 123.35 | H169: 121.7 | I169: 62482 | J169: 7703200.5 | K169: 2020-01-07 | L169: 1078 | M169: INE164A01016
A170: BALPHARMA | B170: EQ | C170: 42.3 | D170: 43.75 | E170: 41.2 | F170: 42.05 | G170: 42.6 | H170: 41.8 | I170: 13041 | J170: 551028.35 | K170: 2020-01-07 | L170: 162 | M170: INE083D01012
A171: BALRAMCHIN | B171: EQ | C171: 190 | D171: 195 | E171: 183.7 | F171: 186.2 | G171: 185.5 | H171: 182.55 | I171: 2258251 | J171: 423326359.6 | K171: 2020-01-07 | L171: 18186 | M171: INE119A01028
A172: BANARBEADS | B172: EQ | C172: 32.4 | D172: 32.4 | E172: 30.05 | F172: 32 | G172: 32.1 | H172: 29.6 | I172: 2954 | J172: 93531.8 | K172: 2020-01-07 | L172: 26 | M172: INE655B01011
A173: BANARISUG | B173: EQ | C173: 1242 | D173: 1274 | E173: 1225 | F173: 1246.55 | G173: 1249 | H173: 1211.15 | I173: 717 | J173: 899036.55 | K173: 2020-01-07 | L173: 89 | M173: INE459A01010
A174: BANCOINDIA | B174: EQ | C174: 104.9 | D174: 106.25 | E174: 102 | F174: 102.45 | G174: 102.5 | H174: 103.15 | I174: 31773 | J174: 3280627.05 | K174: 2020-01-07 | L174: 1654 | M174: INE213C01025
A175: BANDHANBNK | B175: EQ | C175: 502.9 | D175: 504 | E175: 490.3 | F175: 493.35 | G175: 491.8 | H175: 498.1 | I175: 1187941 | J175: 591691298.4 | K175: 2020-01-07 | L175: 26112 | M175: INE545U01014
A176: BANG | B176: EQ | C176: 16.6 | D176: 19.9 | E176: 16.6 | F176: 19.9 | G176: 19.9 | H176: 16.6 | I176: 47897 | J176: 925039.95 | K176: 2020-01-07 | L176: 329 | M176: INE863I01016
A177: BANKBARODA | B177: EQ | C177: 97.6 | D177: 98.15 | E177: 94.75 | F177: 96.15 | G177: 96 | H177: 95.8 | I177: 31124816 | J177: 3001534348 | K177: 2020-01-07 | L177: 67721 | M177: INE028A01039
A178: BANKBEES | B178: EQ | C178: 321.6 | D178: 324.8 | E178: 318.08 | F178: 320.17 | G178: 320.45 | H178: 319.18 | I178: 1099389 | J178: 354816440.4 | K178: 2020-01-07 | L178: 2968 | M178: INF204KB15I9
A179: BANKINDIA | B179: EQ | C179: 69.05 | D179: 69.9 | E179: 67.85 | F179: 68.55 | G179: 68.2 | H179: 68.6 | I179: 1841065 | J179: 126535499 | K179: 2020-01-07 | L179: 7388 | M179: INE084A01016
A180: BANSWRAS | B180: BE | C180: 109.2 | D180: 112.95 | E180: 107.35 | F180: 108.7 | G180: 108 | H180: 113 | I180: 7646 | J180: 832667.6 | K180: 2020-01-07 | L180: 110 | M180: INE629D01012
A181: BARTRONICS | B181: BE | C181: 1.35 | D181: 1.35 | E181: 1.35 | F181: 1.35 | G181: 1.35 | H181: 1.4 | I181: 6211 | J181: 8384.85 | K181: 2020-01-07 | L181: 10 | M181: INE855F01034
A182: BASF | B182: EQ | C182: 994 | D182: 997 | E182: 981.6 | F182: 984.65 | G182: 983.85 | H182: 981.6 | I182: 7208 | J182: 7123620.2 | K182: 2020-01-07 | L182: 696 | M182: INE373A01013
A183: BASML | B183: EQ | C183: 123.2 | D183: 127.95 | E183: 116.55 | F183: 121.55 | G183: 120.05 | H183: 123.15 | I183: 3733 | J183: 460089.1 | K183: 2020-01-07 | L183: 208 | M183: INE186H01014
A184: BATAINDIA | B184: EQ | C184: 1710 | D184: 1738.15 | E184: 1705.4 | F184: 1716.3 | G184: 1721 | H184: 1704.55 | I184: 446263 | J184: 769324661.5 | K184: 2020-01-07 | L184: 19025 | M184: INE176A01028
A185: BAYERCROP | B185: EQ | C185: 3648.85 | D185: 3733 | E185: 3648.85 | F185: 3679.6 | G185: 3660 | H185: 3662.15 | I185: 22215 | J185: 82640057.45 | K185: 2020-01-07 | L185: 1988 | M185: INE462A01022
A186: BBL | B186: EQ | C186: 836 | D186: 857.9 | E186: 831.5 | F186: 834 | G186: 832.7 | H186: 833.25 | I186: 4772 | J186: 4022605.25 | K186: 2020-01-07 | L186: 547 | M186: INE464A01028
A187: BBTC | B187: EQ | C187: 1065 | D187: 1132 | E187: 1064.05 | F187: 1114.75 | G187: 1125.6 | H187: 1049.9 | I187: 280475 | J187: 308378833.6 | K187: 2020-01-07 | L187: 11577 | M187: INE050A01025
A188: BCG | B188: BE | C188: 6.25 | D188: 6.4 | E188: 6.25 | F188: 6.25 | G188: 6.25 | H188: 6.55 | I188: 140665 | J188: 879551.3 | K188: 2020-01-07 | L188: 140 | M188: INE425B01027
A189: BCP | B189: BE | C189: 16 | D189: 16.2 | E189: 15.5 | F189: 16 | G189: 16.1 | H189: 15.5 | I189: 24729 | J189: 395151.2 | K189: 2020-01-07 | L189: 79 | M189: INE905P01028
A190: BDL | B190: EQ | C190: 296.2 | D190: 301.35 | E190: 290 | F190: 297.25 | G190: 297.7 | H190: 294 | I190: 33414 | J190: 9888798.4 | K190: 2020-01-07 | L190: 2086 | M190: INE171Z01018
A191: BEARDSELL | B191: EQ | C191: 13.3 | D191: 13.45 | E191: 11.6 | F191: 12.75 | G191: 12.5 | H191: 12.35 | I191: 100113 | J191: 1291983.1 | K191: 2020-01-07 | L191: 429 | M191: INE520H01022
A192: BEDMUTHA | B192: BE | C192: 16.25 | D192: 16.95 | E192: 16.25 | F192: 16.25 | G192: 16.25 | H192: 16.15 | I192: 10547 | J192: 177796.85 | K192: 2020-01-07 | L192: 24 | M192: INE844K01012
A193: BEL | B193: EQ | C193: 98.35 | D193: 99 | E193: 95.3 | F193: 96.35 | G193: 96.55 | H193: 96.95 | I193: 11099420 | J193: 1071869793 | K193: 2020-01-07 | L193: 46804 | M193: INE263A01024
A194: BEML | B194: EQ | C194: 958.3 | D194: 971.95 | E194: 946 | F194: 948.95 | G194: 946.55 | H194: 956.85 | I194: 257679 | J194: 247002636 | K194: 2020-01-07 | L194: 7731 | M194: INE258A01016
A195: BEPL | B195: EQ | C195: 48.4 | D195: 51.2 | E195: 48.4 | F195: 49.3 | G195: 48.8 | H195: 47.75 | I195: 388492 | J195: 19230138.2 | K195: 2020-01-07 | L195: 5608 | M195: INE922A01025
A196: BERGEPAINT | B196: EQ | C196: 491.95 | D196: 502.5 | E196: 490.65 | F196: 494.4 | G196: 493.5 | H196: 490.2 | I196: 925690 | J196: 459892427.1 | K196: 2020-01-07 | L196: 13578 | M196: INE463A01038
A197: BFINVEST | B197: EQ | C197: 316.7 | D197: 326.9 | E197: 316.6 | F197: 321.1 | G197: 322.4 | H197: 314.7 | I197: 72837 | J197: 23423310.45 | K197: 2020-01-07 | L197: 2829 | M197: INE878K01010
A198: BFUTILITIE | B198: EQ | C198: 313 | D198: 320.9 | E198: 312.6 | F198: 316.35 | G198: 315.75 | H198: 309.3 | I198: 324056 | J198: 102502832.2 | K198: 2020-01-07 | L198: 7727 | M198: INE243D01012
A199: BGLOBAL | B199: BE | C199: 1.55 | D199: 1.6 | E199: 1.55 | F199: 1.6 | G199: 1.6 | H199: 1.6 | I199: 3917 | J199: 6162.2 | K199: 2020-01-07 | L199: 13 | M199: INE224M01013
A200: BGRENERGY | B200: EQ | C200: 35.4 | D200: 36.85 | E200: 35.4 | F200: 35.7 | G200: 35.95 | H200: 35.3 | I200: 102836 | J200: 3708906.25 | K200: 2020-01-07 | L200: 763 | M200: INE661I01014
... 1476 more rows

Sheet Sheet1 (hidden)

Sheet Sheet3 (hidden)

Sheet Sheet4 (hidden)

Sheet Sheet5 (hidden)
